﻿Authority,Department,Spending Area,Expense Type,Posting Date,Reference,Amount,Supplier
OXFORDSHIRE CC,"CHILDRENS, YOUNG PEOPLE AND FAMILIES",THAME E&A HOME,MATERIALS,26/07/2019,000006550979960,30.00,SUMUP   ACB GOLF RANGE
OXFORDSHIRE CC,"CHILDRENS, YOUNG PEOPLE AND FAMILIES","	LEAVING CARE NORTH",CATERING PROVISIONS,26/07/2019,000006550979982,38.07,T K MAXX LTD
OXFORDSHIRE CC,"CHILDRENS, YOUNG PEOPLE AND FAMILIES","	FAMILY SUPPORT CITY3",OTHER EXPENSES,26/07/2019,000006550980020,127.00,HM PASSPORT
OXFORDSHIRE CC,"CHILDRENS, YOUNG PEOPLE AND FAMILIES",CNTL EARLY HELP-BRTN,OTHER EXPENSES,26/07/2019,000006550980022,14.54,AMZNMKTPLACE
OXFORDSHIRE CC,"CHILDRENS, YOUNG PEOPLE AND FAMILIES","	FAMILY SUPPORT CITY3",OTHER EXPENSES,26/07/2019,000006550980024,414.00,WWW.ULTIMATEACTIVITY.C
OXFORDSHIRE CC,"CHILDRENS, YOUNG PEOPLE AND FAMILIES","	LOOKED AFTER CITY 1",MATERIALS,26/07/2019,000006550980030,8.42,CARD FACTORY
OXFORDSHIRE CC,"CHILDRENS, YOUNG PEOPLE AND FAMILIES","	40 THE MOORS",DRUGS AND MEDICAL SUPPLIES,26/07/2019,000006550980038,19.15,SUPERDRUG STORES PLC
OXFORDSHIRE CC,"CHILDRENS, YOUNG PEOPLE AND FAMILIES","	40 THE MOORS",CATERING PROVISIONS,26/07/2019,000006550980040,30.00,TESCO STORE 2788
OXFORDSHIRE CC,SOCIAL AND COMMUNITY SERVICES,CSS - BANBURY,CATERING PROVISIONS,26/07/2019,000006550980042,6.95,TESCO STORE 2064
OXFORDSHIRE CC,"CHILDRENS, YOUNG PEOPLE AND FAMILIES",DIDCOT MOVE-ON HOME,CATERING PROVISIONS,26/07/2019,000006550980052,33.35,SAINSBURYS 2067
OXFORDSHIRE CC,"CHILDRENS, YOUNG PEOPLE AND FAMILIES","	HOME SUPPORT",MATERIALS,26/07/2019,000006550980056,5.70,AMZNMKTPLACE
OXFORDSHIRE CC,"CHILDRENS, YOUNG PEOPLE AND FAMILIES","	HOME SUPPORT",MATERIALS,26/07/2019,000006550980058,9.49,AMAZON.CO.UK MH9M611Z4
OXFORDSHIRE CC,"CHILDRENS, YOUNG PEOPLE AND FAMILIES",CNTL EARLY HELP-BRTN,CATERING PROVISIONS,26/07/2019,000006550980060,21.10,SANGHERA SUPERMARKET L
OXFORDSHIRE CC,"CHILDRENS, YOUNG PEOPLE AND FAMILIES",EYNSHAM,MATERIALS,26/07/2019,000006550980064,14.98,AMZNMKTPLACE
OXFORDSHIRE CC,SOCIAL AND COMMUNITY SERVICES,WALLINGFORD LIBRARY,MATERIALS,26/07/2019,000006550980082,5.99,AMAZON.CO.UK MH2HO70B4
OXFORDSHIRE CC,SOCIAL AND COMMUNITY SERVICES,WALLINGFORD LIBRARY,"SUPPLIES, STATIONERY AND MATERIALS",26/07/2019,000006550980084,6.57,AMAZON.CO.UK MH4LM3184
OXFORDSHIRE CC,CORPORATE CORE,,"SUPPLIES, STATIONERY AND MATERIALS",26/07/2019,000006550980116,49.80,LYRECO UK LTD
OXFORDSHIRE CC,CORPORATE CORE,,"SUPPLIES, STATIONERY AND MATERIALS",26/07/2019,000006550980118,85.80,LYRECO UK LTD
OXFORDSHIRE CC,"CHILDRENS, YOUNG PEOPLE AND FAMILIES","	LEAVING CARE NORTH",OTHER TRANSPORT ARRANGEMENTS,26/07/2019,000006550980132,215.81,FLYBE.COM OJBQNV       0
OXFORDSHIRE CC,"CHILDRENS, YOUNG PEOPLE AND FAMILIES","	LEAVING CARE NORTH",OTHER EXPENSES,26/07/2019,000006550980134,2.65,COSTA BICESTER
OXFORDSHIRE CC,"CHILDRENS, YOUNG PEOPLE AND FAMILIES",CNTL EARLY HELP-RHIL,CATERING PROVISIONS,26/07/2019,000006550980136,10.20,SAINSBURYS SACAT 0600
OXFORDSHIRE CC,CORPORATE CORE,INCOME TEAM,PAYMENT TO GOVERNMENT DEPARTMENTS,26/07/2019,000006550980154,11.00,OXFORDSHIRE CC MOTO1
OXFORDSHIRE CC,"CHILDRENS, YOUNG PEOPLE AND FAMILIES",NORTH FSS- WITNEY,EDUCATIONAL AND VOCATIONAL TRAINING ,26/07/2019,000006550980172,22.00,OXFORDSHIRE CC MOTO1
OXFORDSHIRE CC,"CHILDRENS, YOUNG PEOPLE AND FAMILIES",EYNSHAM,FURNITURE,26/07/2019,000006550980174,32.00,IKEA LTD 461 READING M
OXFORDSHIRE CC,SOCIAL AND COMMUNITY SERVICES,CSS WANTAGE,CATERING PROVISIONS,26/07/2019,000006550979586,42.76,TESCO STORE 2413
OXFORDSHIRE CC,SOCIAL AND COMMUNITY SERVICES,CSS WANTAGE,CATERING PROVISIONS,26/07/2019,000006550979592,12.70,SAINSBURYS SACAT 2244
OXFORDSHIRE CC,"CHILDRENS, YOUNG PEOPLE AND FAMILIES",THAME E&A HOME,MATERIALS,26/07/2019,000006550979608,162.91,AMZNMKTPLACE
OXFORDSHIRE CC,"CHILDRENS, YOUNG PEOPLE AND FAMILIES",THAME E&A HOME,MATERIALS,26/07/2019,000006550979612,27.44,AMZNMKTPLACE
OXFORDSHIRE CC,"CHILDRENS, YOUNG PEOPLE AND FAMILIES",THAME E&A HOME,MATERIALS,26/07/2019,000006550979616,30.63,AMZNMKTPLACE
OXFORDSHIRE CC,"CHILDRENS, YOUNG PEOPLE AND FAMILIES",THAME E&A HOME,MATERIALS,26/07/2019,000006550979620,30.63,AMZNMKTPLACE
OXFORDSHIRE CC,"CHILDRENS, YOUNG PEOPLE AND FAMILIES",THAME E&A HOME,DRUGS AND MEDICAL SUPPLIES,26/07/2019,000006550979624,49.82,"BOOTS,THAME"
OXFORDSHIRE CC,"CHILDRENS, YOUNG PEOPLE AND FAMILIES",THAME E&A HOME,MATERIALS,26/07/2019,000006550979628,120.62,AMZNMKTPLACE
OXFORDSHIRE CC,"CHILDRENS, YOUNG PEOPLE AND FAMILIES",WITNEY,CATERING PROVISIONS,26/07/2019,000006550979648,2.98,LIDL GB  WITNEY
OXFORDSHIRE CC,SOCIAL AND COMMUNITY SERVICES,CSS - ABINGDON,CATERING PROVISIONS,26/07/2019,000006550979650,30.00,TESCO STORES 2008
OXFORDSHIRE CC,SOCIAL AND COMMUNITY SERVICES,CSS - ABINGDON,CATERING PROVISIONS,26/07/2019,000006550979652,24.07,TESCO STORES 6519
OXFORDSHIRE CC,"CHILDRENS, YOUNG PEOPLE AND FAMILIES",THAME E&A HOME,CATERING,26/07/2019,000006550979662,10.30,COSTA COFFEE 43043995
OXFORDSHIRE CC,SOCIAL AND COMMUNITY SERVICES,CO PRODUCTION WORK,CATERING PROVISIONS,26/07/2019,000006550979666,5.70,SAINSBURYS SACAT 0730
OXFORDSHIRE CC,"CHILDRENS, YOUNG PEOPLE AND FAMILIES",THAME E&A HOME,VEHICLE FUEL,26/07/2019,000006550979680,5.80,THAME BP SF CONNECT
OXFORDSHIRE CC,"CHILDRENS, YOUNG PEOPLE AND FAMILIES","	NCS","PUBLICITY, PROMOTIONS AND ADVERTISEMENT",26/07/2019,000006550979692,17.00,FACEBK  C9N56MWGW2
OXFORDSHIRE CC,"CHILDRENS, YOUNG PEOPLE AND FAMILIES","	LOOKED AFTER CITY 1",VEHICLE FUEL,26/07/2019,000006550979698,28.00,BP THINFORD NORTH
OXFORDSHIRE CC,ENVIRONMENT AND ECONOMY,HARD FM,MATERIALS,26/07/2019,000006550979700,9.72,ROBERT DYAS HOLDNG LTD
OXFORDSHIRE CC,ENVIRONMENT AND ECONOMY,HARD FM,HARDWARE AND CROCKERY,26/07/2019,000006550979704,227.30,JEWSON LTD
OXFORDSHIRE CC,ENVIRONMENT AND ECONOMY,HARD FM,GENERAL MAINTENANCE,26/07/2019,000006550979710,111.84,WOLSELEY UK
OXFORDSHIRE CC,ENVIRONMENT AND ECONOMY,HARD FM,GENERAL MAINTENANCE,26/07/2019,000006550979714,41.40,WOLSELEY UK
OXFORDSHIRE CC,ENVIRONMENT AND ECONOMY,HARD FM,HARDWARE AND CROCKERY,26/07/2019,000006550979716,21.44,CITY PLUMBING
OXFORDSHIRE CC,ENVIRONMENT AND ECONOMY,HARD FM,MATERIALS,26/07/2019,000006550979722,676.80,TLC SOUTHERN LTD
OXFORDSHIRE CC,ENVIRONMENT AND ECONOMY,COUNTY LIBRARY,GENERAL MAINTENANCE,26/07/2019,000006550979728,520.92,WOLSELEY UK
OXFORDSHIRE CC,ENVIRONMENT AND ECONOMY,COUNTY LIBRARY,GENERAL MAINTENANCE,26/07/2019,000006550979738,37.76,WOLSELEY UK
OXFORDSHIRE CC,"CHILDRENS, YOUNG PEOPLE AND FAMILIES","	LEAVING CARE NORTH",CLOTHING AND UNIFORMS,26/07/2019,000006550979746,32.90,PRIMARK 693
OXFORDSHIRE CC,"CHILDRENS, YOUNG PEOPLE AND FAMILIES","	LOOKED AFTER NORTH",CLOTHING AND UNIFORMS,26/07/2019,000006550979758,81.99,PRETTYLITTLETHING.COM
OXFORDSHIRE CC,SOCIAL AND COMMUNITY SERVICES,CSS BICESTER,CATERING PROVISIONS,26/07/2019,000006550979772,20.00,ICELAND
OXFORDSHIRE CC,"CHILDRENS, YOUNG PEOPLE AND FAMILIES",THAME E&A HOME,DRUGS AND MEDICAL SUPPLIES,26/07/2019,000006550979786,21.00,"BOOTS,THAME"
OXFORDSHIRE CC,SOCIAL AND COMMUNITY SERVICES,UASC 16&17,PAYMENTS TO TRANSPORT OPERATORS,26/07/2019,000006550979798,5.40,BICESTER NORTH SSTP
OXFORDSHIRE CC,SOCIAL AND COMMUNITY SERVICES,UASC 16&17,CLOTHING AND UNIFORMS,26/07/2019,000006550979804,18.83,GAP 2106
OXFORDSHIRE CC,"CHILDRENS, YOUNG PEOPLE AND FAMILIES",EYNSHAM,IT SOFTWARE,26/07/2019,000006550979828,209.89,APPLIANCEDIRECT CO
OXFORDSHIRE CC,"CHILDRENS, YOUNG PEOPLE AND FAMILIES",THAME E&A HOME,CATERING,26/07/2019,000006550979838,29.20,NANDOS HIGH WYCOMBE
OXFORDSHIRE CC,"CHILDRENS, YOUNG PEOPLE AND FAMILIES",THAME E&A HOME,OTHER TRANSPORT ARRANGEMENTS,26/07/2019,000006550979842,1.00,EURO CAR PARKS LIMITED
OXFORDSHIRE CC,"CHILDRENS, YOUNG PEOPLE AND FAMILIES",THAME E&A HOME,SUBSCRIPTIONS,26/07/2019,000006550979846,14.38,AMF BOWLING
OXFORDSHIRE CC,"CHILDRENS, YOUNG PEOPLE AND FAMILIES",STH EARLY HELP-ABNDN,EQUIPMENT,26/07/2019,000006550979850,499.00,CURRYS OXFORD 2401
OXFORDSHIRE CC,"CHILDRENS, YOUNG PEOPLE AND FAMILIES",THAME E&A HOME,CATERING,26/07/2019,000006550979858,9.20,VINY'S CAFE
OXFORDSHIRE CC,"CHILDRENS, YOUNG PEOPLE AND FAMILIES",THAME E&A HOME,CATERING,26/07/2019,000006550979860,12.20,VINY'S CAFE
OXFORDSHIRE CC,"CHILDRENS, YOUNG PEOPLE AND FAMILIES",THAME E&A HOME,SUBSCRIPTIONS,26/07/2019,000006550979862,19.30,HINKSEY OUTDOOR POOL
OXFORDSHIRE CC,"CHILDRENS, YOUNG PEOPLE AND FAMILIES",THAME E&A HOME,CATERING,26/07/2019,000006550979866,36.98,DOMINOS PIZZA
OXFORDSHIRE CC,"CHILDRENS, YOUNG PEOPLE AND FAMILIES",NORTH FSS- BANBURY,CATERING PROVISIONS,26/07/2019,000006550979868,40.89,TESCO STORE 2064
OXFORDSHIRE CC,CORPORATE CORE,RESOURCING,MATERIALS,26/07/2019,000006550979872,244.27,LINKEDIN-396 1629646
OXFORDSHIRE CC,CORPORATE CORE,RESOURCING,MATERIALS,26/07/2019,000006550979872,116.27,LINKEDIN-396 1629646
OXFORDSHIRE CC,CORPORATE CORE,RESOURCING,MATERIALS,26/07/2019,000006550979872,121.08,LINKEDIN-396 1629646
OXFORDSHIRE CC,SOCIAL AND COMMUNITY SERVICES,"	MUSEUMS COLLECTIONS",SUBSCRIPTIONS,26/07/2019,000006550979882,30.00,PAYPAL  SOCIETYFORM
OXFORDSHIRE CC,"CHILDRENS, YOUNG PEOPLE AND FAMILIES","	LOOKED AFTER CITY 2",RESIDENTIAL ACTIVITIES,26/07/2019,000006550979884,40.00,PAYPAL  OXFORDUNITE
OXFORDSHIRE CC,"CHILDRENS, YOUNG PEOPLE AND FAMILIES","	LOOKED AFTER CITY 2",REGISTRATION AND INSPECTION FEES,26/07/2019,000006550979886,33.00,OXFORDSHIRE CC MOTO1
OXFORDSHIRE CC,CORPORATE CORE,HOLTON SITE,PROFESSIONAL SUBSCRIPTIONS,26/07/2019,000006550979890,-5.95,VEHICLEINFORMATION.UK
OXFORDSHIRE CC,CORPORATE CORE,"	COMMUNICATIONS",IT SOFTWARE,26/07/2019,000006550979900,78.97,ADOBE  CREATIVE CLOUD
OXFORDSHIRE CC,SOCIAL AND COMMUNITY SERVICES,"	VISUAL IMP. TEAM",MATERIALS,26/07/2019,000006550979918,54.98,AMAZON.CO.UK MH5AB31Z4
OXFORDSHIRE CC,CORPORATE CORE,OPERATIONS,EQUIPMENT,26/07/2019,000006550979920,75.96,AMZNMKTPLACE
OXFORDSHIRE CC,SOCIAL AND COMMUNITY SERVICES,CSS - OXFORD,MATERIALS,26/07/2019,000006550979928,7.29,AMZNMKTPLACE AMAZON.CO
OXFORDSHIRE CC,"CHILDRENS, YOUNG PEOPLE AND FAMILIES","	LOOKED AFTER CITY 2",PAYMENTS TO TRANSPORT OPERATORS,26/07/2019,000006550979940,53.30,GWR OXFORD TO
OXFORDSHIRE CC,"CHILDRENS, YOUNG PEOPLE AND FAMILIES","	LOOKED AFTER CITY 2",OTHER TRANSPORT ARRANGEMENTS,26/07/2019,000006550979942,6.80,APCOA CONNECT - FGW
OXFORDSHIRE CC,CORPORATE CORE,"	LEGAL SERVICES",LEGAL COSTS,26/07/2019,000006550979954,11.00,OXFORDSHIRE CC MOTO1
OXFORDSHIRE CC,CORPORATE CORE,"	LEGAL SERVICES",LEGAL COSTS,26/07/2019,000006550979956,11.00,OXFORDSHIRE CC MOTO1
OXFORDSHIRE CC,"CHILDRENS, YOUNG PEOPLE AND FAMILIES",THAME E&A HOME,MATERIALS,26/07/2019,000006550979958,10.72,AMAZON.CO.UK MH1AG01R4
OXFORDSHIRE CC,"CHILDRENS, YOUNG PEOPLE AND FAMILIES","	40 THE MOORS",ENTERTAINMENT EXPENSES,25/07/2019,000006544991670,4.60,COTSWOLD WILDLIFE PARK
OXFORDSHIRE CC,"CHILDRENS, YOUNG PEOPLE AND FAMILIES","	40 THE MOORS",ENTERTAINMENT EXPENSES,25/07/2019,000006544991672,34.00,COTSWOLD WILDLIFE PARK
OXFORDSHIRE CC,"CHILDRENS, YOUNG PEOPLE AND FAMILIES","	40 THE MOORS",ENTERTAINMENT EXPENSES,25/07/2019,000006544991674,2.00,COTSWOLD WILDLIFE PARK
OXFORDSHIRE CC,"CHILDRENS, YOUNG PEOPLE AND FAMILIES","	40 THE MOORS",ENTERTAINMENT EXPENSES,25/07/2019,000006544991676,43.19,COTSWOLD WILDLIFE PARK
OXFORDSHIRE CC,"CHILDRENS, YOUNG PEOPLE AND FAMILIES","	LEAVING CARE SOUTH",MATERIALS,25/07/2019,000006544991680,-35.49,AMZ AMAZON.CO.UK
OXFORDSHIRE CC,"CHILDRENS, YOUNG PEOPLE AND FAMILIES","	LEAVING CARE SOUTH",MATERIALS,25/07/2019,000006544991682,-58.49,AMZ SARCIA EU
OXFORDSHIRE CC,"CHILDRENS, YOUNG PEOPLE AND FAMILIES",WITNEY,CATERING,25/07/2019,000006544991684,6.50,THE SHAKE SHOP
OXFORDSHIRE CC,"CHILDRENS, YOUNG PEOPLE AND FAMILIES",FPT SOUTH/VALE,MATERIALS,25/07/2019,000006544991686,199.00,WWW.JOHNLEWIS.COM
OXFORDSHIRE CC,"CHILDRENS, YOUNG PEOPLE AND FAMILIES",FPT SOUTH/VALE,MATERIALS,25/07/2019,000006544991688,-199.00,WWW.JOHNLEWIS.COM
OXFORDSHIRE CC,"CHILDRENS, YOUNG PEOPLE AND FAMILIES","	FAM SUPP CITY 1",PAYMENT TO GOVERNMENT DEPARTMENTS,25/07/2019,000006544991690,9.50,IPS DURHAM CONTACT CTR
OXFORDSHIRE CC,"CHILDRENS, YOUNG PEOPLE AND FAMILIES","	LOOKED AFTER NORTH",DOMESTIC AND CLEANING EQUIPMENT,25/07/2019,000006544991692,18.00,WM MORRISONS STORE
OXFORDSHIRE CC,CORPORATE CORE,"	MEMBERS ALLOWANCES",MOTOR IF OWN DAMAGE,25/07/2019,000006544991694,"3,572.70",OLIVER HOLDINGS
OXFORDSHIRE CC,CORPORATE CORE,,"SUPPLIES, STATIONERY AND MATERIALS",25/07/2019,000006544991696,80.71,LYRECO UK LTD
OXFORDSHIRE CC,"CHILDRENS, YOUNG PEOPLE AND FAMILIES","	NCS",CATERING PROVISIONS,25/07/2019,000006544991698,25.33,ALDI 77 775
OXFORDSHIRE CC,"CHILDRENS, YOUNG PEOPLE AND FAMILIES","	NCS",MATERIALS,25/07/2019,000006544991700,35.00,GO OUTDOORS
OXFORDSHIRE CC,"CHILDRENS, YOUNG PEOPLE AND FAMILIES",EYNSHAM,CATERING PROVISIONS,25/07/2019,000006544991702,9.00,TESCO STORES 4480
OXFORDSHIRE CC,"CHILDRENS, YOUNG PEOPLE AND FAMILIES",EYNSHAM,CATERING PROVISIONS,25/07/2019,000006544991704,3.25,COSTA THAME
OXFORDSHIRE CC,ENVIRONMENT AND ECONOMY,"	SAMUELSON HOUSE",CATERING PROVISIONS,25/07/2019,000006544991706,3.27,WM MORRISONS STORE
OXFORDSHIRE CC,"CHILDRENS, YOUNG PEOPLE AND FAMILIES","	LEAVING CARE NORTH",OTHER EXPENSES,25/07/2019,000006544991708,94.75,THE POST OFFICE
OXFORDSHIRE CC,"CHILDRENS, YOUNG PEOPLE AND FAMILIES",CNTL EARLY HELP-RHIL,CATERING PROVISIONS,25/07/2019,000006544991710,3.00,ASDA SUPERSTORE
OXFORDSHIRE CC,"CHILDRENS, YOUNG PEOPLE AND FAMILIES",CNTL ERLY HELP-BBLEY,CATERING PROVISIONS,25/07/2019,000006544991712,22.00,ASDA STORE 4442
OXFORDSHIRE CC,"CHILDRENS, YOUNG PEOPLE AND FAMILIES",CNTL ERLY HELP-BBLEY,MATERIALS,25/07/2019,000006544991714,29.00,POUNDLAND LTD 1586
OXFORDSHIRE CC,CORPORATE CORE,INCOME TEAM,PAYMENT TO GOVERNMENT DEPARTMENTS,25/07/2019,000006544991732,1.50,WWW.GOV.UK
OXFORDSHIRE CC,CORPORATE CORE,INCOME TEAM,PAYMENT TO GOVERNMENT DEPARTMENTS,25/07/2019,000006544991734,1.50,WWW.GOV.UK
OXFORDSHIRE CC,SOCIAL AND COMMUNITY SERVICES,FLEET OPERATIONS,TECHNICAL AND PROFESSIONAL CONSULTANT F,25/07/2019,000006544991738,162.92,M P M S
OXFORDSHIRE CC,SOCIAL AND COMMUNITY SERVICES,CSS WANTAGE,GAS,25/07/2019,000006544991368,66.49,CHARLTON PARK GDN
OXFORDSHIRE CC,"CHILDRENS, YOUNG PEOPLE AND FAMILIES",CSS WALLINGFORD,CATERING PROVISIONS,25/07/2019,000006544991370,3.95,WAITROSE 675
OXFORDSHIRE CC,SOCIAL AND COMMUNITY SERVICES,CSS BICESTER,CATERING PROVISIONS,25/07/2019,000006544991366,21.11,ALDI 49 775
OXFORDSHIRE CC,"CHILDRENS, YOUNG PEOPLE AND FAMILIES","	FAMILY SUPPORT S'TH2",CLIENT LODGINGS AND ACCOMMODATION,25/07/2019,000006544991372,70.00,THE GEORGE HOTEL
OXFORDSHIRE CC,SOCIAL AND COMMUNITY SERVICES,LOOKED AFTER SOUTH,POSTAGE AND DELIVERY,25/07/2019,000006544991374,1.90,THE POST OFFICE
OXFORDSHIRE CC,SOCIAL AND COMMUNITY SERVICES,LOOKED AFTER SOUTH,CATERING PROVISIONS,25/07/2019,000006544991376,3.70,SQ  TICKITTYSHAKE
OXFORDSHIRE CC,SOCIAL AND COMMUNITY SERVICES,LOOKED AFTER SOUTH,CATERING,25/07/2019,000006544991378,9.70,CAFFE NERO CHIPPING NO
OXFORDSHIRE CC,"CHILDRENS, YOUNG PEOPLE AND FAMILIES",THAME E&A HOME,MATERIALS,25/07/2019,000006544991380,313.02,AMZNMKTPLACE
OXFORDSHIRE CC,"CHILDRENS, YOUNG PEOPLE AND FAMILIES",THAME E&A HOME,MATERIALS,25/07/2019,000006544991382,10.99,AMAZON.CO.UK MH1IY90S4
OXFORDSHIRE CC,"CHILDRENS, YOUNG PEOPLE AND FAMILIES",EYNSHAM,POSTAGE AND DELIVERY,25/07/2019,000006544991742,6.99,TESCO DELIVERY SAVER2
OXFORDSHIRE CC,"CHILDRENS, YOUNG PEOPLE AND FAMILIES","	RESIDENTIAL STRATEGY",ENTERTAINMENT EXPENSES,25/07/2019,000006544991392,1.60,IZ  BIG ROCK CLIMB
OXFORDSHIRE CC,"CHILDRENS, YOUNG PEOPLE AND FAMILIES","	RESIDENTIAL STRATEGY",CATERING,25/07/2019,000006544991394,48.68,971
OXFORDSHIRE CC,"CHILDRENS, YOUNG PEOPLE AND FAMILIES","	RESIDENTIAL STRATEGY",ENTERTAINMENT EXPENSES,25/07/2019,000006544991396,4.00,IZ  BIG ROCK CLIMBING
OXFORDSHIRE CC,"CHILDRENS, YOUNG PEOPLE AND FAMILIES","	RESIDENTIAL STRATEGY",ENTERTAINMENT EXPENSES,25/07/2019,000006544991398,17.00,BIG ROCK CLIMBING
OXFORDSHIRE CC,"CHILDRENS, YOUNG PEOPLE AND FAMILIES",THAME E&A HOME,VEHICLE FUEL,25/07/2019,000006544991406,11.65,THAME BP SF CONNECT
OXFORDSHIRE CC,"CHILDRENS, YOUNG PEOPLE AND FAMILIES","	SM QUALITY ASSURANCE",PAYMENTS TO TRANSPORT OPERATORS,25/07/2019,000006544991408,89.80,TRAINLINE
OXFORDSHIRE CC,"CHILDRENS, YOUNG PEOPLE AND FAMILIES","	SM QUALITY ASSURANCE",PAYMENTS TO TRANSPORT OPERATORS,25/07/2019,000006544991410,196.30,TRAINLINE
OXFORDSHIRE CC,"CHILDRENS, YOUNG PEOPLE AND FAMILIES",THAME E&A HOME,VEHICLE FUEL,25/07/2019,000006544991412,5.98,THAME BP SF CONNECT
OXFORDSHIRE CC,"CHILDRENS, YOUNG PEOPLE AND FAMILIES","	LOOKED AFTER CITY 1",VEHICLE FUEL,25/07/2019,000006544991542,44.54,ASDA PETROL/UPT
OXFORDSHIRE CC,ENVIRONMENT AND ECONOMY,"	WASTE MNGMNT GEN",MATERIALS,25/07/2019,000006544991548,13.53,AMZNMKTPLACE
OXFORDSHIRE CC,ENVIRONMENT AND ECONOMY,"	WASTE MNGMNT GEN",MATERIALS,25/07/2019,000006544991550,18.99,AMAZON.CO.UK MH9K48E74
OXFORDSHIRE CC,"CHILDRENS, YOUNG PEOPLE AND FAMILIES","	MUSIC UNALLOCABLE",CATERING PROVISIONS,25/07/2019,000006544991552,7.03,SUP MAXI
OXFORDSHIRE CC,ENVIRONMENT AND ECONOMY,"	NATURAL ENVIRONMENT",PAYMENTS TO TRANSPORT OPERATORS,25/07/2019,000006544991554,32.00,OXFORD PARKWAY SSTP
OXFORDSHIRE CC,"CHILDRENS, YOUNG PEOPLE AND FAMILIES","	MUSIC UNALLOCABLE",CAR LEASING - PRIVATE RENTALS,25/07/2019,000006544991556,856.20,EURODRIVE
OXFORDSHIRE CC,SOCIAL AND COMMUNITY SERVICES,CSS - OXFORD,CATERING PROVISIONS,25/07/2019,000006544991558,9.00,TESCO STORE 2994
OXFORDSHIRE CC,ENVIRONMENT AND ECONOMY,"	BUSINESS SYST STAFF",HIRE OF EQUIPMENT,25/07/2019,000006544991560,34.99,GEM TOOL HIRE & SALES
OXFORDSHIRE CC,"CHILDRENS, YOUNG PEOPLE AND FAMILIES",THAME E&A HOME,VEHICLE FUEL,25/07/2019,000006544991570,2.81,TESCO PFS 3968
OXFORDSHIRE CC,"CHILDRENS, YOUNG PEOPLE AND FAMILIES","	LEAVING CARE CITY 2",CLOTHING AND UNIFORMS,25/07/2019,000006544991574,16.50,NEXT RETAIL LTD
OXFORDSHIRE CC,SOCIAL AND COMMUNITY SERVICES,"	MTFC",ENTERTAINMENT EXPENSES,25/07/2019,000006544991576,6.40,CINEWORLD
OXFORDSHIRE CC,SOCIAL AND COMMUNITY SERVICES,"	MTFC",ENTERTAINMENT EXPENSES,25/07/2019,000006544991578,8.43,HOLLYWOOD BOWL
OXFORDSHIRE CC,"CHILDRENS, YOUNG PEOPLE AND FAMILIES","	LEAVING CARE NORTH",CATERING PROVISIONS,25/07/2019,000006544991580,10.00,WM MORRISONS STORE
OXFORDSHIRE CC,"CHILDRENS, YOUNG PEOPLE AND FAMILIES","	LEAVING CARE NORTH",MATERIALS,25/07/2019,000006544991582,-14.99,ARGOS RETAIL GROUP
OXFORDSHIRE CC,"CHILDRENS, YOUNG PEOPLE AND FAMILIES","	40 THE MOORS",MATERIALS,25/07/2019,000006544991584,3.99,AMAZON PRIME MH7HQ9E04
OXFORDSHIRE CC,"CHILDRENS, YOUNG PEOPLE AND FAMILIES","	AAC EQUIPMENT",PURCHASE OF IT EQUIPMENT,25/07/2019,000006544991592,6.54,PAYPAL  STRADEFAREA
OXFORDSHIRE CC,"CHILDRENS, YOUNG PEOPLE AND FAMILIES","	EDM",POSTAGE AND DELIVERY,25/07/2019,000006544991594,6.00,POSTOFFICE SELFSERVICE
OXFORDSHIRE CC,ENVIRONMENT AND ECONOMY,"	FLEET OPERATIONS",POSTAGE AND DELIVERY,25/07/2019,000006544991598,16.80,POST OFFICE COUNTER
OXFORDSHIRE CC,"CHILDRENS, YOUNG PEOPLE AND FAMILIES",CNTL EARLY HELP-BRTN,MOTOR IF OWN DAMAGE,25/07/2019,000006544991602,3.49,AMZNMKTPLACE
OXFORDSHIRE CC,"CHILDRENS, YOUNG PEOPLE AND FAMILIES","	LOOKED AFTER CITY 1",HARDWARE AND CROCKERY,25/07/2019,000006544991618,3.00,YARNTON NURSERIES
OXFORDSHIRE CC,"CHILDRENS, YOUNG PEOPLE AND FAMILIES",CNTL EARLY HELP-BRTN,MATERIALS,25/07/2019,000006544991604,2.99,AMZNMKTPLACE
OXFORDSHIRE CC,"CHILDRENS, YOUNG PEOPLE AND FAMILIES",CNTL EARLY HELP-BRTN,MATERIALS,25/07/2019,000006544991606,2.89,AMZNMKTPLACE
OXFORDSHIRE CC,"CHILDRENS, YOUNG PEOPLE AND FAMILIES",CNTL EARLY HELP-BRTN,MATERIALS,25/07/2019,000006544991608,2.65,AMZNMKTPLACE
OXFORDSHIRE CC,"CHILDRENS, YOUNG PEOPLE AND FAMILIES",CNTL EARLY HELP-BRTN,MATERIALS,25/07/2019,000006544991610,11.85,AMZNMKTPLACE
OXFORDSHIRE CC,"CHILDRENS, YOUNG PEOPLE AND FAMILIES",CNTL EARLY HELP-BRTN,OTHER EXPENSES,25/07/2019,000006544991612,228.03,AMZNMKTPLACE
OXFORDSHIRE CC,"CHILDRENS, YOUNG PEOPLE AND FAMILIES",CNTL EARLY HELP-BRTN,MATERIALS,25/07/2019,000006544991614,11.85,AMZNMKTPLACE
OXFORDSHIRE CC,"CHILDRENS, YOUNG PEOPLE AND FAMILIES",CNTL EARLY HELP-BRTN,OTHER EXPENSES,25/07/2019,000006544991616,13.97,AMZNMKTPLACE
OXFORDSHIRE CC,"CHILDRENS, YOUNG PEOPLE AND FAMILIES","	40 THE MOORS",PAYMENT TO GOVERNMENT DEPARTMENTS,25/07/2019,000006544991626,13.00,DISCLOSURE & BARRING
OXFORDSHIRE CC,"CHILDRENS, YOUNG PEOPLE AND FAMILIES","	40 THE MOORS",CATERING PROVISIONS,25/07/2019,000006544991628,18.00,SAINSBURYS SACAT 0631
OXFORDSHIRE CC,"CHILDRENS, YOUNG PEOPLE AND FAMILIES","	40 THE MOORS",TELEPHONE - EQUIPMENT,25/07/2019,000006544991630,15.00,WWW.THREE.CO.UK
OXFORDSHIRE CC,"CHILDRENS, YOUNG PEOPLE AND FAMILIES","	40 THE MOORS",CATERING PROVISIONS,25/07/2019,000006544991632,10.00,TESCO STORE 2788
OXFORDSHIRE CC,SOCIAL AND COMMUNITY SERVICES,CSS - BANBURY,CATERING PROVISIONS,25/07/2019,000006544991634,12.25,TESCO STORE 2064
OXFORDSHIRE CC,ENVIRONMENT AND ECONOMY,"	COMMERCIAL MANAGEMEN",HIRE OF ACCOMMODATION AND FACILITIES,25/07/2019,000006544991636,238.50,PREMIER INN
OXFORDSHIRE CC,"CHILDRENS, YOUNG PEOPLE AND FAMILIES",NRPF & HOMELESSNESS,HIRE OF ACCOMMODATION AND FACILITIES,25/07/2019,000006544991638,503.50,TRAVELODGE
OXFORDSHIRE CC,"CHILDRENS, YOUNG PEOPLE AND FAMILIES",DIDCOT MOVE-ON HOME,MATERIALS,25/07/2019,000006544991646,7.98,B & M RETAIL
OXFORDSHIRE CC,"CHILDRENS, YOUNG PEOPLE AND FAMILIES",DIDCOT MOVE-ON HOME,CATERING PROVISIONS,25/07/2019,000006544991644,24.55,TESCO STORE 2413
OXFORDSHIRE CC,"CHILDRENS, YOUNG PEOPLE AND FAMILIES","	LEAVING CARE CITY 2",OTHER TRANSPORT ARRANGEMENTS,25/07/2019,000006544991660,64.20,GWR OXFORD TO
OXFORDSHIRE CC,"CHILDRENS, YOUNG PEOPLE AND FAMILIES","	LEAVING CARE CITY 2",OTHER EXPENSES,25/07/2019,000006544991662,5.29,MCDONALDS
OXFORDSHIRE CC,"CHILDRENS, YOUNG PEOPLE AND FAMILIES","	40 THE MOORS",CATERING PROVISIONS,25/07/2019,000006544991664,232.00,SAINSBURYS (2243)
OXFORDSHIRE CC,"CHILDRENS, YOUNG PEOPLE AND FAMILIES","	40 THE MOORS",ENTERTAINMENT EXPENSES,25/07/2019,000006544991666,5.90,COTSWOLD WILDLIFE PARK
OXFORDSHIRE CC,"CHILDRENS, YOUNG PEOPLE AND FAMILIES","	40 THE MOORS",ENTERTAINMENT EXPENSES,25/07/2019,000006544991668,42.50,COTSWOLD WILDLIFE PARK
OXFORDSHIRE CC,"CHILDRENS, YOUNG PEOPLE AND FAMILIES",WITNEY,DRUGS AND MEDICAL SUPPLIES,25/07/2019,000006544991414,3.99,LLOYDS PHARMACY
OXFORDSHIRE CC,"CHILDRENS, YOUNG PEOPLE AND FAMILIES","	LOOKED AFTER CITY 1",HIRE OF ACCOMMODATION AND FACILITIES,25/07/2019,000006544991434,65.00,KEY INNS LTD
OXFORDSHIRE CC,ENVIRONMENT AND ECONOMY,HARD FM,EQUIPMENT,25/07/2019,000006544991436,5.40,WILTS ELECTRICAL
OXFORDSHIRE CC,ENVIRONMENT AND ECONOMY,HARD FM,HARDWARE AND CROCKERY,25/07/2019,000006544991438,125.98,SCREWFIX BANBURY
OXFORDSHIRE CC,ENVIRONMENT AND ECONOMY,HARD FM,"SUPPLIES, STATIONERY AND MATERIALS",25/07/2019,000006544991440,160.74,O HEAP & SON (DERBY) L
OXFORDSHIRE CC,ENVIRONMENT AND ECONOMY,HARD FM,HARDWARE AND CROCKERY,25/07/2019,000006544991442,34.27,SCREWFIX OXFORD BOTLEY
OXFORDSHIRE CC,ENVIRONMENT AND ECONOMY,HARD FM,EQUIPMENT,25/07/2019,000006544991444,10.73,WILTS ELECTRICAL
OXFORDSHIRE CC,ENVIRONMENT AND ECONOMY,HARD FM,EQUIPMENT,25/07/2019,000006544991446,46.27,WILTS ELECTRICAL
OXFORDSHIRE CC,"CHILDRENS, YOUNG PEOPLE AND FAMILIES",EYNSHAM,DAY ACTIVITIES,25/07/2019,000006544991456,3.75,THE BOX OF DELIGHTS
OXFORDSHIRE CC,"CHILDRENS, YOUNG PEOPLE AND FAMILIES",THAME E&A HOME,VEHICLE FUEL,25/07/2019,000006544991448,13.00,THAME BP SF CONNECT
OXFORDSHIRE CC,"CHILDRENS, YOUNG PEOPLE AND FAMILIES",THAME E&A HOME,MATERIALS,25/07/2019,000006544991450,17.48,AMZNMKTPLACE AMAZON.CO
OXFORDSHIRE CC,"CHILDRENS, YOUNG PEOPLE AND FAMILIES","	LEAVING CARE NORTH",PAYMENT TO GOVERNMENT DEPARTMENTS,25/07/2019,000006544991452,20.00,DVLA DRIVER ONLINE
OXFORDSHIRE CC,SOCIAL AND COMMUNITY SERVICES,CSS BICESTER,CATERING PROVISIONS,25/07/2019,000006544991454,2.00,ICELAND
OXFORDSHIRE CC,"CHILDRENS, YOUNG PEOPLE AND FAMILIES","	FAM SUPP SOUTH",MOTOR IF OWN DAMAGE,25/07/2019,000006544991480,46.00,WWW.ULTIMATEACTIVITY.C
OXFORDSHIRE CC,"CHILDRENS, YOUNG PEOPLE AND FAMILIES",THAME E&A HOME,CATERING PROVISIONS,25/07/2019,000006544991464,20.70,SAINSBURYS 2096
OXFORDSHIRE CC,SOCIAL AND COMMUNITY SERVICES,SERVICE IMPROVEMENT,CATERING PROVISIONS,25/07/2019,000006544991466,10.49,TESCO STORE 2413
OXFORDSHIRE CC,"CHILDRENS, YOUNG PEOPLE AND FAMILIES","	RIVERSIDE CENTRE",CATERING PROVISIONS,25/07/2019,000006544991468,2.63,TESCO STORE 2885
OXFORDSHIRE CC,"CHILDRENS, YOUNG PEOPLE AND FAMILIES","	RIVERSIDE CENTRE",CATERING,25/07/2019,000006544991470,15.47,MCDONALDS
OXFORDSHIRE CC,"CHILDRENS, YOUNG PEOPLE AND FAMILIES",THAME E&A HOME,MATERIALS,25/07/2019,000006544991472,18.57,B&M RETAIL
OXFORDSHIRE CC,"CHILDRENS, YOUNG PEOPLE AND FAMILIES",CNTL EARLY HELP-RHIL,NON-STAFF SUBSISTENCE AND EXPENSES,25/07/2019,000006544991478,19.50,WWW.CURZONCINEMAS.COM
OXFORDSHIRE CC,ENVIRONMENT AND ECONOMY,AREA OPERATIONS SOUTH STAFF,HARDWARE AND CROCKERY,25/07/2019,000006544991484,461.04,WWW.ASPLI.COM
OXFORDSHIRE CC,"CHILDRENS, YOUNG PEOPLE AND FAMILIES","	LOOKED AFTER CITY 1",OTHER TRANSPORT ARRANGEMENTS,25/07/2019,000006544991490,114.75,WWW.THEKEY.CO.UK
OXFORDSHIRE CC,"CHILDRENS, YOUNG PEOPLE AND FAMILIES",NORTH FSS- BANBURY,REGISTRATION AND INSPECTION FEES,25/07/2019,000006544991492,1.90,PAYPAL  ROYAL MAIL
OXFORDSHIRE CC,"CHILDRENS, YOUNG PEOPLE AND FAMILIES","	MUSIC UNALLOCABLE",CAR LEASING - PRIVATE RENTALS,25/07/2019,000006544991504,267.30,EURODRIVE
OXFORDSHIRE CC,SOCIAL AND COMMUNITY SERVICES,SCHOOLS FM,CATERING PROVISIONS,25/07/2019,000006544991494,9.10,TESCO STORES 2008
OXFORDSHIRE CC,"CHILDRENS, YOUNG PEOPLE AND FAMILIES",CNTL ERLY HELP-BBLEY,CATERING PROVISIONS,25/07/2019,000006544991496,51.98,LIDL GB OXFORD
OXFORDSHIRE CC,"CHILDRENS, YOUNG PEOPLE AND FAMILIES",CNTL ERLY HELP-BBLEY,MATERIALS,25/07/2019,000006544991498,89.97,DECATHLON UK LTD
OXFORDSHIRE CC,"CHILDRENS, YOUNG PEOPLE AND FAMILIES",EYNSHAM,CATERING PROVISIONS,25/07/2019,000006544991500,23.20,SAINSBURYS SACAT 0632
OXFORDSHIRE CC,"CHILDRENS, YOUNG PEOPLE AND FAMILIES",EYNSHAM,CATERING PROVISIONS,25/07/2019,000006544991502,8.95,SAINSBURYS SACAT 0632
OXFORDSHIRE CC,ENVIRONMENT AND ECONOMY,THE RIDGEWAY,CATERING,25/07/2019,000006544991508,7.70,RED LION HOTEL
OXFORDSHIRE CC,ENVIRONMENT AND ECONOMY,THE RIDGEWAY,CATERING,25/07/2019,000006544991510,2.55,RED LION HOTEL
OXFORDSHIRE CC,"CHILDRENS, YOUNG PEOPLE AND FAMILIES","	FAMILY SUPPORT S'TH2",DAY ACTIVITIES,25/07/2019,000006544991512,121.00,WWW.ULTIMATEACTIVITY.C
OXFORDSHIRE CC,"CHILDRENS, YOUNG PEOPLE AND FAMILIES","	FAMILY SUPPORT S'TH2",DAY ACTIVITIES,25/07/2019,000006544991514,500.00,WWW.ULTIMATEACTIVITY.C
OXFORDSHIRE CC,CORPORATE CORE,REGISTRAR,POSTAGE AND DELIVERY,25/07/2019,000006544991516,63.96,POST OFFICE COUNTER
OXFORDSHIRE CC,"CHILDRENS, YOUNG PEOPLE AND FAMILIES",DEPUTY DIRECTOR &MAN,CATERING PROVISIONS,25/07/2019,000006544991518,27.76,MARKS&SPENCER PLC
OXFORDSHIRE CC,SOCIAL AND COMMUNITY SERVICES,CSS - OXFORD,MATERIALS,25/07/2019,000006544991538,25.98,AMZNMKTPLACE AMAZON.CO
OXFORDSHIRE CC,SOCIAL AND COMMUNITY SERVICES,CSS - OXFORD,MATERIALS,25/07/2019,000006544991540,8.95,AMZNMKTPLACE AMAZON.CO
OXFORDSHIRE CC,SOCIAL AND COMMUNITY SERVICES,CSS - OXFORD,CATERING PROVISIONS,24/07/2019,000006540035842,38.63,ALDI STORES 775-142
OXFORDSHIRE CC,SOCIAL AND COMMUNITY SERVICES,CSS BICESTER,CATERING PROVISIONS,24/07/2019,000006540035856,6.10,ICELAND
OXFORDSHIRE CC,SOCIAL AND COMMUNITY SERVICES,CSS - OXFORD,CATERING PROVISIONS,24/07/2019,000006540035864,.99,ALDI STORES 775-142
OXFORDSHIRE CC,ENTERPRISEVC,,CAR LEASING - PRIVATE RENTALS,24/07/2019,000006540036792,132.78,ENTERPRISE RENT-A-CAR
OXFORDSHIRE CC,ENTERPRISEVC,,CAR LEASING - PRIVATE RENTALS,24/07/2019,000006540036796,155.93,ENTERPRISE RENT-A-CAR
OXFORDSHIRE CC,ENTERPRISEVC,,CAR LEASING - PRIVATE RENTALS,24/07/2019,000006540036800,118.85,ENTERPRISE RENT-A-CAR
OXFORDSHIRE CC,ENTERPRISEVC,,CAR LEASING - PRIVATE RENTALS,24/07/2019,000006540036804,26.16,ENTERPRISE RENT-A-CAR
OXFORDSHIRE CC,ENTERPRISEVC,,CAR LEASING - PRIVATE RENTALS,24/07/2019,000006540036834,75.43,ENTERPRISE RENT-A-CAR
OXFORDSHIRE CC,ENTERPRISEVC,,CAR LEASING - PRIVATE RENTALS,24/07/2019,000006540036808,80.16,ENTERPRISE RENT-A-CAR
OXFORDSHIRE CC,ENTERPRISEVC,,CAR LEASING - PRIVATE RENTALS,24/07/2019,000006540036812,52.32,ENTERPRISE RENT-A-CAR
OXFORDSHIRE CC,ENTERPRISEVC,,CAR LEASING - PRIVATE RENTALS,24/07/2019,000006540036816,97.72,ENTERPRISE RENT-A-CAR
OXFORDSHIRE CC,ENTERPRISEVC,,CAR LEASING - PRIVATE RENTALS,24/07/2019,000006540036820,69.12,ENTERPRISE RENT-A-CAR
OXFORDSHIRE CC,ENTERPRISEVC,,CAR LEASING - PRIVATE RENTALS,24/07/2019,000006540036824,62.08,ENTERPRISE RENT-A-CAR
OXFORDSHIRE CC,ENTERPRISEVC,,CAR LEASING - PRIVATE RENTALS,24/07/2019,000006540036826,26.16,ENTERPRISE RENT-A-CAR
OXFORDSHIRE CC,SOCIAL AND COMMUNITY SERVICES,CSS - OXFORD,MATERIALS,24/07/2019,000006540035868,11.90,ALDI STORES 775-142
OXFORDSHIRE CC,SOCIAL AND COMMUNITY SERVICES,SAFEGUARDING-OPERATIONAL MANAGERS,MATERIALS,24/07/2019,000006540035876,20.28,AMZNMKTPLACE AMAZON.CO
OXFORDSHIRE CC,SOCIAL AND COMMUNITY SERVICES,ADULT SERVICES IMPROVEMENT BOARD,CATERING PROVISIONS,24/07/2019,000006540035878,4.80,TESCO STORE 2413
OXFORDSHIRE CC,CORPORATE CORE,REGISTRAR,FURNITURE,24/07/2019,000006540035890,25.99,AMZNMKTPLACE
OXFORDSHIRE CC,SOCIAL AND COMMUNITY SERVICES,CSS WALLINGFORD,CATERING PROVISIONS,24/07/2019,000006540035894,12.49,WAITROSE 675
OXFORDSHIRE CC,ENTERPRISEVC,,CAR LEASING - PRIVATE RENTALS,24/07/2019,000006540036840,95.93,ENTERPRISE RENT-A-CAR
OXFORDSHIRE CC,ENTERPRISEVC,,CAR LEASING - PRIVATE RENTALS,24/07/2019,000006540036844,525.07,ENTERPRISE RENT-A-CAR
OXFORDSHIRE CC,ENTERPRISEVC,,CAR LEASING - PRIVATE RENTALS,24/07/2019,000006540036848,90.70,ENTERPRISE RENT-A-CAR
OXFORDSHIRE CC,"CHILDRENS, YOUNG PEOPLE AND FAMILIES","	LOOKED AFTER SOUTH",PAYMENTS TO TRANSPORT OPERATORS,24/07/2019,000006540036852,21.52,TRAINLINE.COM
OXFORDSHIRE CC,"CHILDRENS, YOUNG PEOPLE AND FAMILIES","	LOOKED AFTER SOUTH",CATERING,24/07/2019,000006540036856,3.75,COSTA COFFEE 43035985
OXFORDSHIRE CC,"CHILDRENS, YOUNG PEOPLE AND FAMILIES","	RIVERSIDE CENTRE",FURNITURE,24/07/2019,000006540036884,319.20,WWW.OFFICEFURNITUREONL
OXFORDSHIRE CC,ENTERPRISEVC,OTFC TEAM,CATERING PROVISIONS,24/07/2019,000006540035934,7.25,SAINSBURYS SACAT 0600
OXFORDSHIRE CC,ENTERPRISEVC,OTFC TEAM,CATERING PROVISIONS,24/07/2019,000006540035938,5.75,SAINSBURYS 0600
OXFORDSHIRE CC,"CHILDRENS, YOUNG PEOPLE AND FAMILIES",DIDCOT MOVE-ON HOME,CATERING PROVISIONS,24/07/2019,000006540035946,10.13,ICELAND
OXFORDSHIRE CC,"CHILDRENS, YOUNG PEOPLE AND FAMILIES","	LOOKED AFTER CITY 1",CATERING PROVISIONS,24/07/2019,000006540035950,20.00,TESCO STORES 4480
OXFORDSHIRE CC,"CHILDRENS, YOUNG PEOPLE AND FAMILIES","	LOOKED AFTER CITY 1",PAYMENT TO GOVERNMENT DEPARTMENTS,24/07/2019,000006540035956,172.00,LBBRENT HOTLINE PAYMEN
OXFORDSHIRE CC,"CHILDRENS, YOUNG PEOPLE AND FAMILIES",NORTH FSS- BANBURY,CATERING PROVISIONS,24/07/2019,000006540035960,38.46,ALDI 10 775
OXFORDSHIRE CC,"CHILDRENS, YOUNG PEOPLE AND FAMILIES",THAME E&A HOME,ENTERTAINMENT EXPENSES,24/07/2019,000006540035964,5.74,HOLLYWOOD BOWL
OXFORDSHIRE CC,"CHILDRENS, YOUNG PEOPLE AND FAMILIES",THAME E&A HOME,ENTERTAINMENT EXPENSES,24/07/2019,000006540035972,15.38,HOLLYWOOD BOWL
OXFORDSHIRE CC,"CHILDRENS, YOUNG PEOPLE AND FAMILIES",UASC 16&17,CATERING PROVISIONS,24/07/2019,000006540035976,13.80,SAINSBURYS SAC2305SAC
OXFORDSHIRE CC,"CHILDRENS, YOUNG PEOPLE AND FAMILIES",UASC 16&17,OTHER EXPENSES,24/07/2019,000006540035978,15.00,ASDA STORE 4442
OXFORDSHIRE CC,"CHILDRENS, YOUNG PEOPLE AND FAMILIES",MEMBERS ALLOWANCES,MOTOR IF OWN DAMAGE,24/07/2019,000006540035980,495.00,EURODRIVE
OXFORDSHIRE CC,"CHILDRENS, YOUNG PEOPLE AND FAMILIES","	RIVERSIDE CENTRE",HARDWARE AND CROCKERY,24/07/2019,000006540036888,29.98,AWBS
OXFORDSHIRE CC,CORPORATE CORE,MOTOR FLEET,MOTOR IF FEES,24/07/2019,000006540036630,4.50,WWW.MIB.ORG.UK
OXFORDSHIRE CC,SOCIAL AND COMMUNITY SERVICES,LOOKED AFTER NORTH,HIRE OF ACCOMMODATION AND FACILITIES,24/07/2019,000006540036636,149.50,TRAVELODGE
OXFORDSHIRE CC,CORPORATE CORE,,"SUPPLIES, STATIONERY AND MATERIALS",24/07/2019,000006540036642,33.01,LYRECO UK LTD
OXFORDSHIRE CC,CORPORATE CORE,,"SUPPLIES, STATIONERY AND MATERIALS",24/07/2019,000006540036646,347.66,LYRECO UK LTD
OXFORDSHIRE CC,"CHILDRENS, YOUNG PEOPLE AND FAMILIES","	NCS",MATERIALS,24/07/2019,000006540036674,25.60,AMZNMKTPLACE
OXFORDSHIRE CC,"CHILDRENS, YOUNG PEOPLE AND FAMILIES","	NCS",CATERING PROVISIONS,24/07/2019,000006540036678,229.83,TESCO STORES 2008
OXFORDSHIRE CC,"CHILDRENS, YOUNG PEOPLE AND FAMILIES","	NCS",TELEPHONE - EQUIPMENT,24/07/2019,000006540036686,6.00,GIFFGAFF
OXFORDSHIRE CC,ENVIRONMENT AND ECONOMY,"	SAMUELSON HOUSE",CATERING PROVISIONS,24/07/2019,000006540036692,4.36,WM MORRISONS STORE
OXFORDSHIRE CC,"CHILDRENS, YOUNG PEOPLE AND FAMILIES",FAMILY SUPPORT 2,PAYMENTS TO TRANSPORT OPERATORS,24/07/2019,000006540036698,10.15,WWW.GWR.COM
OXFORDSHIRE CC,ENTERPRISEVC,,CAR LEASING - PRIVATE RENTALS,24/07/2019,000006540036702,116.56,ENTERPRISE RENT-A-CAR
OXFORDSHIRE CC,SOCIAL AND COMMUNITY SERVICES,CO PRODUCTION WORK,CATERING PROVISIONS,24/07/2019,000006540035720,28.89,SAINSBURYS SACAT 0730
OXFORDSHIRE CC,SOCIAL AND COMMUNITY SERVICES,CO PRODUCTION WORK,CATERING PROVISIONS,24/07/2019,000006540035724,7.43,SAINSBURYS SACAT 0730
OXFORDSHIRE CC,"CHILDRENS, YOUNG PEOPLE AND FAMILIES",THAME E&A HOME,CATERING,24/07/2019,000006540035726,12.60,BOSWELLS COFFEE COMPAN
OXFORDSHIRE CC,"CHILDRENS, YOUNG PEOPLE AND FAMILIES",THAME E&A HOME,CATERING PROVISIONS,24/07/2019,000006540035728,42.51,TESCO STORES 6748
OXFORDSHIRE CC,"CHILDRENS, YOUNG PEOPLE AND FAMILIES",WITNEY,CATERING PROVISIONS,24/07/2019,000006540035730,8.10,SAINSBURYS SACAT 0632
OXFORDSHIRE CC,"CHILDRENS, YOUNG PEOPLE AND FAMILIES",WITNEY,CATERING PROVISIONS,24/07/2019,000006540035732,7.25,SAINSBURYS SACAT 0632
OXFORDSHIRE CC,ENTERPRISEVC,,CAR LEASING - PRIVATE RENTALS,24/07/2019,000006540036706,125.57,ENTERPRISE RENT-A-CAR
OXFORDSHIRE CC,ENTERPRISEVC,,CAR LEASING - PRIVATE RENTALS,24/07/2019,000006540036710,49.78,ENTERPRISE RENT-A-CAR
OXFORDSHIRE CC,ENTERPRISEVC,,CAR LEASING - PRIVATE RENTALS,24/07/2019,000006540036714,88.45,ENTERPRISE RENT-A-CAR
OXFORDSHIRE CC,ENTERPRISEVC,,CAR LEASING - PRIVATE RENTALS,24/07/2019,000006540036716,43.18,ENTERPRISE RENT-A-CAR
OXFORDSHIRE CC,ENTERPRISEVC,,CAR LEASING - PRIVATE RENTALS,24/07/2019,000006540036724,46.12,ENTERPRISE RENT-A-CAR
OXFORDSHIRE CC,ENTERPRISEVC,,CAR LEASING - PRIVATE RENTALS,24/07/2019,000006540036730,61.15,ENTERPRISE RENT-A-CAR
OXFORDSHIRE CC,ENTERPRISEVC,,CAR LEASING - PRIVATE RENTALS,24/07/2019,000006540036734,94.33,ENTERPRISE RENT-A-CAR
OXFORDSHIRE CC,ENTERPRISEVC,,CAR LEASING - PRIVATE RENTALS,24/07/2019,000006540036740,34.78,ENTERPRISE RENT-A-CAR
OXFORDSHIRE CC,ENTERPRISEVC,,CAR LEASING - PRIVATE RENTALS,24/07/2019,000006540036742,170.68,ENTERPRISE RENT-A-CAR
OXFORDSHIRE CC,ENTERPRISEVC,,CAR LEASING - PRIVATE RENTALS,24/07/2019,000006540036746,69.12,ENTERPRISE RENT-A-CAR
OXFORDSHIRE CC,ENTERPRISEVC,,CAR LEASING - PRIVATE RENTALS,24/07/2019,000006540036750,43.18,ENTERPRISE RENT-A-CAR
OXFORDSHIRE CC,"CHILDRENS, YOUNG PEOPLE AND FAMILIES","	NCS",TELEPHONE - EQUIPMENT,24/07/2019,000006540035740,6.00,GIFFGAFF
OXFORDSHIRE CC,"CHILDRENS, YOUNG PEOPLE AND FAMILIES",WITNEY,HARDWARE AND CROCKERY,24/07/2019,000006540035734,24.71,B & Q 1176
OXFORDSHIRE CC,"CHILDRENS, YOUNG PEOPLE AND FAMILIES","	NCS",TELEPHONE - EQUIPMENT,24/07/2019,000006540035748,6.00,GIFFGAFF
OXFORDSHIRE CC,"CHILDRENS, YOUNG PEOPLE AND FAMILIES","	NCS",TELEPHONE - EQUIPMENT,24/07/2019,000006540035750,6.00,GIFFGAFF
OXFORDSHIRE CC,"CHILDRENS, YOUNG PEOPLE AND FAMILIES","	NCS",CATERING,24/07/2019,000006540035752,105.78,BOOKER LIMITED OXFORD
OXFORDSHIRE CC,"CHILDRENS, YOUNG PEOPLE AND FAMILIES","	NCS",TELEPHONE - EQUIPMENT,24/07/2019,000006540035754,6.00,GIFFGAFF
OXFORDSHIRE CC,ENVIRONMENT AND ECONOMY,HARD FM,GENERAL MAINTENANCE,24/07/2019,000006540035760,131.36,WOLSELEY UK
OXFORDSHIRE CC,ENVIRONMENT AND ECONOMY,HARD FM,HARDWARE AND CROCKERY,24/07/2019,000006540035768,41.66,BUILDBASE - WANTAGE
OXFORDSHIRE CC,ENVIRONMENT AND ECONOMY,HARD FM,HARDWARE AND CROCKERY,24/07/2019,000006540035772,41.82,JEWSON LTD
OXFORDSHIRE CC,ENVIRONMENT AND ECONOMY,HARD FM,HARDWARE AND CROCKERY,24/07/2019,000006540035778,6.13,SCREWFIX OXFORD
OXFORDSHIRE CC,ENVIRONMENT AND ECONOMY,HARD FM,HARDWARE AND CROCKERY,24/07/2019,000006540035784,12.58,SCREWFIX OXFORD
OXFORDSHIRE CC,ENTERPRISEVC,,CAR LEASING - PRIVATE RENTALS,24/07/2019,000006540036754,42.96,ENTERPRISE RENT-A-CAR
OXFORDSHIRE CC,ENTERPRISEVC,,CAR LEASING - PRIVATE RENTALS,24/07/2019,000006540036756,83.83,ENTERPRISE RENT-A-CAR
OXFORDSHIRE CC,ENTERPRISEVC,,CAR LEASING - PRIVATE RENTALS,24/07/2019,000006540036760,152.81,ENTERPRISE RENT-A-CAR
OXFORDSHIRE CC,ENTERPRISEVC,,CAR LEASING - PRIVATE RENTALS,24/07/2019,000006540036762,162.28,ENTERPRISE RENT-A-CAR
OXFORDSHIRE CC,ENTERPRISEVC,,CAR LEASING - PRIVATE RENTALS,24/07/2019,000006540036764,30.05,ENTERPRISE RENT-A-CAR
OXFORDSHIRE CC,ENTERPRISEVC,,CAR LEASING - PRIVATE RENTALS,24/07/2019,000006540036768,101.28,ENTERPRISE RENT-A-CAR
OXFORDSHIRE CC,ENTERPRISEVC,,CAR LEASING - PRIVATE RENTALS,24/07/2019,000006540036772,83.03,ENTERPRISE RENT-A-CAR
OXFORDSHIRE CC,ENTERPRISEVC,,CAR LEASING - PRIVATE RENTALS,24/07/2019,000006540036774,43.18,ENTERPRISE RENT-A-CAR
OXFORDSHIRE CC,ENTERPRISEVC,,CAR LEASING - PRIVATE RENTALS,24/07/2019,000006540036778,65.02,ENTERPRISE RENT-A-CAR
OXFORDSHIRE CC,ENTERPRISEVC,,CAR LEASING - PRIVATE RENTALS,24/07/2019,000006540036784,120.12,ENTERPRISE RENT-A-CAR
OXFORDSHIRE CC,ENTERPRISEVC,,CAR LEASING - PRIVATE RENTALS,24/07/2019,000006540036788,43.18,ENTERPRISE RENT-A-CAR
OXFORDSHIRE CC,ENVIRONMENT AND ECONOMY,HARD FM,FURNITURE,24/07/2019,000006540035788,159.65,IDEAL STANDARD INT
OXFORDSHIRE CC,ENVIRONMENT AND ECONOMY,HARD FM,MATERIALS,24/07/2019,000006540035792,9.00,AMZNMKTPLACE AMAZON.CO
OXFORDSHIRE CC,ENVIRONMENT AND ECONOMY,HARD FM,HARDWARE AND CROCKERY,24/07/2019,000006540035796,35.51,SCREWFIX WITNEY
OXFORDSHIRE CC,"CHILDRENS, YOUNG PEOPLE AND FAMILIES",THAME E&A HOME,CATERING PROVISIONS,24/07/2019,000006540035808,32.90,SAINSBURYS 2096
OXFORDSHIRE CC,"CHILDRENS, YOUNG PEOPLE AND FAMILIES",THAME E&A HOME,MATERIALS,24/07/2019,000006540035816,39.37,AMZNMKTPLACE AMAZON.CO
OXFORDSHIRE CC,ENVIRONMENT AND ECONOMY,COUNTY LIBRARY,GENERAL MAINTENANCE,24/07/2019,000006540035826,67.58,WOLSELEY UK
OXFORDSHIRE CC,"CHILDRENS, YOUNG PEOPLE AND FAMILIES","	LEAVING CARE NORTH",CATERING,24/07/2019,000006540035834,6.80,STARBUCKS
OXFORDSHIRE CC,"CHILDRENS, YOUNG PEOPLE AND FAMILIES","	LEAVING CARE NORTH",PAYMENTS TO TRANSPORT OPERATORS,24/07/2019,000006540035838,142.80,BANBURY STATION T/O
OXFORDSHIRE CC,"CHILDRENS, YOUNG PEOPLE AND FAMILIES",NTH EARLY HELP-WITNY,VEHICLES REPAIRS AND MAINTENANCE,24/07/2019,000006540036338,258.00,J S VAN HIRE LTD
OXFORDSHIRE CC,"CHILDRENS, YOUNG PEOPLE AND FAMILIES",CNTL EARLY HELP-BRTN,CATERING,24/07/2019,000006540036362,9.05,SANGHERA SUPERMARKET L
OXFORDSHIRE CC,"CHILDRENS, YOUNG PEOPLE AND FAMILIES","	FAMILY SUPPORT CITY3",PAYMENT TO GOVERNMENT DEPARTMENTS,24/07/2019,000006540036366,242.50,GEN REGISTER OFFICE
OXFORDSHIRE CC,"CHILDRENS, YOUNG PEOPLE AND FAMILIES",CNTL EARLY HELP-BRTN,OTHER TRANSPORT ARRANGEMENTS,24/07/2019,000006540036374,28.00,OXFORD BUS COMPANY
OXFORDSHIRE CC,"CHILDRENS, YOUNG PEOPLE AND FAMILIES","	40 THE MOORS",OTHER TRANSPORT ARRANGEMENTS,24/07/2019,000006540036410,28.00,SUMUP   001
OXFORDSHIRE CC,"CHILDRENS, YOUNG PEOPLE AND FAMILIES","	40 THE MOORS",OTHER TRANSPORT ARRANGEMENTS,24/07/2019,000006540036414,25.55,IZ  OXFORDSHIRE TAXIS
OXFORDSHIRE CC,"CHILDRENS, YOUNG PEOPLE AND FAMILIES","	40 THE MOORS",TELEPHONE - EQUIPMENT,24/07/2019,000006540036418,5.00,WWW.THREE.CO.UK
OXFORDSHIRE CC,"CHILDRENS, YOUNG PEOPLE AND FAMILIES","	40 THE MOORS",CATERING,24/07/2019,000006540036422,12.99,DOMINOS PIZZA UK & IRE
OXFORDSHIRE CC,"CHILDRENS, YOUNG PEOPLE AND FAMILIES","	40 THE MOORS",CATERING,24/07/2019,000006540036426,86.80,MAYFLOWER RESTAURANT
OXFORDSHIRE CC,SOCIAL AND COMMUNITY SERVICES,CSS - BANBURY,MOTOR IF OWN DAMAGE,24/07/2019,000006540036432,99.97,ACTIVE MINDS
OXFORDSHIRE CC,"CHILDRENS, YOUNG PEOPLE AND FAMILIES",DIDCOT MOVE-ON HOME,MATERIALS,24/07/2019,000006540036474,74.97,ROBERT DYAS HOLDNG LTD
OXFORDSHIRE CC,"CHILDRENS, YOUNG PEOPLE AND FAMILIES",DIDCOT MOVE-ON HOME,CATERING PROVISIONS,24/07/2019,000006540036478,12.05,SAINSBURYS SACAT 2067
OXFORDSHIRE CC,"CHILDRENS, YOUNG PEOPLE AND FAMILIES",0-5 STDS & PROGRESS,"SUPPLIES, STATIONERY AND MATERIALS",24/07/2019,000006540036500,29.49,AMZNMKTPLACE
OXFORDSHIRE CC,"CHILDRENS, YOUNG PEOPLE AND FAMILIES",BULLINGDON PRISON,"BOOKS, DVDS AND CDS",24/07/2019,000006540036574,22.99,COLES BOOK STORE
OXFORDSHIRE CC,"CHILDRENS, YOUNG PEOPLE AND FAMILIES","	MUSIC UNALLOCABLE","BOOKS, DVDS AND CDS",24/07/2019,000006540036580,.79,ITUNES.COM/BILL
OXFORDSHIRE CC,SOCIAL AND COMMUNITY SERVICES,COMMISSIONING ADMIN,MATERIALS,24/07/2019,000006540036586,23.96,AMZNMKTPLACE AMAZON.CO
OXFORDSHIRE CC,"CHILDRENS, YOUNG PEOPLE AND FAMILIES","	LOOKED AFTER NORTH",REGISTRATION AND INSPECTION FEES,24/07/2019,000006540036590,11.00,OXFORDSHIRE CC MOTO1
OXFORDSHIRE CC,"CHILDRENS, YOUNG PEOPLE AND FAMILIES","	40 THE MOORS",CATERING PROVISIONS,24/07/2019,000006540036596,37.86,ASDA GROCERIES ONLINE
OXFORDSHIRE CC,"CHILDRENS, YOUNG PEOPLE AND FAMILIES","	LEAVING CARE SOUTH",CATERING,24/07/2019,000006540036602,7.19,MCDONALDS
OXFORDSHIRE CC,"CHILDRENS, YOUNG PEOPLE AND FAMILIES",CSS WALLINGFORD,CATERING PROVISIONS,24/07/2019,000006540035652,13.65,WAITROSE 675
OXFORDSHIRE CC,"CHILDRENS, YOUNG PEOPLE AND FAMILIES","	FAMILY SUPPORT S'TH2",PAYMENTS TO TRANSPORT OPERATORS,24/07/2019,000006540035658,186.25,WWW.GWR.COM
OXFORDSHIRE CC,"CHILDRENS, YOUNG PEOPLE AND FAMILIES",STH EARLY HELP-ABNDN,DAY ACTIVITIES,24/07/2019,000006540035664,41.90,WWW.GETACTIVESPORTS.CO
OXFORDSHIRE CC,"CHILDRENS, YOUNG PEOPLE AND FAMILIES",THAME E&A HOME,MATERIALS,24/07/2019,000006540035670,22.49,AMAZON.CO.UK MH9LZ8E64
OXFORDSHIRE CC,SOCIAL AND COMMUNITY SERVICES,LOOKED AFTER NORTH,MATERIALS,24/07/2019,000006540035676,449.96,WWW.ARGOS.CO.UK
OXFORDSHIRE CC,"CHILDRENS, YOUNG PEOPLE AND FAMILIES",EYNSHAM,CATERING PROVISIONS,24/07/2019,000006540036618,109.12,TESCO STORES 2008
OXFORDSHIRE CC,"CHILDRENS, YOUNG PEOPLE AND FAMILIES","	LOOKED AFTER CITY 1",REGISTRATION AND INSPECTION FEES,24/07/2019,000006540035992,11.00,OXFORDSHIRE CC MOTO1
OXFORDSHIRE CC,"CHILDRENS, YOUNG PEOPLE AND FAMILIES","	LOOKED AFTER CITY 2",REGISTRATION AND INSPECTION FEES,24/07/2019,000006540035994,-11.00,OXFORDSHIRE CC MOTO1
OXFORDSHIRE CC,"CHILDRENS, YOUNG PEOPLE AND FAMILIES","	FAM GRP CONFERENCES",CATERING,24/07/2019,000006540035996,26.43,TESCO STORES 2008
OXFORDSHIRE CC,CORPORATE CORE,HOLTON SITE,PROFESSIONAL SUBSCRIPTIONS,24/07/2019,000006540036004,5.95,VEHICLEINFORMATION.UK
OXFORDSHIRE CC,"CHILDRENS, YOUNG PEOPLE AND FAMILIES",NTH EARLY HELP-BCSTR,PAYMENT TO GOVERNMENT DEPARTMENTS,24/07/2019,000006540036006,13.00,WANDSWORTH COUNCIL
OXFORDSHIRE CC,"CHILDRENS, YOUNG PEOPLE AND FAMILIES",NTH EARLY HELP-BCSTR,REGISTRATION AND INSPECTION FEES,24/07/2019,000006540036008,24.95,PAYPAL  CERTIFICATE
OXFORDSHIRE CC,"CHILDRENS, YOUNG PEOPLE AND FAMILIES",NTH EARLY HELP-BCSTR,REGISTRATION AND INSPECTION FEES,24/07/2019,000006540036012,24.95,PAYPAL  CERTIFICATE
OXFORDSHIRE CC,"CHILDRENS, YOUNG PEOPLE AND FAMILIES",NTH EARLY HELP-BCSTR,PAYMENT TO GOVERNMENT DEPARTMENTS,24/07/2019,000006540036016,22.00,NCC INCOME
OXFORDSHIRE CC,"CHILDRENS, YOUNG PEOPLE AND FAMILIES",NTH EARLY HELP-BCSTR,PAYMENT TO GOVERNMENT DEPARTMENTS,24/07/2019,000006540036020,11.00,NCC INCOME
OXFORDSHIRE CC,"CHILDRENS, YOUNG PEOPLE AND FAMILIES",NTH EARLY HELP-BCSTR,REGISTRATION AND INSPECTION FEES,24/07/2019,000006540036024,-24.15,PAYPAL  CERTIFICATE
OXFORDSHIRE CC,"CHILDRENS, YOUNG PEOPLE AND FAMILIES",NTH EARLY HELP-BCSTR,REGISTRATION AND INSPECTION FEES,24/07/2019,000006540036028,-24.15,PAYPAL  CERTIFICATE
OXFORDSHIRE CC,"CHILDRENS, YOUNG PEOPLE AND FAMILIES","	HEARING IMPAIRMENT",POSTAGE AND DELIVERY,24/07/2019,000006540036064,7.40,POST OFFICE COUNTER
OXFORDSHIRE CC,"CHILDRENS, YOUNG PEOPLE AND FAMILIES",C&I BASE CHERWELL,EDUCATIONAL AND VOCATIONAL TRAINING ,24/07/2019,000006540036070,55.00,PAYPAL  THE GSA
OXFORDSHIRE CC,CORPORATE CORE,OPERATIONS,MATERIALS,24/07/2019,000006540036094,7.98,AMZNMKTPLACE
OXFORDSHIRE CC,ENVIRONMENT AND ECONOMY,"	LOWER WINDRUSH PROJ",POSTAGE AND DELIVERY,24/07/2019,000006540036098,3.00,THE POST OFFICE
OXFORDSHIRE CC,"CHILDRENS, YOUNG PEOPLE AND FAMILIES","	LOOKED AFTER CITY 2",PAYMENTS TO TRANSPORT OPERATORS,24/07/2019,000006540036134,6.80,GWR OXFORD SST
OXFORDSHIRE CC,"CHILDRENS, YOUNG PEOPLE AND FAMILIES","	LOOKED AFTER CITY 2",OTHER TRANSPORT ARRANGEMENTS,24/07/2019,000006540036140,6.80,APCOA CONNECT - FGW
OXFORDSHIRE CC,"CHILDRENS, YOUNG PEOPLE AND FAMILIES",THAME E&A HOME,CATERING,24/07/2019,000006540036196,3.60,VINYS CAFE LTD
OXFORDSHIRE CC,CORPORATE CORE,HISTORY SERVICE,FURNITURE,24/07/2019,000006540036202,82.79,AMZNMKTPLACE AMAZON.CO
OXFORDSHIRE CC,CORPORATE CORE,HISTORY SERVICE,CATERING,24/07/2019,000006540036206,64.80,WWW.TRAIDCRAFT.CO.UK
OXFORDSHIRE CC,ENVIRONMENT AND ECONOMY,"	OXFORDSHIRE MUSEUM","BOOKS, DVDS AND CDS",24/07/2019,000006540036210,74.95,WWW.BOYDELLANDBREWER.C
OXFORDSHIRE CC,"CHILDRENS, YOUNG PEOPLE AND FAMILIES","	40 THE MOORS",FURNITURE,24/07/2019,000006540036222,89.97,ARGOS KIDLINGTON INSID
OXFORDSHIRE CC,SOCIAL AND COMMUNITY SERVICES,"	MTFC",CATERING PROVISIONS,24/07/2019,000006540036228,1.00,TESCO STORE 2994
OXFORDSHIRE CC,SOCIAL AND COMMUNITY SERVICES,"	MTFC",CATERING PROVISIONS,24/07/2019,000006540036228,8.19,TESCO STORE 2994
OXFORDSHIRE CC,SOCIAL AND COMMUNITY SERVICES,"	MTFC",ENTERTAINMENT EXPENSES,24/07/2019,000006540036232,13.83,HOLLYWOOD BOWL
OXFORDSHIRE CC,"CHILDRENS, YOUNG PEOPLE AND FAMILIES","	ADOPTION",MOTOR IF OWN DAMAGE,24/07/2019,000006540036242,30.00,RICHARD MATHEWS FL
OXFORDSHIRE CC,"CHILDRENS, YOUNG PEOPLE AND FAMILIES","	40 THE MOORS",OTHER TRANSPORT ARRANGEMENTS,24/07/2019,000006540036268,45.00,PP TAXIJOURNEY -JAFFAR
OXFORDSHIRE CC,SOCIAL AND COMMUNITY SERVICES,CSS WANTAGE,CATERING PROVISIONS,24/07/2019,000006540036298,25.89,TESCO STORES 4338
OXFORDSHIRE CC,"CHILDRENS, YOUNG PEOPLE AND FAMILIES","	LOOKED AFTER NORTH",CATERING,23/07/2019,000006536014734,7.70,HOUSE TWENTY 8
OXFORDSHIRE CC,"CHILDRENS, YOUNG PEOPLE AND FAMILIES",CNTL ERLY HELP-BBLEY,PAYMENTS TO VOLUNTARY BODIES,23/07/2019,000006536014698,162.00,ST JOHN AMBULANCE
OXFORDSHIRE CC,"CHILDRENS, YOUNG PEOPLE AND FAMILIES","	LOOKED AFTER NORTH",CATERING PROVISIONS,23/07/2019,000006536014738,11.82,WM MORRISONS STORE
OXFORDSHIRE CC,"CHILDRENS, YOUNG PEOPLE AND FAMILIES","	LOOKED AFTER CITY 2",OTHER TRANSPORT ARRANGEMENTS,23/07/2019,000006536014702,6.80,GWR OXFORD SST
OXFORDSHIRE CC,"CHILDRENS, YOUNG PEOPLE AND FAMILIES","	LOOKED AFTER CITY 2",OTHER EXPENSES,23/07/2019,000006536014706,3.60,BERRO LOUNGE
OXFORDSHIRE CC,"CHILDRENS, YOUNG PEOPLE AND FAMILIES","	40 THE MOORS",CATERING,23/07/2019,000006536014712,99.40,TIFFINS
OXFORDSHIRE CC,"CHILDRENS, YOUNG PEOPLE AND FAMILIES","	40 THE MOORS",ENTERTAINMENT EXPENSES,23/07/2019,000006536014714,117.45,ATG TICKET WEB
OXFORDSHIRE CC,"CHILDRENS, YOUNG PEOPLE AND FAMILIES","	LEAVING CARE SOUTH",MATERIALS,23/07/2019,000006536014718,49.00,CURRYS ONLINE
OXFORDSHIRE CC,"CHILDRENS, YOUNG PEOPLE AND FAMILIES","	LEAVING CARE SOUTH",MATERIALS,23/07/2019,000006536014720,194.98,ARGOS LTD
OXFORDSHIRE CC,"CHILDRENS, YOUNG PEOPLE AND FAMILIES",THAME E&A HOME,CATERING PROVISIONS,23/07/2019,000006536014722,165.22,SAINSBURYS TO YOU 0600
OXFORDSHIRE CC,SOCIAL AND COMMUNITY SERVICES,CSS - DIDCOT,CATERING PROVISIONS,23/07/2019,000006536013962,5.02,SAVAGES (BLEWBURY) LTD
OXFORDSHIRE CC,"CHILDRENS, YOUNG PEOPLE AND FAMILIES",THAME E&A HOME,MATERIALS,23/07/2019,000006536013972,79.98,SPORTSDIRECT.COM
OXFORDSHIRE CC,"CHILDRENS, YOUNG PEOPLE AND FAMILIES","	SM QUALITY ASSURANCE",PAYMENTS TO TRANSPORT OPERATORS,23/07/2019,000006536013978,52.20,TRAINLINE
OXFORDSHIRE CC,"CHILDRENS, YOUNG PEOPLE AND FAMILIES",THAME E&A HOME,MATERIALS,23/07/2019,000006536013982,5.00,POUNDLAND LTD
OXFORDSHIRE CC,"CHILDRENS, YOUNG PEOPLE AND FAMILIES",THAME E&A HOME,CATERING,23/07/2019,000006536013986,6.95,GREGGS PLC
OXFORDSHIRE CC,"CHILDRENS, YOUNG PEOPLE AND FAMILIES","	LOOKED AFTER CITY 1",OTHER TRANSPORT ARRANGEMENTS,23/07/2019,000006536013992,12.00,RUSKIN SQUARE CAR PARK
OXFORDSHIRE CC,"CHILDRENS, YOUNG PEOPLE AND FAMILIES","	NCS",TELEPHONE - EQUIPMENT,23/07/2019,000006536013996,6.00,GIFFGAFF
OXFORDSHIRE CC,"CHILDRENS, YOUNG PEOPLE AND FAMILIES","	NCS",TELEPHONE - EQUIPMENT,23/07/2019,000006536014000,6.00,GIFFGAFF
OXFORDSHIRE CC,"CHILDRENS, YOUNG PEOPLE AND FAMILIES","	NCS",TELEPHONE - EQUIPMENT,23/07/2019,000006536014004,6.00,GIFFGAFF
OXFORDSHIRE CC,"CHILDRENS, YOUNG PEOPLE AND FAMILIES","	LOOKED AFTER NORTH",VEHICLE FUEL,23/07/2019,000006536014740,24.83,SHELL DUCKLINGTON
OXFORDSHIRE CC,"CHILDRENS, YOUNG PEOPLE AND FAMILIES",HOUSE PROJECT,OTHER TRANSPORT ARRANGEMENTS,23/07/2019,000006536014746,6.00,OCC ON-STREET PARKING
OXFORDSHIRE CC,CORPORATE CORE,MOTOR FLEET,MOTOR IF OWN DAMAGE,23/07/2019,000006536014750,"1,528.39",WHOLESALE AUTOPARTS
OXFORDSHIRE CC,"CHILDRENS, YOUNG PEOPLE AND FAMILIES","	NCS",CATERING PROVISIONS,23/07/2019,000006536014754,428.32,TESCO STORES 2008
OXFORDSHIRE CC,"CHILDRENS, YOUNG PEOPLE AND FAMILIES","	NCS",TELEPHONE - EQUIPMENT,23/07/2019,000006536014758,6.00,GIFFGAFF
OXFORDSHIRE CC,"CHILDRENS, YOUNG PEOPLE AND FAMILIES","	NCS",TELEPHONE - EQUIPMENT,23/07/2019,000006536014762,6.00,GIFFGAFF
OXFORDSHIRE CC,"CHILDRENS, YOUNG PEOPLE AND FAMILIES","	NCS",TELEPHONE - EQUIPMENT,23/07/2019,000006536014766,6.00,GIFFGAFF
OXFORDSHIRE CC,"CHILDRENS, YOUNG PEOPLE AND FAMILIES","	NCS",TELEPHONE - EQUIPMENT,23/07/2019,000006536014772,6.00,GIFFGAFF
OXFORDSHIRE CC,"CHILDRENS, YOUNG PEOPLE AND FAMILIES","	NCS",CATERING PROVISIONS,23/07/2019,000006536014776,-4.50,TESCO STORES 2008
OXFORDSHIRE CC,"CHILDRENS, YOUNG PEOPLE AND FAMILIES",FAMILY SUPPORT 2,PAYMENTS TO TRANSPORT OPERATORS,23/07/2019,000006536014780,30.80,WWW.GWR.COM
OXFORDSHIRE CC,"CHILDRENS, YOUNG PEOPLE AND FAMILIES",FAMILY SUPPORT 2,PAYMENTS TO TRANSPORT OPERATORS,23/07/2019,000006536014784,657.81,VUELING A DKPWRB
OXFORDSHIRE CC,"CHILDRENS, YOUNG PEOPLE AND FAMILIES","	LEAVING CARE NORTH",OTHER TRANSPORT ARRANGEMENTS,23/07/2019,000006536014788,6.80,BANBURY SSTP
OXFORDSHIRE CC,"CHILDRENS, YOUNG PEOPLE AND FAMILIES","	NCS",TELEPHONE - EQUIPMENT,23/07/2019,000006536014006,6.00,GIFFGAFF
OXFORDSHIRE CC,"CHILDRENS, YOUNG PEOPLE AND FAMILIES","	NCS",TELEPHONE - EQUIPMENT,23/07/2019,000006536014010,6.00,GIFFGAFF
OXFORDSHIRE CC,"CHILDRENS, YOUNG PEOPLE AND FAMILIES",UASC 16&17,OTHER EXPENSES,23/07/2019,000006536014018,22.00,TESCO STORE 2994
OXFORDSHIRE CC,ENVIRONMENT AND ECONOMY,HARD FM,GENERAL MAINTENANCE,23/07/2019,000006536014024,23.22,WOLSELEY UK
OXFORDSHIRE CC,ENVIRONMENT AND ECONOMY,HARD FM,GENERAL MAINTENANCE,23/07/2019,000006536014028,40.96,WOLSELEY UK
OXFORDSHIRE CC,ENVIRONMENT AND ECONOMY,HARD FM,HARDWARE AND CROCKERY,23/07/2019,000006536014032,61.41,SCREWFIX OXFORD BOTLEY
OXFORDSHIRE CC,ENVIRONMENT AND ECONOMY,HARD FM,HARDWARE AND CROCKERY,23/07/2019,000006536014036,9.50,SCREWFIX OXFORD BOTLEY
OXFORDSHIRE CC,ENVIRONMENT AND ECONOMY,HARD FM,GENERAL MAINTENANCE,23/07/2019,000006536014042,29.40,WOLSELEY UK
OXFORDSHIRE CC,ENVIRONMENT AND ECONOMY,HARD FM,HARDWARE AND CROCKERY,23/07/2019,000006536014044,134.16,TRAVIS PERKINS
OXFORDSHIRE CC,ENVIRONMENT AND ECONOMY,HARD FM,HARDWARE AND CROCKERY,23/07/2019,000006536014050,2.58,SCREWFIX BICESTER
OXFORDSHIRE CC,"CHILDRENS, YOUNG PEOPLE AND FAMILIES","	LEAVING CARE NORTH",CLOTHING AND UNIFORMS,23/07/2019,000006536014792,75.00,J D SPORTS FASHION
OXFORDSHIRE CC,SOCIAL AND COMMUNITY SERVICES,BICESTER LIBRARY,POSTAGE AND DELIVERY,23/07/2019,000006536014796,14.84,THE POST OFFICE
OXFORDSHIRE CC,"CHILDRENS, YOUNG PEOPLE AND FAMILIES","	40 THE MOORS",MATERIALS,23/07/2019,000006536014586,76.00,SPORTSDIRECT.COM
OXFORDSHIRE CC,SOCIAL AND COMMUNITY SERVICES,CSS WITNEY,CATERING PROVISIONS,23/07/2019,000006536013828,114.53,TESCO STORES 2008
OXFORDSHIRE CC,SOCIAL AND COMMUNITY SERVICES,CSS WITNEY,MATERIALS,23/07/2019,000006536013854,12.00,THE ENTERTAINER 92
OXFORDSHIRE CC,SOCIAL AND COMMUNITY SERVICES,CSS WITNEY,MATERIALS,23/07/2019,000006536013858,6.49,ROBERT DYAS HOLDNG LTD
OXFORDSHIRE CC,SOCIAL AND COMMUNITY SERVICES,CSS WITNEY,HARDWARE AND CROCKERY,23/07/2019,000006536013862,54.00,B & Q 1176
OXFORDSHIRE CC,SOCIAL AND COMMUNITY SERVICES,CSS - BANBURY,POSTAGE AND DELIVERY,23/07/2019,000006536014594,2.00,ROYAL MAIL CHARGES
OXFORDSHIRE CC,"CHILDRENS, YOUNG PEOPLE AND FAMILIES",KINGFISHER,CATERING PROVISIONS,23/07/2019,000006536014606,4.65,SAINSBURYS SACAT 0600
OXFORDSHIRE CC,"CHILDRENS, YOUNG PEOPLE AND FAMILIES",KINGFISHER,OTHER TRANSPORT ARRANGEMENTS,23/07/2019,000006536014610,1.38,MKC PARKING RINGGO
OXFORDSHIRE CC,"CHILDRENS, YOUNG PEOPLE AND FAMILIES",KINGFISHER,CATERING,23/07/2019,000006536014614,6.28,MCDONALDS
OXFORDSHIRE CC,ENVIRONMENT AND ECONOMY,"	BUSINESS SYST STAFF",EDUCATIONAL AND VOCATIONAL TRAINING ,23/07/2019,000006536014618,-135.00,OXFORDSHIRE CC MOTO1
OXFORDSHIRE CC,"CHILDRENS, YOUNG PEOPLE AND FAMILIES",DIDCOT MOVE-ON HOME,CATERING PROVISIONS,23/07/2019,000006536014624,58.90,SAINSBURYS SACAT 2067
OXFORDSHIRE CC,"CHILDRENS, YOUNG PEOPLE AND FAMILIES",MEMBERS ALLOWANCES,CATERING PROVISIONS,23/07/2019,000006536013878,19.77,TESCO STORE 2653
OXFORDSHIRE CC,"CHILDRENS, YOUNG PEOPLE AND FAMILIES",CNTL ERLY HELP-BBLEY,POSTAGE AND DELIVERY,23/07/2019,000006536014686,8.40,POST OFFICE COUNTER
OXFORDSHIRE CC,"CHILDRENS, YOUNG PEOPLE AND FAMILIES",CNTL ERLY HELP-BBLEY,CLOTHING AND UNIFORMS,23/07/2019,000006536014690,8.82,PAYPAL  SHANGHAIBEI
OXFORDSHIRE CC,"CHILDRENS, YOUNG PEOPLE AND FAMILIES",CNTL ERLY HELP-BBLEY,CATERING PROVISIONS,23/07/2019,000006536014694,2.78,NISA DELTEYS
OXFORDSHIRE CC,CORPORATE CORE,OPERATIONS,MATERIALS,23/07/2019,000006536014304,7.78,AMZNMKTPLACE
OXFORDSHIRE CC,CORPORATE CORE,OPERATIONS,MATERIALS,23/07/2019,000006536014306,7.44,AMZNMKTPLACE
OXFORDSHIRE CC,CORPORATE CORE,OPERATIONS,MATERIALS,23/07/2019,000006536014308,3.69,AMZNMKTPLACE
OXFORDSHIRE CC,CORPORATE CORE,OPERATIONS,MATERIALS,23/07/2019,000006536014316,16.34,AMZNMKTPLACE AMAZON.CO
OXFORDSHIRE CC,CORPORATE CORE,OPERATIONS,MATERIALS,23/07/2019,000006536014312,8.24,AMZNMKTPLACE
OXFORDSHIRE CC,CORPORATE CORE,OPERATIONS,MATERIALS,23/07/2019,000006536014314,3.59,AMZNMKTPLACE
OXFORDSHIRE CC,"CHILDRENS, YOUNG PEOPLE AND FAMILIES",UASC UNDER 16,OTHER TRANSPORT ARRANGEMENTS,23/07/2019,000006536014372,2.00,HEADINGTON CAR PARK
OXFORDSHIRE CC,"CHILDRENS, YOUNG PEOPLE AND FAMILIES","	MUSIC UNALLOCABLE",OTHER TRANSPORT ARRANGEMENTS,23/07/2019,000006536014328,3.00,WESTGATE OXFORD CAR PA
OXFORDSHIRE CC,ENVIRONMENT AND ECONOMY,"	R & A STAFF & OPS",ENTERTAINMENT EXPENSES,23/07/2019,000006536014346,20.00,VIDEOSCENE
OXFORDSHIRE CC,CORPORATE CORE,"	CORPORATE FINANCE",STAFF USE OF PUBLIC TRANSPORT,23/07/2019,000006536014356,38.05,WWW.GWR.COM
OXFORDSHIRE CC,"CHILDRENS, YOUNG PEOPLE AND FAMILIES",EYNSHAM,DAY ACTIVITIES,23/07/2019,000006536014382,9.98,VUE CINEMAS
OXFORDSHIRE CC,"CHILDRENS, YOUNG PEOPLE AND FAMILIES",EYNSHAM,DAY ACTIVITIES,23/07/2019,000006536014386,4.10,MAGENTA CAFE
OXFORDSHIRE CC,CORPORATE CORE,"	LEGAL SERVICES",LEGAL COSTS,23/07/2019,000006536014410,33.00,OXFORDSHIRE CC MOTO1
OXFORDSHIRE CC,"CHILDRENS, YOUNG PEOPLE AND FAMILIES","	RIVERSIDE CENTRE",CATERING PROVISIONS,23/07/2019,000006536014414,29.18,CO-OPERATIVE FOOD
OXFORDSHIRE CC,ENVIRONMENT AND ECONOMY,"	OXFORDSHIRE MUSEUM","SUPPLIES, STATIONERY AND MATERIALS",23/07/2019,000006536014436,84.67,EB  ANNUAL TOURING EXH
OXFORDSHIRE CC,SOCIAL AND COMMUNITY SERVICES,"	CENTRAL LIBRARY",MATERIALS,23/07/2019,000006536014444,5.99,ROBERT DYAS HOLDNG LTD
OXFORDSHIRE CC,SOCIAL AND COMMUNITY SERVICES,"	MTFC",CATERING PROVISIONS,23/07/2019,000006536014450,2.20,SAINSBURYS 2244
OXFORDSHIRE CC,"CHILDRENS, YOUNG PEOPLE AND FAMILIES","	LEAVING CARE NORTH",MATERIALS,23/07/2019,000006536014494,392.92,WWW.ARGOS.CO.UK
OXFORDSHIRE CC,"CHILDRENS, YOUNG PEOPLE AND FAMILIES","	LEAVING CARE NORTH",MATERIALS,23/07/2019,000006536014498,80.00,JD SPORTS INTERNET
OXFORDSHIRE CC,"CHILDRENS, YOUNG PEOPLE AND FAMILIES",KINGFISHER,MATERIALS,23/07/2019,000006536014502,25.50,PAPERCHASE
OXFORDSHIRE CC,SOCIAL AND COMMUNITY SERVICES,CSS WITNEY,MATERIALS,23/07/2019,000006536014516,3.97,AMZNMKTPLACE
OXFORDSHIRE CC,SOCIAL AND COMMUNITY SERVICES,CSS WITNEY,MATERIALS,23/07/2019,000006536014520,2.49,AMZNMKTPLACE
OXFORDSHIRE CC,SOCIAL AND COMMUNITY SERVICES,CSS WITNEY,MATERIALS,23/07/2019,000006536014524,26.99,AMZNMKTPLACE AMAZON.CO
OXFORDSHIRE CC,"CHILDRENS, YOUNG PEOPLE AND FAMILIES",C&I COUNTYWIDE,MATERIALS,23/07/2019,000006536014530,32.92,AMAZON.CO.UK MH25S3TO4
OXFORDSHIRE CC,SOCIAL AND COMMUNITY SERVICES,CSS - BANBURY,CATERING PROVISIONS,23/07/2019,000006536013824,83.78,SAINSBURYS TO YOU 0642
OXFORDSHIRE CC,"CHILDRENS, YOUNG PEOPLE AND FAMILIES","	FAMILY SUPPORT CITY3",OTHER TRANSPORT ARRANGEMENTS,23/07/2019,000006536014552,30.00,BUS TICKET OR EMT WIFI
OXFORDSHIRE CC,"CHILDRENS, YOUNG PEOPLE AND FAMILIES","	FAMILY SUPPORT CITY3",POSTAGE AND DELIVERY,23/07/2019,000006536014556,2.92,THE POST OFFICE
OXFORDSHIRE CC,"CHILDRENS, YOUNG PEOPLE AND FAMILIES",CNTL EARLY HELP-BRTN,OTHER EXPENSES,23/07/2019,000006536014560,37.80,FAMILY LINKS
OXFORDSHIRE CC,"CHILDRENS, YOUNG PEOPLE AND FAMILIES","	FAMILY SUPPORT CITY3",OTHER TRANSPORT ARRANGEMENTS,23/07/2019,000006536014564,45.00,GWR READING PROSEC
OXFORDSHIRE CC,"CHILDRENS, YOUNG PEOPLE AND FAMILIES","	FAMILY SUPPORT CITY3",OTHER TRANSPORT ARRANGEMENTS,23/07/2019,000006536014566,31.20,WWW.GWR.COM
OXFORDSHIRE CC,"CHILDRENS, YOUNG PEOPLE AND FAMILIES","	FAMILY SUPPORT CITY3",FURNITURE,23/07/2019,000006536014568,165.95,WWW.ARGOS.CO.UK
OXFORDSHIRE CC,ENVIRONMENT AND ECONOMY,HARD FM,GENERAL MAINTENANCE,23/07/2019,000006536014054,113.35,WOLSELEY UK
OXFORDSHIRE CC,"CHILDRENS, YOUNG PEOPLE AND FAMILIES","	LEAVING CARE CITY 1",OTHER EXPENSES,23/07/2019,000006536014088,62.49,LOOK AGAIN
OXFORDSHIRE CC,ENVIRONMENT AND ECONOMY,HARD FM,EQUIPMENT,23/07/2019,000006536014058,42.60,WWW.CALOMAX.CO.UK
OXFORDSHIRE CC,ENVIRONMENT AND ECONOMY,HARD FM,HARDWARE AND CROCKERY,23/07/2019,000006536014060,8.02,OXON FASTENING SYSTEMS
OXFORDSHIRE CC,SOCIAL AND COMMUNITY SERVICES,DIDCOT MOVE-ON HOME,CATERING PROVISIONS,23/07/2019,000006536014092,18.54,TESCO STORE 2413
OXFORDSHIRE CC,ENVIRONMENT AND ECONOMY,HARD FM,HARDWARE AND CROCKERY,23/07/2019,000006536014062,9.40,WICKES OXFORD
OXFORDSHIRE CC,ENVIRONMENT AND ECONOMY,COUNTY LIBRARY,GENERAL MAINTENANCE,23/07/2019,000006536014066,54.80,WOLSELEY UK
OXFORDSHIRE CC,SOCIAL AND COMMUNITY SERVICES,CSS - OXFORD,CATERING PROVISIONS,23/07/2019,000006536014070,3.75,ALDI STORES 775-142
OXFORDSHIRE CC,SOCIAL AND COMMUNITY SERVICES,CSS BICESTER,CATERING PROVISIONS,23/07/2019,000006536014074,67.80,SAINSBURYS (2243)
OXFORDSHIRE CC,"CHILDRENS, YOUNG PEOPLE AND FAMILIES",THAME E&A HOME,CATERING PROVISIONS,23/07/2019,000006536014078,2.60,TESCO STORES 4338
OXFORDSHIRE CC,SOCIAL AND COMMUNITY SERVICES,CSS - OXFORD,MATERIALS,23/07/2019,000006536014082,11.90,ALDI STORES 775-142
OXFORDSHIRE CC,"CHILDRENS, YOUNG PEOPLE AND FAMILIES","	LEAVING CARE CITY 1",OTHER EXPENSES,23/07/2019,000006536014086,413.99,VERY
OXFORDSHIRE CC,"CHILDRENS, YOUNG PEOPLE AND FAMILIES","	RIVERSIDE CENTRE",STATIONERY,23/07/2019,000006536014094,32.00,SNAPPY SNAPS OXFORD
OXFORDSHIRE CC,"CHILDRENS, YOUNG PEOPLE AND FAMILIES","	RIVERSIDE CENTRE",MATERIALS,23/07/2019,000006536014098,30.05,WH SMITH
OXFORDSHIRE CC,"CHILDRENS, YOUNG PEOPLE AND FAMILIES",WITNEY,CATERING,23/07/2019,000006536014112,4.20,HARBOUR VIEW CAFE
OXFORDSHIRE CC,CORPORATE CORE,REGISTRAR,FURNITURE,23/07/2019,000006536014124,29.98,AMZNMKTPLACE
OXFORDSHIRE CC,"CHILDRENS, YOUNG PEOPLE AND FAMILIES",NORTH FSS- BANBURY,PAYMENT TO GOVERNMENT DEPARTMENTS,23/07/2019,000006536014168,14.00,GEN REGISTER OFFICE
OXFORDSHIRE CC,SOCIAL AND COMMUNITY SERVICES,DIDCOT MOVE-ON HOME,CATERING PROVISIONS,23/07/2019,000006536014174,7.25,CO-OP FOOD
OXFORDSHIRE CC,ENVIRONMENT AND ECONOMY,THE RIDGEWAY,CATERING,23/07/2019,000006536014188,23.32,THE WHITE HART OF WYTH
OXFORDSHIRE CC,"CHILDRENS, YOUNG PEOPLE AND FAMILIES","	LOOKED AFTER CITY 1",REGISTRATION AND INSPECTION FEES,23/07/2019,000006536014178,-11.00,OXFORDSHIRE CC MOTO1
OXFORDSHIRE CC,ENVIRONMENT AND ECONOMY,THE RIDGEWAY,CATERING,23/07/2019,000006536014182,9.20,THE FOX & HOUNDS
OXFORDSHIRE CC,ENVIRONMENT AND ECONOMY,THE RIDGEWAY,CATERING,23/07/2019,000006536014184,2.00,THE FOX & HOUNDS
OXFORDSHIRE CC,"CHILDRENS, YOUNG PEOPLE AND FAMILIES","	40 THE MOORS",OTHER TRANSPORT ARRANGEMENTS,23/07/2019,000006536014198,45.00,SUMUP   JAY
OXFORDSHIRE CC,"CHILDRENS, YOUNG PEOPLE AND FAMILIES",MANAGEMENT,PAYMENTS TO TRANSPORT OPERATORS,23/07/2019,000006536014200,76.11,TRAINLINE.COM
OXFORDSHIRE CC,CORPORATE CORE,TRANSPORT GENERAL,PROFESSIONAL SUBSCRIPTIONS,23/07/2019,000006536014210,.50,VEHICLEINFORMATION.UK
OXFORDSHIRE CC,CORPORATE CORE,HOLTON SITE,GENERAL REFUSE COLLECTION AND DISPOSAL,23/07/2019,000006536014214,306.00,GRUNDON WASTE MANAGEME
OXFORDSHIRE CC,CORPORATE CORE,TRANSPORT GENERAL,PAYMENT TO GOVERNMENT DEPARTMENTS,23/07/2019,000006536014218,262.50,DVLA VEHICLE TAX
OXFORDSHIRE CC,"CHILDRENS, YOUNG PEOPLE AND FAMILIES",NTH EARLY HELP-BCSTR,"SUPPLIES, STATIONERY AND MATERIALS",23/07/2019,000006536014220,15.60,EB  THE COOPER SCHOOL
OXFORDSHIRE CC,ENVIRONMENT AND ECONOMY,HARD FM,HARDWARE AND CROCKERY,22/07/2019,000006528864202,10.98,SCREWFIX OXFORD BOTLEY
OXFORDSHIRE CC,ENVIRONMENT AND ECONOMY,HARD FM,EQUIPMENT,22/07/2019,000006528864206,76.42,NEWEY & EYRE
OXFORDSHIRE CC,ENVIRONMENT AND ECONOMY,HARD FM,FURNITURE,22/07/2019,000006528864210,72.00,KENNINGTON FLOORING LT
OXFORDSHIRE CC,ENVIRONMENT AND ECONOMY,HARD FM,VEHICLES REPAIRS AND MAINTENANCE,22/07/2019,000006528864214,154.80,TYRESALES ABINGDON
OXFORDSHIRE CC,ENVIRONMENT AND ECONOMY,HARD FM,HARDWARE AND CROCKERY,22/07/2019,000006528864218,36.55,WICKES OXFORD
OXFORDSHIRE CC,ENVIRONMENT AND ECONOMY,HARD FM,EQUIPMENT,22/07/2019,000006528864222,51.05,WILTS ELECTRICAL
OXFORDSHIRE CC,ENVIRONMENT AND ECONOMY,HARD FM,MATERIALS,22/07/2019,000006528864226,27.90,AMAZON.CO.UK MH06T6TS4
OXFORDSHIRE CC,"CHILDRENS, YOUNG PEOPLE AND FAMILIES",THAME E&A HOME,CATERING PROVISIONS,22/07/2019,000006528864232,20.48,WAITROSE 142
OXFORDSHIRE CC,SOCIAL AND COMMUNITY SERVICES,WALLINGFORD LIBRARY,FURNITURE,22/07/2019,000006528865020,99.00,CURRYS ONLINE
OXFORDSHIRE CC,"CHILDRENS, YOUNG PEOPLE AND FAMILIES",BULLINGDON PRISON,"BOOKS, DVDS AND CDS",22/07/2019,000006528865040,9.67,AMZNMKTPLACE
OXFORDSHIRE CC,"CHILDRENS, YOUNG PEOPLE AND FAMILIES","	MUSIC UNALLOCABLE",MATERIALS,22/07/2019,000006528865044,70.04,AMAZON.CO.UK MH75W8JO4
OXFORDSHIRE CC,"CHILDRENS, YOUNG PEOPLE AND FAMILIES","	MUSIC UNALLOCABLE",MATERIALS,22/07/2019,000006528865046,93.90,AMZNMKTPLACE
OXFORDSHIRE CC,"CHILDRENS, YOUNG PEOPLE AND FAMILIES","	MUSIC UNALLOCABLE",EQUIPMENT,22/07/2019,000006528865048,54.48,RS COMPONENTS
OXFORDSHIRE CC,"CHILDRENS, YOUNG PEOPLE AND FAMILIES","	LOOKED AFTER CITY 2",REGISTRATION AND INSPECTION FEES,22/07/2019,000006528865058,33.00,OXFORDSHIRE CC MOTO1
OXFORDSHIRE CC,"CHILDRENS, YOUNG PEOPLE AND FAMILIES","	40 THE MOORS",CATERING PROVISIONS,22/07/2019,000006528865064,34.50,SAINSBURYS (2243)
OXFORDSHIRE CC,"CHILDRENS, YOUNG PEOPLE AND FAMILIES",THAME E&A HOME,CATERING PROVISIONS,22/07/2019,000006528865076,45.76,SAINSBURYS TO YOU 0600
OXFORDSHIRE CC,ENVIRONMENT AND ECONOMY,COUNTY LIBRARY,GENERAL MAINTENANCE,22/07/2019,000006528864234,44.28,WOLSELEY UK
OXFORDSHIRE CC,"CHILDRENS, YOUNG PEOPLE AND FAMILIES","	LEAVING CARE NORTH",FURNITURE,22/07/2019,000006528864244,199.00,DREAMS LTD
OXFORDSHIRE CC,"CHILDRENS, YOUNG PEOPLE AND FAMILIES","	LOOKED AFTER NORTH",HIRE OF ACCOMMODATION AND FACILITIES,22/07/2019,000006528864248,255.00,HOTEL ON BOOKING.COM S
OXFORDSHIRE CC,SOCIAL AND COMMUNITY SERVICES,DIDCOT MOVE-ON HOME,CATERING PROVISIONS,22/07/2019,000006528864252,3.40,SAINSBURYS 2067
OXFORDSHIRE CC,"CHILDRENS, YOUNG PEOPLE AND FAMILIES","	LOOKED AFTER CITY 2",OTHER TRANSPORT ARRANGEMENTS,22/07/2019,000006528864256,77.00,STAGECOACH SERVICE
OXFORDSHIRE CC,SOCIAL AND COMMUNITY SERVICES,ADULT SERVICES IMPROVEMENT BOARD,CATERING PROVISIONS,22/07/2019,000006528864260,4.25,WILKO RETAIL LIMIT
OXFORDSHIRE CC,"CHILDRENS, YOUNG PEOPLE AND FAMILIES",WITNEY,CATERING PROVISIONS,22/07/2019,000006528864270,48.25,SAINSBURYS TO YOU 0632
OXFORDSHIRE CC,"CHILDRENS, YOUNG PEOPLE AND FAMILIES",THAME E&A HOME,CATERING PROVISIONS,22/07/2019,000006528865080,19.86,TESCO STORES 4480
OXFORDSHIRE CC,"CHILDRENS, YOUNG PEOPLE AND FAMILIES",WITNEY,CATERING PROVISIONS,22/07/2019,000006528865086,67.65,SAINSBURYS TO YOU 0632
OXFORDSHIRE CC,"CHILDRENS, YOUNG PEOPLE AND FAMILIES",EYNSHAM,CATERING PROVISIONS,22/07/2019,000006528865090,155.16,TESCO STORES 2008
OXFORDSHIRE CC,"CHILDRENS, YOUNG PEOPLE AND FAMILIES","	LEAVING CARE NORTH",CLOTHING AND UNIFORMS,22/07/2019,000006528865102,70.00,WWW CONVERSE COM
OXFORDSHIRE CC,"CHILDRENS, YOUNG PEOPLE AND FAMILIES",THAME E&A HOME,MATERIALS,22/07/2019,000006528865108,20.00,SUMUP   ACB GOLF RANGE
OXFORDSHIRE CC,"CHILDRENS, YOUNG PEOPLE AND FAMILIES",FAMILY SUPPORT 2,PAYMENTS TO TRANSPORT OPERATORS,22/07/2019,000006528865120,25.20,WWW.GWR.COM
OXFORDSHIRE CC,"CHILDRENS, YOUNG PEOPLE AND FAMILIES",FAMILY SUPPORT 2,PAYMENTS TO TRANSPORT OPERATORS,22/07/2019,000006528865124,20.30,WWW.GWR.COM
OXFORDSHIRE CC,"CHILDRENS, YOUNG PEOPLE AND FAMILIES",DEPUTY DIRECTOR &MAN,PAYMENTS TO TRANSPORT OPERATORS,22/07/2019,000006528865128,74.18,TRAINLINE.COM
OXFORDSHIRE CC,"CHILDRENS, YOUNG PEOPLE AND FAMILIES","	FAMILY SUPPORT CITY3",CATERING PROVISIONS,22/07/2019,000006528865148,29.00,TESCO STORE 2994
OXFORDSHIRE CC,"CHILDRENS, YOUNG PEOPLE AND FAMILIES","	RIVERSIDE CENTRE",CATERING PROVISIONS,22/07/2019,000006528865152,59.65,TESCO STORE 2124
OXFORDSHIRE CC,"CHILDRENS, YOUNG PEOPLE AND FAMILIES",UASC 16&17,RESIDENTIAL ACTIVITIES,22/07/2019,000006528865164,20.00,NCS TRUST
OXFORDSHIRE CC,"CHILDRENS, YOUNG PEOPLE AND FAMILIES","	40 THE MOORS",CATERING PROVISIONS,22/07/2019,000006528864878,10.22,CO-OPERATIVE FOOD
OXFORDSHIRE CC,"CHILDRENS, YOUNG PEOPLE AND FAMILIES","	40 THE MOORS",CATERING,22/07/2019,000006528864884,7.07,MCDONALDS
OXFORDSHIRE CC,"CHILDRENS, YOUNG PEOPLE AND FAMILIES","	40 THE MOORS",OTHER TRANSPORT ARRANGEMENTS,22/07/2019,000006528864890,45.00,IZ  TT TAXI SERVICE 00
OXFORDSHIRE CC,"CHILDRENS, YOUNG PEOPLE AND FAMILIES","	RESIDENTIAL STRATEGY",CATERING,22/07/2019,000006528864096,6.65,COSTA TEMPLAR SQUARE O
OXFORDSHIRE CC,"CHILDRENS, YOUNG PEOPLE AND FAMILIES",WITNEY,CATERING PROVISIONS,22/07/2019,000006528864100,28.54,LIDL GB  WITNEY
OXFORDSHIRE CC,"CHILDRENS, YOUNG PEOPLE AND FAMILIES",WITNEY,CATERING PROVISIONS,22/07/2019,000006528864104,6.53,LIDL GB  WITNEY
OXFORDSHIRE CC,SOCIAL AND COMMUNITY SERVICES,CSS - DIDCOT,CATERING,22/07/2019,000006528864108,27.69,CHURCHILLS
OXFORDSHIRE CC,SOCIAL AND COMMUNITY SERVICES,CSS - ABINGDON,CATERING PROVISIONS,22/07/2019,000006528864114,19.63,WAITROSE 211
OXFORDSHIRE CC,"CHILDRENS, YOUNG PEOPLE AND FAMILIES","	LOOKED AFTER SOUTH",EQUIPMENT,22/07/2019,000006528864132,35.00,CEX  AYLESBURY
OXFORDSHIRE CC,"CHILDRENS, YOUNG PEOPLE AND FAMILIES",CSS WALLINGFORD,CATERING PROVISIONS,22/07/2019,000006528864128,10.80,WAITROSE 675
OXFORDSHIRE CC,"CHILDRENS, YOUNG PEOPLE AND FAMILIES","	40 THE MOORS",CATERING PROVISIONS,22/07/2019,000006528864898,4.50,SAINSBURYS LOC4049
OXFORDSHIRE CC,"CHILDRENS, YOUNG PEOPLE AND FAMILIES","	40 THE MOORS",MATERIALS,22/07/2019,000006528864900,11.99,BOSWELLS OF OXFORD LTD
OXFORDSHIRE CC,"CHILDRENS, YOUNG PEOPLE AND FAMILIES","	40 THE MOORS",CLOTHING AND UNIFORMS,22/07/2019,000006528864904,21.70,PRIMARK 440
OXFORDSHIRE CC,ENVIRONMENT AND ECONOMY,"	BUSINESS SYST STAFF",EDUCATIONAL AND VOCATIONAL TRAINING ,22/07/2019,000006528864952,65.00,OXFORDSHIRE CC WEB1
OXFORDSHIRE CC,"CHILDRENS, YOUNG PEOPLE AND FAMILIES","	LOOKED AFTER SOUTH",MATERIALS,22/07/2019,000006528864136,149.99,ARGOS LTD
OXFORDSHIRE CC,SOCIAL AND COMMUNITY SERVICES,CSS BICESTER,CATERING PROVISIONS,22/07/2019,000006528864140,2.00,ICELAND
OXFORDSHIRE CC,"CHILDRENS, YOUNG PEOPLE AND FAMILIES",THAME E&A HOME,CATERING,22/07/2019,000006528864146,4.68,MCDONALDS
OXFORDSHIRE CC,"CHILDRENS, YOUNG PEOPLE AND FAMILIES","	NCS",IT SOFTWARE,22/07/2019,000006528864148,444.00,TEXTMARKETER
OXFORDSHIRE CC,"CHILDRENS, YOUNG PEOPLE AND FAMILIES","	NCS",CATERING,22/07/2019,000006528864152,146.91,BOOKER LIMITED OXFORD
OXFORDSHIRE CC,"CHILDRENS, YOUNG PEOPLE AND FAMILIES","	NCS","PUBLICITY, PROMOTIONS AND ADVERTISEMENT",22/07/2019,000006528864156,1.39,FACEBK  MJU2KMEGW2
OXFORDSHIRE CC,"CHILDRENS, YOUNG PEOPLE AND FAMILIES","	LOOKED AFTER CITY 1",MATERIALS,22/07/2019,000006528864184,130.00,MOTHERCARE DIRECT-E-CO
OXFORDSHIRE CC,ENVIRONMENT AND ECONOMY,"	BUSINESS SYST STAFF",EDUCATIONAL AND VOCATIONAL TRAINING ,22/07/2019,000006528864956,135.00,OXFORDSHIRE CC WEB1
OXFORDSHIRE CC,ENVIRONMENT AND ECONOMY,"	BUSINESS SYST STAFF",EDUCATIONAL AND VOCATIONAL TRAINING ,22/07/2019,000006528864958,-65.00,OXFORDSHIRE CC MOTO1
OXFORDSHIRE CC,ENVIRONMENT AND ECONOMY,"	BUSINESS SYST STAFF",PAYMENT TO GOVERNMENT DEPARTMENTS,22/07/2019,000006528864962,8.40,TNA DISCOVERY ORDERS
OXFORDSHIRE CC,"CHILDRENS, YOUNG PEOPLE AND FAMILIES",DIDCOT MOVE-ON HOME,CATERING PROVISIONS,22/07/2019,000006528864974,7.60,SAINSBURYS SACAT 2067
OXFORDSHIRE CC,"CHILDRENS, YOUNG PEOPLE AND FAMILIES",0-5 STDS & PROGRESS,PAYMENTS TO VOLUNTARY BODIES,22/07/2019,000006528864982,13.00,NDNA
OXFORDSHIRE CC,"CHILDRENS, YOUNG PEOPLE AND FAMILIES","	LOOKED AFTER CITY 1",REGISTRATION AND INSPECTION FEES,22/07/2019,000006528864188,49.00,HM PASSPORT OFFICE
OXFORDSHIRE CC,"CHILDRENS, YOUNG PEOPLE AND FAMILIES",MEMBERS ALLOWANCES,REGISTRATION AND INSPECTION FEES,22/07/2019,000006528864192,49.00,HM PASSPORT OFFICE
OXFORDSHIRE CC,"CHILDRENS, YOUNG PEOPLE AND FAMILIES",UASC 16&17,MOTOR IF OWN DAMAGE,22/07/2019,000006528864196,18.82,"BOOTS,OXFORD"
OXFORDSHIRE CC,CORPORATE CORE,HISTORY SERVICE,FURNITURE,22/07/2019,000006528864608,39.44,AMZNMKTPLACE
OXFORDSHIRE CC,CORPORATE CORE,HISTORY SERVICE,"BOOKS, DVDS AND CDS",22/07/2019,000006528864610,49.95,CURRENT PUBLISHING
OXFORDSHIRE CC,"CHILDRENS, YOUNG PEOPLE AND FAMILIES","	RIVERSIDE CENTRE",VEHICLE FUEL,22/07/2019,000006528864630,85.00,SAINSBURYS PFS0180
OXFORDSHIRE CC,"CHILDRENS, YOUNG PEOPLE AND FAMILIES","	RIVERSIDE CENTRE",CATERING PROVISIONS,22/07/2019,000006528864634,10.01,CO-OPERATIVE FOOD
OXFORDSHIRE CC,"CHILDRENS, YOUNG PEOPLE AND FAMILIES",THAME E&A HOME,CATERING,22/07/2019,000006528864638,37.20,SEASIDE FISH & CHIPS
OXFORDSHIRE CC,"CHILDRENS, YOUNG PEOPLE AND FAMILIES",THAME E&A HOME,OTHER TRANSPORT ARRANGEMENTS,22/07/2019,000006528864642,54.50,HOVERTRAVEL LTD
OXFORDSHIRE CC,"CHILDRENS, YOUNG PEOPLE AND FAMILIES","	40 THE MOORS",FURNITURE,22/07/2019,000006528864690,10.88,AMZNMKTPLACE
OXFORDSHIRE CC,"CHILDRENS, YOUNG PEOPLE AND FAMILIES","	40 THE MOORS",CATERING PROVISIONS,22/07/2019,000006528864740,131.71,SAINSBURYS (2243)
OXFORDSHIRE CC,SOCIAL AND COMMUNITY SERVICES,CSS WITNEY,MATERIALS,22/07/2019,000006528864766,9.95,AMZNMKTPLACE
OXFORDSHIRE CC,SOCIAL AND COMMUNITY SERVICES,CSS WITNEY,MATERIALS,22/07/2019,000006528864768,19.99,AMZNMKTPLACE
OXFORDSHIRE CC,SOCIAL AND COMMUNITY SERVICES,CSS WITNEY,MATERIALS,22/07/2019,000006528864770,25.99,AMAZON.CO.UK MH7JQ7JT4
OXFORDSHIRE CC,SOCIAL AND COMMUNITY SERVICES,CSS WITNEY,MATERIALS,22/07/2019,000006528864772,20.49,AMAZON.CO.UK MH7Q90JD4
OXFORDSHIRE CC,SOCIAL AND COMMUNITY SERVICES,CSS WITNEY,MATERIALS,22/07/2019,000006528864776,18.45,AMZNMKTPLACE
OXFORDSHIRE CC,SOCIAL AND COMMUNITY SERVICES,CSS - DIDCOT,POSTAGE AND DELIVERY,22/07/2019,000006528864024,31.44,SAINSBURYS 2067
OXFORDSHIRE CC,SOCIAL AND COMMUNITY SERVICES,CSS - DIDCOT,CATERING PROVISIONS,22/07/2019,000006528864028,14.00,SAINSBURYS 2067
OXFORDSHIRE CC,SOCIAL AND COMMUNITY SERVICES,CSS WITNEY,MATERIALS,22/07/2019,000006528864780,12.98,AMZNMKTPLACE
OXFORDSHIRE CC,SOCIAL AND COMMUNITY SERVICES,CSS WITNEY,MATERIALS,22/07/2019,000006528864782,37.13,AMZNMKTPLACE
OXFORDSHIRE CC,SOCIAL AND COMMUNITY SERVICES,CSS - DIDCOT,EQUIPMENT,22/07/2019,000006528864034,4.99,AMZNMKTPLACE
OXFORDSHIRE CC,SOCIAL AND COMMUNITY SERVICES,LOOKED AFTER SOUTH,VEHICLE FUEL,22/07/2019,000006528864050,43.22,SAINSBURYS PFS0146
OXFORDSHIRE CC,SOCIAL AND COMMUNITY SERVICES,WITNEY MOVE ON HOME,CATERING PROVISIONS,22/07/2019,000006528864338,6.50,SAINSBURYS SACAT 0632
OXFORDSHIRE CC,"CHILDRENS, YOUNG PEOPLE AND FAMILIES",DIDCOT MOVE-ON HOME,CATERING PROVISIONS,22/07/2019,000006528864350,13.29,ICELAND
OXFORDSHIRE CC,"CHILDRENS, YOUNG PEOPLE AND FAMILIES",LOCALITY & COMMUNITY SUPPORT SERVICE,MOTOR IF OWN DAMAGE,22/07/2019,000006528864356,53.10,AMZNMKTPLACE
OXFORDSHIRE CC,"CHILDRENS, YOUNG PEOPLE AND FAMILIES","	RESIDENTIAL STRATEGY",HIRE OF ACCOMMODATION AND FACILITIES,22/07/2019,000006528864372,"1,000.00","CENTER PARCS, MOTO"
OXFORDSHIRE CC,"CHILDRENS, YOUNG PEOPLE AND FAMILIES","	RESIDENTIAL STRATEGY",HIRE OF ACCOMMODATION AND FACILITIES,22/07/2019,000006528864374,728.00,"CENTER PARCS, MOTO"
OXFORDSHIRE CC,"CHILDRENS, YOUNG PEOPLE AND FAMILIES",NORTH FSS- BANBURY,MATERIALS,22/07/2019,000006528864378,44.99,JD SPORTS INTERNET
OXFORDSHIRE CC,"CHILDRENS, YOUNG PEOPLE AND FAMILIES",THAME E&A HOME,CATERING PROVISIONS,22/07/2019,000006528864382,13.10,SAINSBURYS 2096
OXFORDSHIRE CC,"CHILDRENS, YOUNG PEOPLE AND FAMILIES",THAME E&A HOME,CATERING PROVISIONS,22/07/2019,000006528864386,30.51,ASDA SUPERSTORE
OXFORDSHIRE CC,"CHILDRENS, YOUNG PEOPLE AND FAMILIES",DIDCOT MOVE-ON HOME,CATERING PROVISIONS,22/07/2019,000006528864392,19.25,SAINSBURYS SACAT 2067
OXFORDSHIRE CC,"CHILDRENS, YOUNG PEOPLE AND FAMILIES",DIDCOT MOVE-ON HOME,CATERING PROVISIONS,22/07/2019,000006528864394,29.85,SAINSBURYS SACAT 2067
OXFORDSHIRE CC,ENVIRONMENT AND ECONOMY,THE RIDGEWAY,CATERING,22/07/2019,000006528864400,4.80,CAFE IN THE GARDEN
OXFORDSHIRE CC,"CHILDRENS, YOUNG PEOPLE AND FAMILIES","	40 THE MOORS",CATERING,22/07/2019,000006528864406,1.79,BURGER KING
OXFORDSHIRE CC,"CHILDRENS, YOUNG PEOPLE AND FAMILIES","	40 THE MOORS",PAYMENTS TO TRANSPORT OPERATORS,22/07/2019,000006528864408,4.22,TRAINLINE.COM
OXFORDSHIRE CC,"CHILDRENS, YOUNG PEOPLE AND FAMILIES","	40 THE MOORS",ENTERTAINMENT EXPENSES,22/07/2019,000006528864412,43.92,VUE CINEMAS
OXFORDSHIRE CC,CORPORATE CORE,REGISTRAR,CATERING PROVISIONS,22/07/2019,000006528864414,1.25,SPAR SUPER STORE
OXFORDSHIRE CC,CORPORATE CORE,"	COMMUNICATIONS","PUBLICITY, PROMOTIONS AND ADVERTISEMENT",22/07/2019,000006528864438,20.82,LINKEDIN-476 1864813
OXFORDSHIRE CC,CORPORATE CORE,OPERATIONS,MATERIALS,22/07/2019,000006528864504,47.90,AMZNMKTPLACE
OXFORDSHIRE CC,CORPORATE CORE,OPERATIONS,MATERIALS,22/07/2019,000006528864506,7.16,AMZNMKTPLACE
OXFORDSHIRE CC,CORPORATE CORE,OPERATIONS,MATERIALS,22/07/2019,000006528864510,6.80,AMZNMKTPLACE
OXFORDSHIRE CC,CORPORATE CORE,OPERATIONS,MATERIALS,22/07/2019,000006528864514,10.98,AMZNMKTPLACE AMAZON.CO
OXFORDSHIRE CC,CORPORATE CORE,OPERATIONS,MATERIALS,22/07/2019,000006528864518,4.25,AMZNMKTPLACE
OXFORDSHIRE CC,CORPORATE CORE,OPERATIONS,MATERIALS,22/07/2019,000006528864522,3.99,AMZNMKTPLACE
OXFORDSHIRE CC,CORPORATE CORE,OPERATIONS,MATERIALS,22/07/2019,000006528864524,3.06,AMZNMKTPLACE
OXFORDSHIRE CC,CORPORATE CORE,OPERATIONS,MATERIALS,22/07/2019,000006528864530,2.10,AMZNMKTPLACE
OXFORDSHIRE CC,CORPORATE CORE,OPERATIONS,MATERIALS,22/07/2019,000006528864534,4.99,AMZNMKTPLACE AMAZON.CO
OXFORDSHIRE CC,"CHILDRENS, YOUNG PEOPLE AND FAMILIES","	MUSIC UNALLOCABLE",MATERIALS,22/07/2019,000006528864548,39.95,OXFORD CAMPUS STOR
OXFORDSHIRE CC,"CHILDRENS, YOUNG PEOPLE AND FAMILIES","	MUSIC UNALLOCABLE",POSTAGE AND DELIVERY,22/07/2019,000006528864554,8.80,THE POST OFFICE
OXFORDSHIRE CC,ENVIRONMENT AND ECONOMY,"	BRIDGES GENERAL",HARDWARE AND CROCKERY,22/07/2019,000006528864564,461.04,WWW.ASPLI.COM
OXFORDSHIRE CC,"CHILDRENS, YOUNG PEOPLE AND FAMILIES","	LEAVING CARE CITY 2",OTHER EXPENSES,22/07/2019,000006528864598,50.00,WINDSOR CARLTON
OXFORDSHIRE CC,"CHILDRENS, YOUNG PEOPLE AND FAMILIES",EYNSHAM,BIRTHDAY ALLOWANCE,19/07/2019,000006521621724,20.16,BOOTS THE CHEMIST
OXFORDSHIRE CC,SOCIAL AND COMMUNITY SERVICES,CSS WITNEY,MATERIALS,19/07/2019,000006521621240,117.96,AMZNMKTPLACE AMAZON.CO
OXFORDSHIRE CC,SOCIAL AND COMMUNITY SERVICES,CSS WITNEY,MATERIALS,19/07/2019,000006521621244,12.48,AMZNMKTPLACE
OXFORDSHIRE CC,ENTERPRISEVC,OTFC TEAM,CATERING PROVISIONS,19/07/2019,000006521620684,7.41,TESCO STORE 2994
OXFORDSHIRE CC,CORPORATE CORE,"	CHAIRMANS ALLOWANCE",MATERIALS,19/07/2019,000006521620710,57.04,TRYSPORTS
OXFORDSHIRE CC,"CHILDRENS, YOUNG PEOPLE AND FAMILIES",NORTH FSS- BANBURY,CATERING PROVISIONS,19/07/2019,000006521620728,21.90,MARKS&SPENCER PLC SACA
OXFORDSHIRE CC,"CHILDRENS, YOUNG PEOPLE AND FAMILIES",NORTH FSS- BANBURY,MATERIALS,19/07/2019,000006521620732,10.99,SPORTSDIRECT 436
OXFORDSHIRE CC,ENVIRONMENT AND ECONOMY,SCH&SOC CARE TRANSP,PAYMENTS TO TRANSPORT OPERATORS,19/07/2019,000006521621252,678.80,LNER WEB SALES
OXFORDSHIRE CC,CORPORATE CORE,,"SUPPLIES, STATIONERY AND MATERIALS",19/07/2019,000006521621584,59.36,LYRECO UK LTD
OXFORDSHIRE CC,CORPORATE CORE,,"SUPPLIES, STATIONERY AND MATERIALS",19/07/2019,000006521621590,17.04,LYRECO UK LTD
OXFORDSHIRE CC,CORPORATE CORE,,"SUPPLIES, STATIONERY AND MATERIALS",19/07/2019,000006521621600,31.97,LYRECO UK LTD
OXFORDSHIRE CC,"CHILDRENS, YOUNG PEOPLE AND FAMILIES","	NCS",CATERING PROVISIONS,19/07/2019,000006521621608,5.00,WM MORRISONS STORE
OXFORDSHIRE CC,"CHILDRENS, YOUNG PEOPLE AND FAMILIES","	LEAVING CARE CITY 2",OTHER TRANSPORT ARRANGEMENTS,19/07/2019,000006521621036,6.70,M6 TOLL
OXFORDSHIRE CC,"CHILDRENS, YOUNG PEOPLE AND FAMILIES",EYNSHAM,OTHER EXPENSES,19/07/2019,000006521621054,2.18,CO-OPERATIVE FOOD
OXFORDSHIRE CC,CORPORATE CORE,HISTORY SERVICE,FURNITURE,19/07/2019,000006521621060,54.56,AMZNMKTPLACE
OXFORDSHIRE CC,ENVIRONMENT AND ECONOMY,COUNTY LIBRARY,GENERAL MAINTENANCE,19/07/2019,000006521620506,38.52,WOLSELEY UK
OXFORDSHIRE CC,"CHILDRENS, YOUNG PEOPLE AND FAMILIES","	LEAVING CARE NORTH",HIRE OF ACCOMMODATION AND FACILITIES,19/07/2019,000006521620522,217.10,AIRBNB   HMAFFP89MN
OXFORDSHIRE CC,"CHILDRENS, YOUNG PEOPLE AND FAMILIES","	LEAVING CARE NORTH",FURNITURE,19/07/2019,000006521620528,199.00,DREAMS LTD
OXFORDSHIRE CC,"CHILDRENS, YOUNG PEOPLE AND FAMILIES",EYNSHAM,DAY ACTIVITIES,19/07/2019,000006521620532,22.45,ETSY.COM - TYPOLOGYDES
OXFORDSHIRE CC,"CHILDRENS, YOUNG PEOPLE AND FAMILIES",THAME E&A HOME,CATERING,19/07/2019,000006521620540,11.70,CRUMBS SANDWICH BAR
OXFORDSHIRE CC,"CHILDRENS, YOUNG PEOPLE AND FAMILIES",CNTL EARLY HELP-RHIL,CATERING PROVISIONS,19/07/2019,000006521621092,6.00,ASDA STORE 4442
OXFORDSHIRE CC,"CHILDRENS, YOUNG PEOPLE AND FAMILIES","	LOOKED AFTER CITY 2",VEHICLE FUEL,19/07/2019,000006521621118,72.26,SHELL LAYBY 146
OXFORDSHIRE CC,SOCIAL AND COMMUNITY SERVICES,LEAVING CARE NORTH,CATERING,19/07/2019,000006521621146,5.57,MCDONALDS
OXFORDSHIRE CC,"CHILDRENS, YOUNG PEOPLE AND FAMILIES","	RIVERSIDE CENTRE",CATERING PROVISIONS,19/07/2019,000006521620566,12.55,TESCO STORES 4377
OXFORDSHIRE CC,"CHILDRENS, YOUNG PEOPLE AND FAMILIES","	RIVERSIDE CENTRE",VEHICLE FUEL,19/07/2019,000006521620572,95.90,ESSO MARCHAM ROAD SERV
OXFORDSHIRE CC,"CHILDRENS, YOUNG PEOPLE AND FAMILIES",WITNEY,OTHER TRANSPORT ARRANGEMENTS,19/07/2019,000006521620584,3.00,WESTGATE OXFORD CAR PA
OXFORDSHIRE CC,SOCIAL AND COMMUNITY SERVICES,CSS WALLINGFORD,CATERING PROVISIONS,19/07/2019,000006521620634,177.63,TESCO STORES 2008
OXFORDSHIRE CC,"CHILDRENS, YOUNG PEOPLE AND FAMILIES",EYNSHAM,CATERING,19/07/2019,000006521621464,8.30,THE SHAKE SHOP
OXFORDSHIRE CC,"CHILDRENS, YOUNG PEOPLE AND FAMILIES",EYNSHAM,FURNITURE,19/07/2019,000006521621468,45.00,DUNELM LTD
OXFORDSHIRE CC,SOCIAL AND COMMUNITY SERVICES,LOOKED AFTER NORTH,OTHER TRANSPORT ARRANGEMENTS,19/07/2019,000006521620352,4.09,RINGGO PARKING
OXFORDSHIRE CC,"CHILDRENS, YOUNG PEOPLE AND FAMILIES",CSS WALLINGFORD,MEDICAL AND COUNSELLING FEES,19/07/2019,000006521620366,21.60,TRUE MOBILITY
OXFORDSHIRE CC,"CHILDRENS, YOUNG PEOPLE AND FAMILIES",POST 16 SI TRADED,DISABILITY AIDS AND EQUIPMENT,19/07/2019,000006521620940,139.95,AMZNMKTPLACE
OXFORDSHIRE CC,"CHILDRENS, YOUNG PEOPLE AND FAMILIES",THAME E&A HOME,CATERING PROVISIONS,19/07/2019,000006521620378,13.80,SAINSBURYS 2096
OXFORDSHIRE CC,"CHILDRENS, YOUNG PEOPLE AND FAMILIES",WITNEY,CATERING PROVISIONS,19/07/2019,000006521620384,22.89,LIDL GB  WITNEY
OXFORDSHIRE CC,"CHILDRENS, YOUNG PEOPLE AND FAMILIES","	NCS",CATERING,19/07/2019,000006521620394,6.90,BOSWELLS COFFEE COMPAN
OXFORDSHIRE CC,"CHILDRENS, YOUNG PEOPLE AND FAMILIES","	NCS",CATERING PROVISIONS,19/07/2019,000006521620398,135.77,WM MORRISONS STORE
OXFORDSHIRE CC,"CHILDRENS, YOUNG PEOPLE AND FAMILIES","	LOOKED AFTER CITY 1",MOTOR IF OWN DAMAGE,19/07/2019,000006521620416,408.99,CURRYS ONLINE
OXFORDSHIRE CC,SOCIAL AND COMMUNITY SERVICES,CSS - OXFORD,MATERIALS,19/07/2019,000006521620424,39.98,ALDI STORES 775-142
OXFORDSHIRE CC,ENVIRONMENT AND ECONOMY,"	FM RECHARGES",PAYMENT TO GOVERNMENT DEPARTMENTS,19/07/2019,000006521620430,25.00,CHERWELL DC
OXFORDSHIRE CC,ENVIRONMENT AND ECONOMY,HARD FM,GENERAL MAINTENANCE,19/07/2019,000006521620438,38.76,LOCHINVAR LTD
OXFORDSHIRE CC,ENVIRONMENT AND ECONOMY,HARD FM,MATERIALS,19/07/2019,000006521620444,58.11,TOOLSTATION LTD
OXFORDSHIRE CC,ENVIRONMENT AND ECONOMY,HARD FM,MATERIALS,19/07/2019,000006521620454,40.18,TOOLSTATION LTD
OXFORDSHIRE CC,CORPORATE CORE,OPERATIONS,MATERIALS,19/07/2019,000006521620974,25.65,AMZNMKTPLACE AMAZON.CO
OXFORDSHIRE CC,ENVIRONMENT AND ECONOMY,HARD FM,MATERIALS,19/07/2019,000006521620464,21.58,TOOLSTATION LTD
OXFORDSHIRE CC,ENVIRONMENT AND ECONOMY,HARD FM,CATERING PROVISIONS,19/07/2019,000006521620472,49.97,WWW.LINCAT.CO.UK
OXFORDSHIRE CC,ENVIRONMENT AND ECONOMY,HARD FM,CATERING PROVISIONS,19/07/2019,000006521620476,47.10,WWW.LINCAT.CO.UK
OXFORDSHIRE CC,ENVIRONMENT AND ECONOMY,HARD FM,HARDWARE AND CROCKERY,19/07/2019,000006521620480,37.03,SCREWFIX DIRECT
OXFORDSHIRE CC,ENVIRONMENT AND ECONOMY,HARD FM,EQUIPMENT,19/07/2019,000006521620484,-178.80,TESTO LTD
OXFORDSHIRE CC,ENVIRONMENT AND ECONOMY,COUNTY LIBRARY,GENERAL MAINTENANCE,19/07/2019,000006521620500,102.58,WOLSELEY UK
OXFORDSHIRE CC,SOCIAL AND COMMUNITY SERVICES,QUALITY & CONT 0-64,MATERIALS,19/07/2019,000006521621522,18.28,AMZNMKTPLACE
OXFORDSHIRE CC,"CHILDRENS, YOUNG PEOPLE AND FAMILIES",MEMBERS ALLOWANCES,REGISTRATION AND INSPECTION FEES,19/07/2019,000006521621528,420.70,WP-IFF PRAXIS LTD
OXFORDSHIRE CC,SOCIAL AND COMMUNITY SERVICES,ADULTS AT RISK WEST,MATERIALS,19/07/2019,000006521621534,15.48,AMZNMKTPLACE AMAZON.CO
OXFORDSHIRE CC,"CHILDRENS, YOUNG PEOPLE AND FAMILIES","	LEAVING CARE SOUTH",CLOTHING AND UNIFORMS,19/07/2019,000006521621538,91.10,PRIMARK
OXFORDSHIRE CC,"CHILDRENS, YOUNG PEOPLE AND FAMILIES",WITNEY,CATERING PROVISIONS,19/07/2019,000006521621554,10.00,SAINSBURYS SACAT 0632
OXFORDSHIRE CC,"CHILDRENS, YOUNG PEOPLE AND FAMILIES",WITNEY,MATERIALS,19/07/2019,000006521621558,25.00,WITNEY INSIDE SAINSBUR
OXFORDSHIRE CC,"CHILDRENS, YOUNG PEOPLE AND FAMILIES","	MUSIC UNALLOCABLE",POSTAGE AND DELIVERY,19/07/2019,000006521620984,2.26,THE POST OFFICE
OXFORDSHIRE CC,"CHILDRENS, YOUNG PEOPLE AND FAMILIES","	MUSIC UNALLOCABLE",VEHICLE FUEL,19/07/2019,000006521620736,58.15,TESCO PAYAT PUMP 3700
OXFORDSHIRE CC,"CHILDRENS, YOUNG PEOPLE AND FAMILIES","	LOOKED AFTER CITY 1",OTHER EMPLOYEE EXPENSES,19/07/2019,000006521620750,20.00,MARKS&SPENCER PLC
OXFORDSHIRE CC,CORPORATE CORE,LIBRARY COLLECTIONS,MATERIALS,19/07/2019,000006521620754,199.99,AMZNMKTPLACE
OXFORDSHIRE CC,CORPORATE CORE,LIBRARY COLLECTIONS,MATERIALS,19/07/2019,000006521620756,17.84,AMAZON.CO.UK MH2QW2NK4
OXFORDSHIRE CC,CORPORATE CORE,LIBRARY COLLECTIONS,MATERIALS,19/07/2019,000006521620760,19.96,AMZNMKTPLACE
OXFORDSHIRE CC,ENVIRONMENT AND ECONOMY,THE RIDGEWAY,EDUCATIONAL AND VOCATIONAL TRAINING ,19/07/2019,000006521620768,15.00,ENGLISH HERITAGE CUSTO
OXFORDSHIRE CC,SOCIAL AND COMMUNITY SERVICES,CSS - DIDCOT,EQUIPMENT,19/07/2019,000006521620238,20.48,AMZNMKTPLACE
OXFORDSHIRE CC,"CHILDRENS, YOUNG PEOPLE AND FAMILIES",THAME E&A HOME,CATERING,19/07/2019,000006521620244,26.38,HARVESTER SWINDON
OXFORDSHIRE CC,SOCIAL AND COMMUNITY SERVICES,CSS - BANBURY,CATERING PROVISIONS,19/07/2019,000006521620802,11.00,TESCO STORE 2064
OXFORDSHIRE CC,"CHILDRENS, YOUNG PEOPLE AND FAMILIES",NTH EARLY HELP-BCSTR,PAYMENTS TO TRANSPORT OPERATORS,19/07/2019,000006521620808,75.80,WWW.GWR.COM
OXFORDSHIRE CC,"CHILDRENS, YOUNG PEOPLE AND FAMILIES",NTH EARLY HELP-BCSTR,PAYMENTS TO TRANSPORT OPERATORS,19/07/2019,000006521620812,69.20,WWW.GWR.COM
OXFORDSHIRE CC,SOCIAL AND COMMUNITY SERVICES,CSS WANTAGE,EQUIPMENT,19/07/2019,000006521620278,123.95,WWW.ARGOS.CO.UK
OXFORDSHIRE CC,"CHILDRENS, YOUNG PEOPLE AND FAMILIES",STH EARLY HELP-ABNDN,MOTOR IF OWN DAMAGE,19/07/2019,000006521620286,119.96,ARGOS RETAIL GROUP
OXFORDSHIRE CC,"CHILDRENS, YOUNG PEOPLE AND FAMILIES","	FAMILY SUPPORT S'TH2",MATERIALS,19/07/2019,000006521620290,13.99,WWW.MILLETS.CO.UK
OXFORDSHIRE CC,SOCIAL AND COMMUNITY SERVICES,LOOKED AFTER SOUTH,PAYMENT TO GOVERNMENT DEPARTMENTS,19/07/2019,000006521620300,42.00,GEN REGISTER OFFICE
OXFORDSHIRE CC,"CHILDRENS, YOUNG PEOPLE AND FAMILIES",THAME E&A HOME,POSTAGE AND DELIVERY,19/07/2019,000006521620312,6.60,POST OFFICE COUNTER
OXFORDSHIRE CC,"CHILDRENS, YOUNG PEOPLE AND FAMILIES","	LOOKED AFTER CITY 1",PAYMENTS TO TRANSPORT OPERATORS,19/07/2019,000006521621352,35.56,TRAINLINE.COM
OXFORDSHIRE CC,"CHILDRENS, YOUNG PEOPLE AND FAMILIES","	LOOKED AFTER CITY 1",FURNITURE,19/07/2019,000006521621358,129.98,PAYPAL  BEDS 2 U
OXFORDSHIRE CC,"CHILDRENS, YOUNG PEOPLE AND FAMILIES","	LOOKED AFTER CITY 1",HIRE OF ACCOMMODATION AND FACILITIES,19/07/2019,000006521621364,90.50,PREMIER INN
OXFORDSHIRE CC,"CHILDRENS, YOUNG PEOPLE AND FAMILIES",NTH EARLY HELP-BCSTR,PAYMENTS TO VOLUNTARY BODIES,19/07/2019,000006521620816,156.00,WWW.DJBICKERTON@GMAIL.
OXFORDSHIRE CC,ENVIRONMENT AND ECONOMY,V2GO,OTHER TRANSPORT ARRANGEMENTS,19/07/2019,000006521620822,4.00,3C_ OXFORDSHIRE COUNTY
OXFORDSHIRE CC,"CHILDRENS, YOUNG PEOPLE AND FAMILIES","	LOOKED AFTER CITY 1",CATERING PROVISIONS,19/07/2019,000006521621368,25.05,ASDA STORE 4442
OXFORDSHIRE CC,"CHILDRENS, YOUNG PEOPLE AND FAMILIES","	40 THE MOORS",CATERING PROVISIONS,19/07/2019,000006521621388,9.95,TESCO STORE 2788
OXFORDSHIRE CC,"CHILDRENS, YOUNG PEOPLE AND FAMILIES","	40 THE MOORS",CATERING PROVISIONS,19/07/2019,000006521621392,6.00,TESCO STORE 2788
OXFORDSHIRE CC,"CHILDRENS, YOUNG PEOPLE AND FAMILIES","	40 THE MOORS",VEHICLES REPAIRS AND MAINTENANCE,19/07/2019,000006521621396,25.00,IZ  001 CARS
OXFORDSHIRE CC,"CHILDRENS, YOUNG PEOPLE AND FAMILIES",MEMBERS ALLOWANCES,AFTER SCHOOL ACTIVITIES,19/07/2019,000006521621414,40.16,TESCO STORES 4480
OXFORDSHIRE CC,"CHILDRENS, YOUNG PEOPLE AND FAMILIES",DIDCOT MOVE-ON HOME,CATERING PROVISIONS,19/07/2019,000006521621422,8.00,SAINSBURYS SACAT 2067
OXFORDSHIRE CC,ENVIRONMENT AND ECONOMY,V2GO,OTHER TRANSPORT ARRANGEMENTS,19/07/2019,000006521620826,2.00,SEACOURT PARK AND RIDE
OXFORDSHIRE CC,CORPORATE CORE,"	COMMUNICATIONS","PUBLICITY, PROMOTIONS AND ADVERTISEMENT",19/07/2019,000006521620834,297.81,GOOGLE  ADS4896546035
OXFORDSHIRE CC,CORPORATE CORE,"	COMMUNICATIONS",EQUIPMENT,19/07/2019,000006521620838,17.99,ARGOS RETAIL GROUP
OXFORDSHIRE CC,"CHILDRENS, YOUNG PEOPLE AND FAMILIES","	LEAVING CARE SOUTH",OTHER TRANSPORT ARRANGEMENTS,18/07/2019,000006516104190,3.00,3C_ BASINGSTOKE AND DE
OXFORDSHIRE CC,"CHILDRENS, YOUNG PEOPLE AND FAMILIES",HOUSE PROJECT,FURNITURE,18/07/2019,000006516104202,22.00,DUNELM LTD
OXFORDSHIRE CC,"CHILDRENS, YOUNG PEOPLE AND FAMILIES","	LEAVING CARE SOUTH",DRUGS AND MEDICAL SUPPLIES,18/07/2019,000006516104192,89.00,SPECSAVERS 00001000BAS
OXFORDSHIRE CC,"CHILDRENS, YOUNG PEOPLE AND FAMILIES",THAME E&A HOME,MATERIALS,18/07/2019,000006516104204,20.00,SUMUP   ACB GOLF RANGE
OXFORDSHIRE CC,CORPORATE CORE,,"SUPPLIES, STATIONERY AND MATERIALS",18/07/2019,000006516104208,91.22,LYRECO UK LTD
OXFORDSHIRE CC,"CHILDRENS, YOUNG PEOPLE AND FAMILIES","	LEAVING CARE SOUTH",OTHER EXPENSES,18/07/2019,000006516104194,3.99,MCDONALDS
OXFORDSHIRE CC,"CHILDRENS, YOUNG PEOPLE AND FAMILIES",WITNEY,MATERIALS,18/07/2019,000006516103834,9.99,WITNEY INSIDE SAINSBUR
OXFORDSHIRE CC,"CHILDRENS, YOUNG PEOPLE AND FAMILIES","	LOOKED AFTER CITY 1",OTHER EXPENSES,18/07/2019,000006516103836,45.00,SPECSAVER 00440000COWL
OXFORDSHIRE CC,"CHILDRENS, YOUNG PEOPLE AND FAMILIES",UASC 16&17,RESIDENTIAL ACTIVITIES,18/07/2019,000006516103848,20.00,WWW.ACTIVATE.CO.UK
OXFORDSHIRE CC,ENVIRONMENT AND ECONOMY,HARD FM,EQUIPMENT,18/07/2019,000006516103850,496.80,ANTARES TDC
OXFORDSHIRE CC,ENVIRONMENT AND ECONOMY,HARD FM,GENERAL MAINTENANCE,18/07/2019,000006516103852,58.48,WOLSELEY UK
OXFORDSHIRE CC,ENVIRONMENT AND ECONOMY,HARD FM,HARDWARE AND CROCKERY,18/07/2019,000006516103854,11.62,SCREWFIX OXFORD
OXFORDSHIRE CC,ENVIRONMENT AND ECONOMY,HARD FM,HARDWARE AND CROCKERY,18/07/2019,000006516103856,4.53,SCREWFIX OXFORD BOTLEY
OXFORDSHIRE CC,CORPORATE CORE,,"SUPPLIES, STATIONERY AND MATERIALS",18/07/2019,000006516104210,53.81,LYRECO UK LTD
OXFORDSHIRE CC,CORPORATE CORE,,"SUPPLIES, STATIONERY AND MATERIALS",18/07/2019,000006516104212,539.36,LYRECO UK LTD
OXFORDSHIRE CC,"CHILDRENS, YOUNG PEOPLE AND FAMILIES",FAMILY SUPPORT 2,MATERIALS,18/07/2019,000006516104222,145.00,WWW.VOUCHEREXPRESS.CO.
OXFORDSHIRE CC,SOCIAL AND COMMUNITY SERVICES,WITNEY LIBRARY,MATERIALS,18/07/2019,000006516104224,18.00,NEWS LINK
OXFORDSHIRE CC,"CHILDRENS, YOUNG PEOPLE AND FAMILIES","	DIRECTOR'S OFFICE",OTHER TRANSPORT ARRANGEMENTS,18/07/2019,000006516104226,8.70,RINGGO
OXFORDSHIRE CC,ENVIRONMENT AND ECONOMY,HARD FM,MATERIALS,18/07/2019,000006516103858,6.00,AMZNMKTPLACE
OXFORDSHIRE CC,ENVIRONMENT AND ECONOMY,HARD FM,MATERIALS,18/07/2019,000006516103860,6.00,AMZNMKTPLACE AMAZON.CO
OXFORDSHIRE CC,ENVIRONMENT AND ECONOMY,HARD FM,MATERIALS,18/07/2019,000006516103862,-6.47,AMAZON PRIME
OXFORDSHIRE CC,"CHILDRENS, YOUNG PEOPLE AND FAMILIES",THAME E&A HOME,CATERING PROVISIONS,18/07/2019,000006516103864,6.70,COSTA THAME
OXFORDSHIRE CC,"CHILDRENS, YOUNG PEOPLE AND FAMILIES",THAME E&A HOME,CATERING PROVISIONS,18/07/2019,000006516103866,5.90,COSTA THAME
OXFORDSHIRE CC,"CHILDRENS, YOUNG PEOPLE AND FAMILIES",THAME E&A HOME,CATERING PROVISIONS,18/07/2019,000006516103868,18.20,OXFORD W H SMITH
OXFORDSHIRE CC,ENVIRONMENT AND ECONOMY,COUNTY LIBRARY,HARDWARE AND CROCKERY,18/07/2019,000006516103872,24.33,CITY PLUMBING
OXFORDSHIRE CC,SOCIAL AND COMMUNITY SERVICES,RESIDENTIAL STRATEGY,CATERING PROVISIONS,18/07/2019,000006516103876,8.95,SAINSBURYS 0632
OXFORDSHIRE CC,SOCIAL AND COMMUNITY SERVICES,RESIDENTIAL STRATEGY,MATERIALS,18/07/2019,000006516103878,9.99,RAPTURE
OXFORDSHIRE CC,"CHILDRENS, YOUNG PEOPLE AND FAMILIES","	RIVERSIDE CENTRE",CATERING PROVISIONS,18/07/2019,000006516104238,7.39,TESCO STORES 4377
OXFORDSHIRE CC,"CHILDRENS, YOUNG PEOPLE AND FAMILIES","	RIVERSIDE CENTRE",OTHER TRANSPORT ARRANGEMENTS,18/07/2019,000006516104240,3.50,3C_ SODEXO LIMITED - S
OXFORDSHIRE CC,SOCIAL AND COMMUNITY SERVICES,CSS BICESTER,CATERING PROVISIONS,18/07/2019,000006516103772,2.10,SAINSBURYS SACAT (2243
OXFORDSHIRE CC,"CHILDRENS, YOUNG PEOPLE AND FAMILIES","	FAMILY SUPPORT S'TH2",PAYMENT TO GOVERNMENT DEPARTMENTS,18/07/2019,000006516103774,14.00,GEN REGISTER OFFICE
OXFORDSHIRE CC,SOCIAL AND COMMUNITY SERVICES,LOOKED AFTER SOUTH,POSTAGE AND DELIVERY,18/07/2019,000006516103776,1.90,POST OFFICE COUNTER
OXFORDSHIRE CC,SOCIAL AND COMMUNITY SERVICES,CSS BICESTER,VEHICLES REPAIRS AND MAINTENANCE,18/07/2019,000006516103766,133.58,DIBBLES AUTO SHOP
OXFORDSHIRE CC,"CHILDRENS, YOUNG PEOPLE AND FAMILIES",THAME E&A HOME,CATERING,18/07/2019,000006516103768,6.25,COSTA COFFEE 43043995
OXFORDSHIRE CC,"CHILDRENS, YOUNG PEOPLE AND FAMILIES",KINGFISHER,OTHER TRANSPORT ARRANGEMENTS,18/07/2019,000006516104148,87.00,STAGECOACH SERVICE
OXFORDSHIRE CC,"CHILDRENS, YOUNG PEOPLE AND FAMILIES","	40 THE MOORS",TELEPHONE - EQUIPMENT,18/07/2019,000006516104142,5.00,WWW.THREE.CO.UK
OXFORDSHIRE CC,SOCIAL AND COMMUNITY SERVICES,"	OPERATIONAL COSTS",CATERING,18/07/2019,000006516104150,148.00,THE JAM FACTORY OXFORD
OXFORDSHIRE CC,SOCIAL AND COMMUNITY SERVICES,"	OPERATIONAL COSTS",MATERIALS,18/07/2019,000006516104152,6.70,PAPERCHASE
OXFORDSHIRE CC,"CHILDRENS, YOUNG PEOPLE AND FAMILIES","	LEAVING CARE SOUTH",OTHER TRANSPORT ARRANGEMENTS,18/07/2019,000006516103798,87.00,STAGECOACH SERVICE
OXFORDSHIRE CC,"CHILDRENS, YOUNG PEOPLE AND FAMILIES",EYNSHAM,MOTOR IF OWN DAMAGE,18/07/2019,000006516103804,6.00,WORCESTER STREET CAR P
OXFORDSHIRE CC,"CHILDRENS, YOUNG PEOPLE AND FAMILIES",EYNSHAM,OTHER EXPENSES,18/07/2019,000006516103806,85.60,PIZZA HUT 251
OXFORDSHIRE CC,"CHILDRENS, YOUNG PEOPLE AND FAMILIES","	FAM SUPP SOUTH",PAYMENTS TO TRANSPORT OPERATORS,18/07/2019,000006516103808,-134.80,TRAINLINE.COM
OXFORDSHIRE CC,SOCIAL AND COMMUNITY SERVICES,DIDOCT LIBRARY,DRUGS AND MEDICAL SUPPLIES,18/07/2019,000006516104178,4.99,AMAZON.CO.UK MH7G30ZS4
OXFORDSHIRE CC,"CHILDRENS, YOUNG PEOPLE AND FAMILIES","	LEAVING CARE NORTH",REGISTRATION AND INSPECTION FEES,18/07/2019,000006516104180,11.00,OXFORDSHIRE CC MOTO1
OXFORDSHIRE CC,"CHILDRENS, YOUNG PEOPLE AND FAMILIES",UNION STREET FFS,CATERING PROVISIONS,18/07/2019,000006516104182,2.18,TESCO STORE 2990
OXFORDSHIRE CC,"CHILDRENS, YOUNG PEOPLE AND FAMILIES","	LEAVING CARE CITY 1",MATERIALS,18/07/2019,000006516104184,28.99,AMZNMKTPLACE
OXFORDSHIRE CC,ENVIRONMENT AND ECONOMY,"	ROW MAINT",CLOTHING AND UNIFORMS,18/07/2019,000006516103812,22.00,COTSWOLD OUTDOOR
OXFORDSHIRE CC,SOCIAL AND COMMUNITY SERVICES,CSS - ABINGDON,CATERING PROVISIONS,18/07/2019,000006516103814,8.22,WAITROSE 211
OXFORDSHIRE CC,"CHILDRENS, YOUNG PEOPLE AND FAMILIES","	SM QUALITY ASSURANCE",PAYMENTS TO TRANSPORT OPERATORS,18/07/2019,000006516103816,98.70,TRAINLINE
OXFORDSHIRE CC,"CHILDRENS, YOUNG PEOPLE AND FAMILIES","	LOOKED AFTER SOUTH",CATERING PROVISIONS,18/07/2019,000006516103818,7.50,SAINSBURYS SACAT 0642
OXFORDSHIRE CC,"CHILDRENS, YOUNG PEOPLE AND FAMILIES",THAME E&A HOME,CATERING PROVISIONS,18/07/2019,000006516103820,10.99,KS FOOD AND WINE
OXFORDSHIRE CC,"CHILDRENS, YOUNG PEOPLE AND FAMILIES",THAME E&A HOME,RESIDENTIAL ACTIVITIES,18/07/2019,000006516103822,160.00,WWW.HARDWICKPARKS.CO.U
OXFORDSHIRE CC,"CHILDRENS, YOUNG PEOPLE AND FAMILIES",THAME E&A HOME,RESIDENTIAL ACTIVITIES,18/07/2019,000006516103824,500.00,WWW.HARDWICKPARKS.CO.U
OXFORDSHIRE CC,"CHILDRENS, YOUNG PEOPLE AND FAMILIES",THAME E&A HOME,RESIDENTIAL ACTIVITIES,18/07/2019,000006516103826,500.00,WWW.HARDWICKPARKS.CO.U
OXFORDSHIRE CC,"CHILDRENS, YOUNG PEOPLE AND FAMILIES",THAME E&A HOME,RESIDENTIAL ACTIVITIES,18/07/2019,000006516103828,314.00,WWW.HARDWICKPARKS.CO.U
OXFORDSHIRE CC,"CHILDRENS, YOUNG PEOPLE AND FAMILIES",WITNEY,CATERING PROVISIONS,18/07/2019,000006516103830,18.24,SAINSBURYS SACAT 0632
OXFORDSHIRE CC,"CHILDRENS, YOUNG PEOPLE AND FAMILIES",WITNEY,CATERING PROVISIONS,18/07/2019,000006516103832,6.70,SAINSBURYS SACAT 0632
OXFORDSHIRE CC,CORPORATE CORE,OPERATIONS,MATERIALS,18/07/2019,000006516104010,21.96,AMZNMKTPLACE AMAZON.CO
OXFORDSHIRE CC,CORPORATE CORE,OPERATIONS,MATERIALS,18/07/2019,000006516104012,19.66,AMZNMKTPLACE AMAZON.CO
OXFORDSHIRE CC,CORPORATE CORE,OPERATIONS,MATERIALS,18/07/2019,000006516104014,115.35,AMZNMKTPLACE AMAZON.CO
OXFORDSHIRE CC,"CHILDRENS, YOUNG PEOPLE AND FAMILIES","	MUSIC UNALLOCABLE",CAR LEASING - PRIVATE RENTALS,18/07/2019,000006516104016,267.30,EURODRIVE
OXFORDSHIRE CC,"CHILDRENS, YOUNG PEOPLE AND FAMILIES","	MUSIC UNALLOCABLE",CAR LEASING - PRIVATE RENTALS,18/07/2019,000006516104018,56.70,EURODRIVE
OXFORDSHIRE CC,"CHILDRENS, YOUNG PEOPLE AND FAMILIES","	SPECIAL ACCOUNT",OTHER EXPENSES,18/07/2019,000006516104020,129.60,CAMALOON
OXFORDSHIRE CC,ENVIRONMENT AND ECONOMY,"	R & A STAFF & OPS",PAYMENTS TO TRANSPORT OPERATORS,18/07/2019,000006516104022,12.50,CROSS COUNTRY TRAINS
OXFORDSHIRE CC,ENVIRONMENT AND ECONOMY,"	BRIDGES GENERAL",MATERIALS,18/07/2019,000006516104024,31.99,AMZNMKTPLACE
OXFORDSHIRE CC,"CHILDRENS, YOUNG PEOPLE AND FAMILIES",UASC POST 18,OTHER TRANSPORT ARRANGEMENTS,18/07/2019,000006516104034,2.50,UNION STREET CAR PARK
OXFORDSHIRE CC,"CHILDRENS, YOUNG PEOPLE AND FAMILIES","	MALTFIELD HOUSE",CATERING PROVISIONS,18/07/2019,000006516104044,5.30,SPAR EYNSHAM
OXFORDSHIRE CC,"CHILDRENS, YOUNG PEOPLE AND FAMILIES","	RIVERSIDE CENTRE",CATERING PROVISIONS,18/07/2019,000006516104062,13.34,CO-OPERATIVE FOOD
OXFORDSHIRE CC,"CHILDRENS, YOUNG PEOPLE AND FAMILIES",THAME E&A HOME,MATERIALS,18/07/2019,000006516104064,11.37,AMAZON.CO.UK MH8AL8ZL4
OXFORDSHIRE CC,"CHILDRENS, YOUNG PEOPLE AND FAMILIES","	RESIDENTIAL STRATEGY",PAYMENTS TO TRANSPORT OPERATORS,18/07/2019,000006516104070,72.50,OXFORD PARKWAY SSTP
OXFORDSHIRE CC,SOCIAL AND COMMUNITY SERVICES,"	ASSESSMENT TEAM NORT",PAYMENT TO GOVERNMENT DEPARTMENTS,18/07/2019,000006516104082,18.00,CHERWELL DISTRICT COUN
OXFORDSHIRE CC,SOCIAL AND COMMUNITY SERVICES,"	MUSEUMS COLLECTIONS",OTHER SERVICES,18/07/2019,000006516104084,19.94,SHELL DUCKLINGTON
OXFORDSHIRE CC,SOCIAL AND COMMUNITY SERVICES,CSS WITNEY,MATERIALS,18/07/2019,000006516104094,12.90,AMZNMKTPLACE
OXFORDSHIRE CC,SOCIAL AND COMMUNITY SERVICES,CSS WITNEY,MATERIALS,18/07/2019,000006516104096,85.98,AMZNMKTPLACE AMAZON.CO
OXFORDSHIRE CC,"CHILDRENS, YOUNG PEOPLE AND FAMILIES",NORTH FSS- WITNEY,PAYMENT TO GOVERNMENT DEPARTMENTS,18/07/2019,000006516104106,104.00,NHSBSA PPC
OXFORDSHIRE CC,"CHILDRENS, YOUNG PEOPLE AND FAMILIES",MEMBERS ALLOWANCES,"BOOKS, DVDS AND CDS",18/07/2019,000006516104110,9.89,AMZNMKTPLACE
OXFORDSHIRE CC,"CHILDRENS, YOUNG PEOPLE AND FAMILIES","	LOOKED AFTER CITY 1",PAYMENTS TO TRANSPORT OPERATORS,18/07/2019,000006516104134,288.87,TRAINLINE.COM
OXFORDSHIRE CC,"CHILDRENS, YOUNG PEOPLE AND FAMILIES",THAME E&A HOME,CATERING,18/07/2019,000006516103884,8.00,COSTA COFFEE 43037200
OXFORDSHIRE CC,"CHILDRENS, YOUNG PEOPLE AND FAMILIES",THAME E&A HOME,CATERING PROVISIONS,18/07/2019,000006516103886,5.20,COSTA FARINGDON
OXFORDSHIRE CC,SOCIAL AND COMMUNITY SERVICES,DIDCOT MOVE-ON HOME,CATERING PROVISIONS,18/07/2019,000006516103888,48.27,TESCO STORE 2413
OXFORDSHIRE CC,"CHILDRENS, YOUNG PEOPLE AND FAMILIES",HOUSE PROJECT,OTHER TRANSPORT ARRANGEMENTS,18/07/2019,000006516103890,6.70,M6 TOLL
OXFORDSHIRE CC,"CHILDRENS, YOUNG PEOPLE AND FAMILIES",HOUSE PROJECT,OTHER TRANSPORT ARRANGEMENTS,18/07/2019,000006516103892,6.70,M6 TOLL
OXFORDSHIRE CC,SOCIAL AND COMMUNITY SERVICES,ADULT SERVICES IMPROVEMENT BOARD,CATERING PROVISIONS,18/07/2019,000006516103894,6.10,TESCO STORE 2413
OXFORDSHIRE CC,"CHILDRENS, YOUNG PEOPLE AND FAMILIES","	RIVERSIDE CENTRE",CATERING PROVISIONS,18/07/2019,000006516103896,7.40,SAINSBURYS SACAT 0600
OXFORDSHIRE CC,"CHILDRENS, YOUNG PEOPLE AND FAMILIES",THAME E&A HOME,CATERING PROVISIONS,18/07/2019,000006516103902,35.90,WAITROSE 153
OXFORDSHIRE CC,"CHILDRENS, YOUNG PEOPLE AND FAMILIES",NORTH FSS- BANBURY,HIRE OF ACCOMMODATION AND FACILITIES,18/07/2019,000006516103922,89.30,HOTEL ON BOOKING.COM S
OXFORDSHIRE CC,"CHILDRENS, YOUNG PEOPLE AND FAMILIES",NORTH FSS- BANBURY,PAYMENT TO GOVERNMENT DEPARTMENTS,18/07/2019,000006516103924,38.00,GEN REGISTER OFFICE
OXFORDSHIRE CC,"CHILDRENS, YOUNG PEOPLE AND FAMILIES",THAME E&A HOME,OTHER TRANSPORT ARRANGEMENTS,18/07/2019,000006516103926,4.00,WESTGATE OXFORD CAR PA
OXFORDSHIRE CC,SOCIAL AND COMMUNITY SERVICES,SCHOOLS FM,CATERING PROVISIONS,18/07/2019,000006516103928,6.87,TESCO STORE 3230
OXFORDSHIRE CC,SOCIAL AND COMMUNITY SERVICES,SCHOOLS FM,CATERING,18/07/2019,000006516103930,8.60,BOOKER LIMITED OXFORD
OXFORDSHIRE CC,"CHILDRENS, YOUNG PEOPLE AND FAMILIES",CNTL ERLY HELP-BBLEY,CATERING PROVISIONS,18/07/2019,000006516103932,11.15,TESCO STORE 2990
OXFORDSHIRE CC,SOCIAL AND COMMUNITY SERVICES,DIDCOT MOVE-ON HOME,CATERING PROVISIONS,18/07/2019,000006516103940,9.80,ICELAND
OXFORDSHIRE CC,"CHILDRENS, YOUNG PEOPLE AND FAMILIES","	DISABILITIES TEAM-C",OTHER EMPLOYEE EXPENSES,18/07/2019,000006516103942,66.00,PREMIER INN
OXFORDSHIRE CC,"CHILDRENS, YOUNG PEOPLE AND FAMILIES",DEPUTY DIRECTOR &MAN,PAYMENTS TO TRANSPORT OPERATORS,18/07/2019,000006516103956,-22.10,TRAINLINE
OXFORDSHIRE CC,ENVIRONMENT AND ECONOMY,DRIVEN,CATERING PROVISIONS,18/07/2019,000006516103964,5.43,TESCO STORES 6167
OXFORDSHIRE CC,ENVIRONMENT AND ECONOMY,DRIVEN,CATERING PROVISIONS,18/07/2019,000006516103966,14.00,MARKS&SPENCER PLC
OXFORDSHIRE CC,ENVIRONMENT AND ECONOMY,V2GO,PURCHASE OF IT EQUIPMENT,18/07/2019,000006516103970,394.07,TEAMGANTT
OXFORDSHIRE CC,SOCIAL AND COMMUNITY SERVICES,"	PUBLIC HEALTH GENERA",MATERIALS,18/07/2019,000006516103972,3.99,AMZNMKTPLACE
OXFORDSHIRE CC,CORPORATE CORE,OPERATIONS,MATERIALS,18/07/2019,000006516104006,7.99,AMZNMKTPLACE AMAZON.CO
OXFORDSHIRE CC,CORPORATE CORE,OPERATIONS,MATERIALS,18/07/2019,000006516104008,18.53,AMZNMKTPLACE AMAZON.CO
OXFORDSHIRE CC,ENVIRONMENT AND ECONOMY,COUNTY LIBRARY,GENERAL MAINTENANCE,17/07/2019,000006510751350,11.51,WOLSELEY UK
OXFORDSHIRE CC,"CHILDRENS, YOUNG PEOPLE AND FAMILIES","	LEAVING CARE NORTH",HIRE OF ACCOMMODATION AND FACILITIES,17/07/2019,000006510751354,81.99,AIRBNB   HMAHPMS8HE
OXFORDSHIRE CC,"CHILDRENS, YOUNG PEOPLE AND FAMILIES","	LOOKED AFTER CITY 2",VEHICLE FUEL,17/07/2019,000006510751364,2.30,SHELL DUCKLINGTON
OXFORDSHIRE CC,SOCIAL AND COMMUNITY SERVICES,CSS - OXFORD,MOTOR IF OWN DAMAGE,17/07/2019,000006510751366,3.40,ALDI STORES 775-142
OXFORDSHIRE CC,SOCIAL AND COMMUNITY SERVICES,CSS - OXFORD,CATERING PROVISIONS,17/07/2019,000006510751368,3.69,ALDI STORES 775-142
OXFORDSHIRE CC,SOCIAL AND COMMUNITY SERVICES,CSS - OXFORD,MATERIALS,17/07/2019,000006510751370,15.78,ALDI STORES 775-142
OXFORDSHIRE CC,SOCIAL AND COMMUNITY SERVICES,WITNEY MOVE ON HOME,CATERING PROVISIONS,17/07/2019,000006510751372,10.00,SAINSBURYS SACAT 0632
OXFORDSHIRE CC,"CHILDRENS, YOUNG PEOPLE AND FAMILIES","	RIVERSIDE CENTRE",PAYMENTS TO VOLUNTARY BODIES,17/07/2019,000006510751374,90.00,BHF SHOPS LTD
OXFORDSHIRE CC,"CHILDRENS, YOUNG PEOPLE AND FAMILIES","	RIVERSIDE CENTRE",PAYMENT TO GOVERNMENT DEPARTMENTS,17/07/2019,000006510751376,193.69,WWW.LEISURE.ORDNANCE
OXFORDSHIRE CC,"CHILDRENS, YOUNG PEOPLE AND FAMILIES",EYNSHAM,CATERING,17/07/2019,000006510751378,5.00,HOUSE OF JACOB LIMITED
OXFORDSHIRE CC,"CHILDRENS, YOUNG PEOPLE AND FAMILIES",EYNSHAM,CATERING,17/07/2019,000006510751380,8.00,THE SHAKE SHOP
OXFORDSHIRE CC,"CHILDRENS, YOUNG PEOPLE AND FAMILIES","	FAM SUPP SOUTH",OTHER SERVICES,17/07/2019,000006510751394,400.00,SOHA HOUSING LTD
OXFORDSHIRE CC,"CHILDRENS, YOUNG PEOPLE AND FAMILIES","	FAM SUPP SOUTH",CLIENT LODGINGS AND ACCOMMODATION,17/07/2019,000006510751396,331.46,SOHA HOUSING LTD
OXFORDSHIRE CC,SOCIAL AND COMMUNITY SERVICES,CSS WALLINGFORD,CATERING PROVISIONS,17/07/2019,000006510751400,10.70,WAITROSE 675
OXFORDSHIRE CC,SOCIAL AND COMMUNITY SERVICES,CSS WALLINGFORD,CATERING PROVISIONS,17/07/2019,000006510751402,3.25,WAITROSE 675
OXFORDSHIRE CC,ENTERPRISEVC,OTFC TEAM,CATERING PROVISIONS,17/07/2019,000006510751408,14.84,TESCO STORE 2994
OXFORDSHIRE CC,ENTERPRISEVC,OTFC TEAM,ENTERTAINMENT EXPENSES,17/07/2019,000006510751410,9.45,SNAKES AND LADDERS (AB
OXFORDSHIRE CC,"CHILDRENS, YOUNG PEOPLE AND FAMILIES","	LEAVING CARE CITY 1",FURNITURE,17/07/2019,000006510751654,21.95,DUNELM ONLINE ORDER
OXFORDSHIRE CC,"CHILDRENS, YOUNG PEOPLE AND FAMILIES","	40 THE MOORS",SUBSCRIPTIONS,17/07/2019,000006510751632,80.99,PUREGYM LIMITED
OXFORDSHIRE CC,"CHILDRENS, YOUNG PEOPLE AND FAMILIES",CSS WALLINGFORD,CATERING PROVISIONS,17/07/2019,000006510751282,15.17,WAITROSE 675
OXFORDSHIRE CC,SOCIAL AND COMMUNITY SERVICES,LOOKED AFTER SOUTH,VEHICLE FUEL,17/07/2019,000006510751284,38.29,SAINSBURYS PFS0146
OXFORDSHIRE CC,SOCIAL AND COMMUNITY SERVICES,LOOKED AFTER NORTH,PAYMENTS TO TRANSPORT OPERATORS,17/07/2019,000006510751292,58.91,TRAINLINE.COM
OXFORDSHIRE CC,SOCIAL AND COMMUNITY SERVICES,LOOKED AFTER NORTH,PAYMENTS TO TRANSPORT OPERATORS,17/07/2019,000006510751294,190.37,TRAINLINE.COM
OXFORDSHIRE CC,SOCIAL AND COMMUNITY SERVICES,LOOKED AFTER NORTH,CATERING PROVISIONS,17/07/2019,000006510751296,4.70,CO-OPERATIVE FOOD
OXFORDSHIRE CC,SOCIAL AND COMMUNITY SERVICES,LOOKED AFTER NORTH,CATERING PROVISIONS,17/07/2019,000006510751298,2.00,CO-OPERATIVE FOOD
OXFORDSHIRE CC,"CHILDRENS, YOUNG PEOPLE AND FAMILIES","	FAM SUPP SOUTH",PAYMENTS TO TRANSPORT OPERATORS,17/07/2019,000006510751304,148.86,TRAINLINE.COM
OXFORDSHIRE CC,"CHILDRENS, YOUNG PEOPLE AND FAMILIES","	LEAVING CARE CITY 1",MATERIALS,17/07/2019,000006510751656,298.93,WWW.ARGOS.CO.UK
OXFORDSHIRE CC,CORPORATE CORE,,"SUPPLIES, STATIONERY AND MATERIALS",17/07/2019,000006510751674,297.12,LYRECO UK LTD
OXFORDSHIRE CC,CORPORATE CORE,,"SUPPLIES, STATIONERY AND MATERIALS",17/07/2019,000006510751676,294.77,LYRECO UK LTD
OXFORDSHIRE CC,"CHILDRENS, YOUNG PEOPLE AND FAMILIES","	LOOKED AFTER SOUTH",RESIDENTIAL ACTIVITIES,17/07/2019,000006510751324,138.00,WWW.ULTIMATEACTIVITY.C
OXFORDSHIRE CC,CORPORATE CORE,,"SUPPLIES, STATIONERY AND MATERIALS",17/07/2019,000006510751678,138.96,LYRECO UK LTD
OXFORDSHIRE CC,CORPORATE CORE,,"SUPPLIES, STATIONERY AND MATERIALS",17/07/2019,000006510751680,4.68,LYRECO UK LTD
OXFORDSHIRE CC,"CHILDRENS, YOUNG PEOPLE AND FAMILIES","	SM QUALITY ASSURANCE",PAYMENTS TO TRANSPORT OPERATORS,17/07/2019,000006510751682,-232.30,TRAINLINE.COM
OXFORDSHIRE CC,"CHILDRENS, YOUNG PEOPLE AND FAMILIES","	LOOKED AFTER NORTH",CATERING,17/07/2019,000006510751686,7.95,PUMPKINS DELI
OXFORDSHIRE CC,"CHILDRENS, YOUNG PEOPLE AND FAMILIES",FIELDWORK UASC,OTHER EXPENSES,17/07/2019,000006510751688,57.50,AMZNMKTPLACE
OXFORDSHIRE CC,"CHILDRENS, YOUNG PEOPLE AND FAMILIES",FIELDWORK UASC,OTHER EXPENSES,17/07/2019,000006510751690,27.16,PAYPAL  PAY3 LTD
OXFORDSHIRE CC,"CHILDRENS, YOUNG PEOPLE AND FAMILIES",EYNSHAM,CATERING PROVISIONS,17/07/2019,000006510751692,2.98,CO-OPERATIVE FOOD
OXFORDSHIRE CC,"CHILDRENS, YOUNG PEOPLE AND FAMILIES",FAMILY SUPPORT 2,MATERIALS,17/07/2019,000006510751694,275.52,M & M SKIP HIRE
OXFORDSHIRE CC,ENVIRONMENT AND ECONOMY,HARD FM,HARDWARE AND CROCKERY,17/07/2019,000006510751332,11.97,SCREWFIX DIRECT LT
OXFORDSHIRE CC,ENVIRONMENT AND ECONOMY,HARD FM,GENERAL MAINTENANCE,17/07/2019,000006510751334,19.94,WOLSELEY UK
OXFORDSHIRE CC,ENVIRONMENT AND ECONOMY,HARD FM,HARDWARE AND CROCKERY,17/07/2019,000006510751336,41.77,SCREWFIX ABINGDON
OXFORDSHIRE CC,ENVIRONMENT AND ECONOMY,HARD FM,GENERAL MAINTENANCE,17/07/2019,000006510751338,59.82,WOLSELEY UK
OXFORDSHIRE CC,"CHILDRENS, YOUNG PEOPLE AND FAMILIES",THAME E&A HOME,CLOTHING AND UNIFORMS,17/07/2019,000006510751340,10.49,NEW LOOK
OXFORDSHIRE CC,"CHILDRENS, YOUNG PEOPLE AND FAMILIES",THAME E&A HOME,MATERIALS,17/07/2019,000006510751342,17.90,BENTALLS  KINGSTON
OXFORDSHIRE CC,"CHILDRENS, YOUNG PEOPLE AND FAMILIES",THAME E&A HOME,MATERIALS,17/07/2019,000006510751344,5.00,BENTALLS  KINGSTON
OXFORDSHIRE CC,"CHILDRENS, YOUNG PEOPLE AND FAMILIES",THAME E&A HOME,OTHER TRANSPORT ARRANGEMENTS,17/07/2019,000006510751346,4.20,BENTALL CENTRE
OXFORDSHIRE CC,ENVIRONMENT AND ECONOMY,COUNTY LIBRARY,GENERAL MAINTENANCE,17/07/2019,000006510751348,66.35,WOLSELEY UK
OXFORDSHIRE CC,"CHILDRENS, YOUNG PEOPLE AND FAMILIES",EYNSHAM,CATERING PROVISIONS,17/07/2019,000006510751722,114.27,TESCO STORES 2008
OXFORDSHIRE CC,SOCIAL AND COMMUNITY SERVICES,CSS WANTAGE,MATERIALS,17/07/2019,000006510751558,-9.95,AMZNMKTPLACE AMAZON.CO
OXFORDSHIRE CC,"CHILDRENS, YOUNG PEOPLE AND FAMILIES",NTH EARLY HELP-WITNY,MATERIALS,17/07/2019,000006510751576,184.44,WWW.ARGOS.CO.UK
OXFORDSHIRE CC,"CHILDRENS, YOUNG PEOPLE AND FAMILIES","	PLACEMENT DUTY TEAM",PAYMENTS TO TRANSPORT OPERATORS,17/07/2019,000006510751592,13.00,BANBURY STATION T/O
OXFORDSHIRE CC,"CHILDRENS, YOUNG PEOPLE AND FAMILIES","	FAM SUPP CITY 1",CATERING PROVISIONS,17/07/2019,000006510751612,48.24,MILK&MORE
OXFORDSHIRE CC,"CHILDRENS, YOUNG PEOPLE AND FAMILIES","	40 THE MOORS",CATERING PROVISIONS,17/07/2019,000006510751614,3.95,TESCO STORE 2788
OXFORDSHIRE CC,"CHILDRENS, YOUNG PEOPLE AND FAMILIES","	40 THE MOORS",CATERING,17/07/2019,000006510751616,56.20,TIFFINS
OXFORDSHIRE CC,"CHILDRENS, YOUNG PEOPLE AND FAMILIES","	40 THE MOORS",CATERING,17/07/2019,000006510751618,6.00,TIFFINS
OXFORDSHIRE CC,"CHILDRENS, YOUNG PEOPLE AND FAMILIES","	40 THE MOORS",OTHER TRANSPORT ARRANGEMENTS,17/07/2019,000006510751620,33.00,IZ  MIRZA
OXFORDSHIRE CC,SOCIAL AND COMMUNITY SERVICES,CSS WANTAGE,CATERING PROVISIONS,17/07/2019,000006510751278,95.09,ASDA GROCERIES ONLINE
OXFORDSHIRE CC,SOCIAL AND COMMUNITY SERVICES,CSS WANTAGE,CATERING PROVISIONS,17/07/2019,000006510751280,-5.70,ASDA GROCERIES ONLINE
OXFORDSHIRE CC,"CHILDRENS, YOUNG PEOPLE AND FAMILIES","	40 THE MOORS",TELEPHONE - EQUIPMENT,17/07/2019,000006510751634,5.00,WWW.THREE.CO.UK
OXFORDSHIRE CC,"CHILDRENS, YOUNG PEOPLE AND FAMILIES",DIDCOT MOVE-ON HOME,CATERING PROVISIONS,17/07/2019,000006510751636,8.95,SAINSBURYS SACAT 2067
OXFORDSHIRE CC,"CHILDRENS, YOUNG PEOPLE AND FAMILIES",DIDCOT MOVE-ON HOME,MATERIALS,17/07/2019,000006510751638,3.75,THE WORKS
OXFORDSHIRE CC,"CHILDRENS, YOUNG PEOPLE AND FAMILIES",DIDCOT MOVE-ON HOME,CATERING PROVISIONS,17/07/2019,000006510751640,10.30,SAINSBURYS SACAT 2067
OXFORDSHIRE CC,"CHILDRENS, YOUNG PEOPLE AND FAMILIES","	LOOKED AFTER CITY 2",OTHER TRANSPORT ARRANGEMENTS,17/07/2019,000006510751650,45.70,GWR OXFORD TO
OXFORDSHIRE CC,"CHILDRENS, YOUNG PEOPLE AND FAMILIES","	LOOKED AFTER CITY 2",FURNITURE,17/07/2019,000006510751652,524.00,WWW.IKEA.COM
OXFORDSHIRE CC,"CHILDRENS, YOUNG PEOPLE AND FAMILIES",THAME E&A HOME,CATERING PROVISIONS,17/07/2019,000006510751424,6.80,OXFORD PEARTREE STARBU
OXFORDSHIRE CC,"CHILDRENS, YOUNG PEOPLE AND FAMILIES",THAME E&A HOME,CATERING,17/07/2019,000006510751426,31.30,PIZZA EXPRESS
OXFORDSHIRE CC,ENTERPRISEVC,BUSINESS SYST STAFF,PRINTING,17/07/2019,000006510751428,41.70,JOHN WILEY & SONS PUBL
OXFORDSHIRE CC,SOCIAL AND COMMUNITY SERVICES,SCHOOLS FM,CATERING PROVISIONS,17/07/2019,000006510751430,10.00,CO-OPERATIVE FOOD
OXFORDSHIRE CC,SOCIAL AND COMMUNITY SERVICES,WITNEY MOVE ON HOME,CATERING PROVISIONS,17/07/2019,000006510751432,12.85,SAINSBURYS 0632
OXFORDSHIRE CC,SOCIAL AND COMMUNITY SERVICES,CSS - BANBURY,CATERING PROVISIONS,17/07/2019,000006510751448,8.20,TESCO STORE 2064
OXFORDSHIRE CC,"CHILDRENS, YOUNG PEOPLE AND FAMILIES",NTH EARLY HELP-BCSTR,PAYMENTS TO TRANSPORT OPERATORS,17/07/2019,000006510751450,125.10,WWW.GWR.COM
OXFORDSHIRE CC,CORPORATE CORE,"	COMMUNICATIONS",IT SERVICES,17/07/2019,000006510751454,20.75,"ZAPIER, INC"
OXFORDSHIRE CC,"CHILDRENS, YOUNG PEOPLE AND FAMILIES","	MUSIC UNALLOCABLE",OTHER TRANSPORT ARRANGEMENTS,17/07/2019,000006510751466,4.00,WESTGATE OXFORD CAR PA
OXFORDSHIRE CC,"CHILDRENS, YOUNG PEOPLE AND FAMILIES","	MUSIC UNALLOCABLE",OTHER TRANSPORT ARRANGEMENTS,17/07/2019,000006510751468,3.00,WESTGATE OXFORD CAR PA
OXFORDSHIRE CC,"CHILDRENS, YOUNG PEOPLE AND FAMILIES","	MUSIC UNALLOCABLE",CAR LEASING - PRIVATE RENTALS,17/07/2019,000006510751470,113.40,EURODRIVE
OXFORDSHIRE CC,SOCIAL AND COMMUNITY SERVICES,CORP PROC SERVICE,PAYMENTS TO TRANSPORT OPERATORS,17/07/2019,000006510751474,58.50,WWW.GWR.COM
OXFORDSHIRE CC,"CHILDRENS, YOUNG PEOPLE AND FAMILIES","	LOOKED AFTER CITY 2",PAYMENTS TO VOLUNTARY BODIES,17/07/2019,000006510751484,138.00,EMMAUS OXFORD
OXFORDSHIRE CC,"CHILDRENS, YOUNG PEOPLE AND FAMILIES",CNTL EARLY HELP-RHIL,PAYMENT TO GOVERNMENT DEPARTMENTS,17/07/2019,000006510751504,36.00,OXFORD DISTRICT SERVIC
OXFORDSHIRE CC,CORPORATE CORE,"	CC TRAINING",TRAINING RELATED EXPENDITURE,17/07/2019,000006510751506,108.90,WWW.GWR.COM
OXFORDSHIRE CC,"CHILDRENS, YOUNG PEOPLE AND FAMILIES",THAME E&A HOME,MATERIALS,17/07/2019,000006510751510,-9.32,AMZ GLOBENET BOOKS
OXFORDSHIRE CC,SOCIAL AND COMMUNITY SERVICES,LEAVING CARE NORTH,IT SOFTWARE,17/07/2019,000006510751518,28.00,I-CAB.CO.UK
OXFORDSHIRE CC,SOCIAL AND COMMUNITY SERVICES,LEAVING CARE NORTH,IT SOFTWARE,17/07/2019,000006510751520,28.00,I-CAB.CO.UK
OXFORDSHIRE CC,"CHILDRENS, YOUNG PEOPLE AND FAMILIES","	LEAVING CARE NORTH",MATERIALS,17/07/2019,000006510751540,14.99,ARGOS RETAIL GROUP
OXFORDSHIRE CC,"CHILDRENS, YOUNG PEOPLE AND FAMILIES","	40 THE MOORS",OTHER TRANSPORT ARRANGEMENTS,17/07/2019,000006510751546,30.00,SUMUP   WITNEY OXFORDS
OXFORDSHIRE CC,"CHILDRENS, YOUNG PEOPLE AND FAMILIES","	40 THE MOORS",DRUGS AND MEDICAL SUPPLIES,16/07/2019,000006506933228,26.16,AMZNMKTPLACE
OXFORDSHIRE CC,SOCIAL AND COMMUNITY SERVICES,LEAVING CARE NORTH,PAYMENTS TO TRANSPORT OPERATORS,16/07/2019,000006506933234,144.37,FLYBE.COM MDNZVI       0
OXFORDSHIRE CC,SOCIAL AND COMMUNITY SERVICES,"	MUSEUMS COLLECTIONS",OTHER SERVICES,16/07/2019,000006506933244,38.00,B & Q 1237
OXFORDSHIRE CC,"CHILDRENS, YOUNG PEOPLE AND FAMILIES","	LOOKED AFTER SOUTH",PAYMENT TO GOVERNMENT DEPARTMENTS,16/07/2019,000006506932554,381.00,HM PASSPORT
OXFORDSHIRE CC,"CHILDRENS, YOUNG PEOPLE AND FAMILIES","	LOOKED AFTER SOUTH",PAYMENT TO GOVERNMENT DEPARTMENTS,16/07/2019,000006506932558,254.00,HM PASSPORT
OXFORDSHIRE CC,"CHILDRENS, YOUNG PEOPLE AND FAMILIES",EYNSHAM,OTHER EXPENSES,16/07/2019,000006506932578,10.00,HOBBYCRAFT
OXFORDSHIRE CC,"CHILDRENS, YOUNG PEOPLE AND FAMILIES","	LEAVING CARE NORTH",PAYMENT TO GOVERNMENT DEPARTMENTS,16/07/2019,000006506933290,85.00,IPS DURHAM CONTACT CTR
OXFORDSHIRE CC,"CHILDRENS, YOUNG PEOPLE AND FAMILIES","	40 THE MOORS",CATERING PROVISIONS,16/07/2019,000006506933304,242.32,SAINSBURYS (2243)
OXFORDSHIRE CC,"CHILDRENS, YOUNG PEOPLE AND FAMILIES","	40 THE MOORS",CATERING PROVISIONS,16/07/2019,000006506933306,-4.00,SAINSBURYS (2243)
OXFORDSHIRE CC,SOCIAL AND COMMUNITY SERVICES,CSS WITNEY,CATERING PROVISIONS,16/07/2019,000006506933330,65.34,TESCO STORES 2008
OXFORDSHIRE CC,SOCIAL AND COMMUNITY SERVICES,CSS WANTAGE,MATERIALS,16/07/2019,000006506933332,18.50,SAINSBURYS SACAT 2244
OXFORDSHIRE CC,CORPORATE CORE,OPERATIONS,MATERIALS,16/07/2019,000006506933052,25.96,AMZNMKTPLACE AMAZON.CO
OXFORDSHIRE CC,"CHILDRENS, YOUNG PEOPLE AND FAMILIES","	SPECIAL ACCOUNT",POSTAGE AND DELIVERY,16/07/2019,000006506933064,1.40,THE POST OFFICE
OXFORDSHIRE CC,"CHILDRENS, YOUNG PEOPLE AND FAMILIES","	MUSIC UNALLOCABLE","BOOKS, DVDS AND CDS",16/07/2019,000006506933068,179.10,SALVATIONIST PUBLISHIN
OXFORDSHIRE CC,ENVIRONMENT AND ECONOMY,"	BRIDGES GENERAL",MATERIALS,16/07/2019,000006506933072,23.85,WETSUIT OUTLET
OXFORDSHIRE CC,"CHILDRENS, YOUNG PEOPLE AND FAMILIES",UASC 16&17,VEHICLE FUEL,16/07/2019,000006506933096,24.08,TESCO PAYAT PUMP 3700
OXFORDSHIRE CC,SOCIAL AND COMMUNITY SERVICES,CSS - BANBURY,CATERING PROVISIONS,16/07/2019,000006506932412,60.15,SAINSBURYS TO YOU 0642
OXFORDSHIRE CC,"CHILDRENS, YOUNG PEOPLE AND FAMILIES","	FAMILY SUPPORT S'TH2",CLIENT LODGINGS AND ACCOMMODATION,16/07/2019,000006506932444,99.00,WWW.GLENDOWERBB.COM
OXFORDSHIRE CC,"CHILDRENS, YOUNG PEOPLE AND FAMILIES",THAME E&A HOME,CATERING PROVISIONS,16/07/2019,000006506932448,19.60,WAITROSE 206
OXFORDSHIRE CC,CORPORATE CORE,"	LEGAL SERVICES",LEGAL COSTS,16/07/2019,000006506933158,588.04,THAMES WATER WEB
OXFORDSHIRE CC,CORPORATE CORE,"	LEGAL SERVICES",LEGAL COSTS,16/07/2019,000006506933162,11.00,OXFORDSHIRE CC MOTO1
OXFORDSHIRE CC,CORPORATE CORE,"	LEGAL SERVICES",STAFF SUBSISTENCE,16/07/2019,000006506933166,19.75,WWW.GWR.COM
OXFORDSHIRE CC,"CHILDRENS, YOUNG PEOPLE AND FAMILIES",THAME E&A HOME,MATERIALS,16/07/2019,000006506933172,6.41,AMAZON.CO.UK MH59754T4
OXFORDSHIRE CC,CORPORATE CORE,,"SUPPLIES, STATIONERY AND MATERIALS",16/07/2019,000006506933614,74.53,LYRECO UK LTD
OXFORDSHIRE CC,SHARED SERVICES,CSC SUPP & SERVICES,MATERIALS,16/07/2019,000006506933624,79.00,AMAZON.CO.UK MH32R6F04
OXFORDSHIRE CC,"CHILDRENS, YOUNG PEOPLE AND FAMILIES",EYNSHAM,MATERIALS,16/07/2019,000006506933626,-3.99,AMZ QIUYAN(UK)
OXFORDSHIRE CC,"CHILDRENS, YOUNG PEOPLE AND FAMILIES",DEPUTY DIRECTOR &MAN,PAYMENTS TO TRANSPORT OPERATORS,16/07/2019,000006506933642,52.50,TRAINLINE.COM
OXFORDSHIRE CC,"CHILDRENS, YOUNG PEOPLE AND FAMILIES",DIDCOT MOVE-ON HOME,CATERING PROVISIONS,16/07/2019,000006506932892,10.28,ICELAND
OXFORDSHIRE CC,"CHILDRENS, YOUNG PEOPLE AND FAMILIES",EYNSHAM,OTHER TRANSPORT ARRANGEMENTS,16/07/2019,000006506933692,19.00,STGCOACH/CTYLINK
OXFORDSHIRE CC,"CHILDRENS, YOUNG PEOPLE AND FAMILIES",EYNSHAM,CATERING PROVISIONS,16/07/2019,000006506933696,2.28,SPAR EYNSHAM
OXFORDSHIRE CC,"CHILDRENS, YOUNG PEOPLE AND FAMILIES",NORTH FSS- BANBURY,TELEPHONE - EQUIPMENT,16/07/2019,000006506932910,139.00,WWW.CARPHONEWAREHO
OXFORDSHIRE CC,"CHILDRENS, YOUNG PEOPLE AND FAMILIES","	LOOKED AFTER CITY 1",POSTAGE AND DELIVERY,16/07/2019,000006506932922,6.60,POST OFFICE COUNTER
OXFORDSHIRE CC,ENVIRONMENT AND ECONOMY,THE RIDGEWAY,PAYMENTS TO TRANSPORT OPERATORS,16/07/2019,000006506932936,28.80,TAPLOW TO
OXFORDSHIRE CC,ENVIRONMENT AND ECONOMY,THE RIDGEWAY,PAYMENTS TO TRANSPORT OPERATORS,16/07/2019,000006506932940,69.60,TAPLOW TO
OXFORDSHIRE CC,"CHILDRENS, YOUNG PEOPLE AND FAMILIES","	FAMILY SUPPORT S'TH2",PAYMENT TO GOVERNMENT DEPARTMENTS,16/07/2019,000006506932950,35.00,OXFORDSHIRE CC MOTO1
OXFORDSHIRE CC,"CHILDRENS, YOUNG PEOPLE AND FAMILIES",NTH EARLY HELP-BCSTR,PAYMENTS TO TRANSPORT OPERATORS,16/07/2019,000006506932982,77.20,WWW.GWR.COM
OXFORDSHIRE CC,"CHILDRENS, YOUNG PEOPLE AND FAMILIES",ASI BOARD,ENTERTAINMENT EXPENSES,16/07/2019,000006506932988,304.75,THE REGAL CINEMA
OXFORDSHIRE CC,CORPORATE CORE,OPERATIONS,MATERIALS,16/07/2019,000006506933038,31.92,AMAZON.CO.UK MH6VW3OW4
OXFORDSHIRE CC,CORPORATE CORE,OPERATIONS,MATERIALS,16/07/2019,000006506933044,8.58,AMZNMKTPLACE
OXFORDSHIRE CC,CORPORATE CORE,OPERATIONS,MATERIALS,16/07/2019,000006506933048,25.73,AMZNMKTPLACE AMAZON.CO
OXFORDSHIRE CC,"CHILDRENS, YOUNG PEOPLE AND FAMILIES",0-5 STDS & PROGRESS,PAYMENTS TO VOLUNTARY BODIES,16/07/2019,000006506933490,150.00,NLT SUBSCRIPTION
OXFORDSHIRE CC,"CHILDRENS, YOUNG PEOPLE AND FAMILIES",THAME E&A HOME,MATERIALS,16/07/2019,000006506932718,17.00,HOBBYCRAFT
OXFORDSHIRE CC,"CHILDRENS, YOUNG PEOPLE AND FAMILIES",THAME E&A HOME,MATERIALS,16/07/2019,000006506932722,88.93,SPORTSDIRECT 210
OXFORDSHIRE CC,ENVIRONMENT AND ECONOMY,COUNTY LIBRARY,GENERAL MAINTENANCE,16/07/2019,000006506932732,73.45,WOLSELEY UK
OXFORDSHIRE CC,"CHILDRENS, YOUNG PEOPLE AND FAMILIES","	LEAVING CARE NORTH",CATERING PROVISIONS,16/07/2019,000006506932738,39.99,SAINSBURYS 0642
OXFORDSHIRE CC,SOCIAL AND COMMUNITY SERVICES,CSS - OXFORD,CATERING PROVISIONS,16/07/2019,000006506932742,10.21,ALDI STORES 775-142
OXFORDSHIRE CC,SOCIAL AND COMMUNITY SERVICES,CSS BICESTER,CATERING PROVISIONS,16/07/2019,000006506932746,59.70,SAINSBURYS (2243)
OXFORDSHIRE CC,SOCIAL AND COMMUNITY SERVICES,BOTLEY LIBRARY,"NEWSPAPERS, PERIODICALS AND PUBLICATIONS",16/07/2019,000006506932758,7.00,MARTIN MCCOLL
OXFORDSHIRE CC,"CHILDRENS, YOUNG PEOPLE AND FAMILIES","	LOOKED AFTER CITY 2",MATERIALS,16/07/2019,000006506932762,249.99,WWW.ARGOS.CO.UK
OXFORDSHIRE CC,ENVIRONMENT AND ECONOMY,"	TVERC",IT SERVICES,16/07/2019,000006506933518,9.99,DROPBOX W6JT4V6GJ72Y
OXFORDSHIRE CC,"CHILDRENS, YOUNG PEOPLE AND FAMILIES","	LOOKED AFTER NORTH",REGISTRATION AND INSPECTION FEES,16/07/2019,000006506933536,176.00,OXFORDSHIRE CC MOTO1
OXFORDSHIRE CC,"CHILDRENS, YOUNG PEOPLE AND FAMILIES","	LOOKED AFTER NORTH",REGISTRATION AND INSPECTION FEES,16/07/2019,000006506933540,11.00,WWW.NORTHYORKS.GOV.UK
OXFORDSHIRE CC,"CHILDRENS, YOUNG PEOPLE AND FAMILIES",UASC POST 18,OTHER TRANSPORT ARRANGEMENTS,16/07/2019,000006506933548,3.20,BICESTER VIL SSTP
OXFORDSHIRE CC,SOCIAL AND COMMUNITY SERVICES,CSS - OXFORD,MATERIALS,16/07/2019,000006506932764,15.08,ALDI STORES 775-142
OXFORDSHIRE CC,SOCIAL AND COMMUNITY SERVICES,DIDCOT MOVE-ON HOME,CATERING PROVISIONS,16/07/2019,000006506932766,14.43,TESCO STORE 2413
OXFORDSHIRE CC,SOCIAL AND COMMUNITY SERVICES,ADULT SERVICES IMPROVEMENT BOARD,CATERING PROVISIONS,16/07/2019,000006506932780,85.00,WAITROSE 211
OXFORDSHIRE CC,"CHILDRENS, YOUNG PEOPLE AND FAMILIES",EYNSHAM,CATERING PROVISIONS,16/07/2019,000006506932794,4.49,ASDA STORES 4920
OXFORDSHIRE CC,CORPORATE CORE,SCHOOLS FM,CATERING PROVISIONS,16/07/2019,000006506932800,56.95,SAINSBURYS 2067
OXFORDSHIRE CC,"CHILDRENS, YOUNG PEOPLE AND FAMILIES",WITNEY,CATERING,16/07/2019,000006506932804,6.00,THE SHAKE SHOP
OXFORDSHIRE CC,"CHILDRENS, YOUNG PEOPLE AND FAMILIES",THAME E&A HOME,MATERIALS,16/07/2019,000006506933574,7.99,AMZNMKTPLACE
OXFORDSHIRE CC,"CHILDRENS, YOUNG PEOPLE AND FAMILIES",THAME E&A HOME,CATERING PROVISIONS,16/07/2019,000006506933576,153.72,SAINSBURYS TO YOU 0600
OXFORDSHIRE CC,"CHILDRENS, YOUNG PEOPLE AND FAMILIES",THAME E&A HOME,CATERING PROVISIONS,16/07/2019,000006506933580,-4.70,SAINSBURYS TO YOU 0600
OXFORDSHIRE CC,"CHILDRENS, YOUNG PEOPLE AND FAMILIES",HOUSE PROJECT,PAYMENT TO GOVERNMENT DEPARTMENTS,16/07/2019,000006506933596,38.00,GEN REGISTER OFFICE
OXFORDSHIRE CC,CORPORATE CORE,MOTOR FLEET,MOTOR IF OWN DAMAGE,16/07/2019,000006506933600,"1,593.86",WHOLESALE AUTOPARTS
OXFORDSHIRE CC,SOCIAL AND COMMUNITY SERVICES,CSS BICESTER,MANAGEMENT CONSULTANT FEES,16/07/2019,000006506932622,154.50,TVLICENSING.CO.UK
OXFORDSHIRE CC,"CHILDRENS, YOUNG PEOPLE AND FAMILIES",THAME E&A HOME,VEHICLE FUEL,16/07/2019,000006506932626,1.09,STADHAMPTON SF CONNECT
OXFORDSHIRE CC,"CHILDRENS, YOUNG PEOPLE AND FAMILIES",THAME E&A HOME,HOSPITALITY EXPENSES,16/07/2019,000006506932628,34.57,BARLEY MOW CLIFTON HA
OXFORDSHIRE CC,"CHILDRENS, YOUNG PEOPLE AND FAMILIES",THAME E&A HOME,OTHER TRANSPORT ARRANGEMENTS,16/07/2019,000006506932632,2.00,3C_ OXFORDSHIRE COUNTY
OXFORDSHIRE CC,"CHILDRENS, YOUNG PEOPLE AND FAMILIES","	LOOKED AFTER CITY 1",CLOTHING AND UNIFORMS,16/07/2019,000006506932636,13.50,MATALAN
OXFORDSHIRE CC,"CHILDRENS, YOUNG PEOPLE AND FAMILIES","	PARENT PARTNERSHIP",CATERING PROVISIONS,16/07/2019,000006506933408,7.80,M&S SIMPLY FOOD - SSP
OXFORDSHIRE CC,ENVIRONMENT AND ECONOMY,LIB ICT SUPPRT&MAINT,MATERIALS,16/07/2019,000006506933416,206.82,AMZNMKTPLACE AMAZON.CO
OXFORDSHIRE CC,"CHILDRENS, YOUNG PEOPLE AND FAMILIES","	40 THE MOORS",CATERING PROVISIONS,16/07/2019,000006506933430,3.50,TESCO STORE 2788
OXFORDSHIRE CC,"CHILDRENS, YOUNG PEOPLE AND FAMILIES",EYNSHAM,OTHER EXPENSES,16/07/2019,000006506933436,39.98,SPORTSDIRECT.COM
OXFORDSHIRE CC,ENVIRONMENT AND ECONOMY,"	BUSINESS SYST STAFF",CATERING PROVISIONS,16/07/2019,000006506933440,6.15,TESCO STORES 6167
OXFORDSHIRE CC,"CHILDRENS, YOUNG PEOPLE AND FAMILIES","	SM QUALITY ASSURANCE",PAYMENTS TO TRANSPORT OPERATORS,16/07/2019,000006506932682,87.40,SOUTHERN RAILWAY WEB
OXFORDSHIRE CC,ENVIRONMENT AND ECONOMY,HARD FM,HARDWARE AND CROCKERY,16/07/2019,000006506932690,35.97,SCREWFIX OXFORD BOTLEY
OXFORDSHIRE CC,ENVIRONMENT AND ECONOMY,HARD FM,HARDWARE AND CROCKERY,16/07/2019,000006506932694,19.50,WICKES OXFORD
OXFORDSHIRE CC,ENVIRONMENT AND ECONOMY,HARD FM,HARDWARE AND CROCKERY,16/07/2019,000006506932700,45.31,B & Q 1062
OXFORDSHIRE CC,ENVIRONMENT AND ECONOMY,HARD FM,MATERIALS,16/07/2019,000006506932704,7.99,AMAZON PRIME MH4TD8F34
OXFORDSHIRE CC,ENVIRONMENT AND ECONOMY,HARD FM,HARDWARE AND CROCKERY,16/07/2019,000006506932708,11.99,SCREWFIX OXFORD BOTLEY
OXFORDSHIRE CC,ENVIRONMENT AND ECONOMY,HARD FM,GENERAL MAINTENANCE,16/07/2019,000006506932710,183.90,WOLSELEY UK
OXFORDSHIRE CC,"CHILDRENS, YOUNG PEOPLE AND FAMILIES",THAME E&A HOME,OTHER TRANSPORT ARRANGEMENTS,16/07/2019,000006506932716,4.30,PARKING CHARGE
OXFORDSHIRE CC,"CHILDRENS, YOUNG PEOPLE AND FAMILIES",EYNSHAM,OTHER TRANSPORT ARRANGEMENTS,15/07/2019,000006499558196,4.00,WESTGATE OXFORD CAR PA
OXFORDSHIRE CC,ENVIRONMENT AND ECONOMY,"	MINERALS & WASTE",PAYMENTS TO VOLUNTARY BODIES,15/07/2019,000006499557356,180.00,BMI
OXFORDSHIRE CC,CORPORATE CORE,OPERATIONS,MATERIALS,15/07/2019,000006499557380,21.99,AMZNMKTPLACE AMAZON.CO
OXFORDSHIRE CC,CORPORATE CORE,OPERATIONS,MATERIALS,15/07/2019,000006499557386,13.25,AMZNMKTPLACE AMAZON.CO
OXFORDSHIRE CC,CORPORATE CORE,OPERATIONS,MATERIALS,15/07/2019,000006499557390,14.97,AMZNMKTPLACE AMAZON.CO
OXFORDSHIRE CC,CORPORATE CORE,OPERATIONS,MATERIALS,15/07/2019,000006499557394,5.60,AMZNMKTPLACE AMAZON.CO
OXFORDSHIRE CC,CORPORATE CORE,OPERATIONS,MATERIALS,15/07/2019,000006499557396,13.16,AMZNMKTPLACE AMAZON.CO
OXFORDSHIRE CC,CORPORATE CORE,OPERATIONS,MATERIALS,15/07/2019,000006499557398,16.60,AMZNMKTPLACE AMAZON.CO
OXFORDSHIRE CC,"CHILDRENS, YOUNG PEOPLE AND FAMILIES",EYNSHAM,FURNITURE,15/07/2019,000006499558200,23.95,AMZNMKTPLACE
OXFORDSHIRE CC,"CHILDRENS, YOUNG PEOPLE AND FAMILIES",EYNSHAM,FURNITURE,15/07/2019,000006499558202,39.99,AMAZON.CO.UK MH6ZA2CK4
OXFORDSHIRE CC,CORPORATE CORE,OPERATIONS,"BOOKS, DVDS AND CDS",15/07/2019,000006499557400,10.77,AMZNMKTPLACE
OXFORDSHIRE CC,CORPORATE CORE,OPERATIONS,MATERIALS,15/07/2019,000006499557402,8.94,AMZNMKTPLACE
OXFORDSHIRE CC,CORPORATE CORE,OPERATIONS,MATERIALS,15/07/2019,000006499557404,20.04,AMZNMKTPLACE
OXFORDSHIRE CC,CORPORATE CORE,OPERATIONS,MATERIALS,15/07/2019,000006499557406,14.07,AMZNMKTPLACE AMAZON.CO
OXFORDSHIRE CC,"CHILDRENS, YOUNG PEOPLE AND FAMILIES","	MUSIC UNALLOCABLE",VEHICLE FUEL,15/07/2019,000006499557420,27.13,TESCO PAYAT PUMP 3700
OXFORDSHIRE CC,"CHILDRENS, YOUNG PEOPLE AND FAMILIES","	MUSIC UNALLOCABLE",VEHICLE FUEL,15/07/2019,000006499557424,10.07,TESCO PAYAT PUMP 3700
OXFORDSHIRE CC,"CHILDRENS, YOUNG PEOPLE AND FAMILIES","	MUSIC UNALLOCABLE","BOOKS, DVDS AND CDS",15/07/2019,000006499557438,109.79,AMAZON.CO.UK MH6WK3C34
OXFORDSHIRE CC,SOCIAL AND COMMUNITY SERVICES,CSS - OXFORD,MATERIALS,15/07/2019,000006499557444,7.99,AMAZON PRIME MH7LG0C14
OXFORDSHIRE CC,"CHILDRENS, YOUNG PEOPLE AND FAMILIES",EYNSHAM,DRUGS AND MEDICAL SUPPLIES,15/07/2019,000006499557482,4.00,CO-OPERATIVE FOOD
OXFORDSHIRE CC,"CHILDRENS, YOUNG PEOPLE AND FAMILIES",EYNSHAM,DAY ACTIVITIES,15/07/2019,000006499557484,1.90,SPAR EYNSHAM
OXFORDSHIRE CC,CORPORATE CORE,HISTORY SERVICE,"BOOKS, DVDS AND CDS",15/07/2019,000006499557496,12.99,AMAZON.CO.UK MH4ON7CR4
OXFORDSHIRE CC,CORPORATE CORE,HISTORY SERVICE,"BOOKS, DVDS AND CDS",15/07/2019,000006499557498,44.18,AMAZON.CO.UK MH7TS8CI4
OXFORDSHIRE CC,CORPORATE CORE,"	LEGAL SERVICES",MATERIALS,15/07/2019,000006499557514,64.62,AMAZON.CO.UK MH0G16OO4
OXFORDSHIRE CC,CORPORATE CORE,"	LEGAL SERVICES",POSTAGE AND DELIVERY,15/07/2019,000006499557518,749.99,DXNS CREDIT CONTROL
OXFORDSHIRE CC,"CHILDRENS, YOUNG PEOPLE AND FAMILIES","	RIVERSIDE CENTRE",CATERING PROVISIONS,15/07/2019,000006499557530,15.10,TESCO STORES 4377
OXFORDSHIRE CC,SOCIAL AND COMMUNITY SERVICES,CSS - DIDCOT,CATERING,15/07/2019,000006499556760,31.30,CHURCHILLS
OXFORDSHIRE CC,SOCIAL AND COMMUNITY SERVICES,CSS BICESTER,CATERING,15/07/2019,000006499556766,72.80,BARBERRY FISH BAR
OXFORDSHIRE CC,"CHILDRENS, YOUNG PEOPLE AND FAMILIES",THAME E&A HOME,CATERING,15/07/2019,000006499556774,7.50,COSTA COFFEE 43043995
OXFORDSHIRE CC,"CHILDRENS, YOUNG PEOPLE AND FAMILIES",THAME E&A HOME,CATERING,15/07/2019,000006499556778,13.45,COSTA COFFEE 43041630
OXFORDSHIRE CC,"CHILDRENS, YOUNG PEOPLE AND FAMILIES","	RESIDENTIAL STRATEGY",CATERING,15/07/2019,000006499557550,325.00,HACKETT S FOOD AND DRI
OXFORDSHIRE CC,CORPORATE CORE,LIBRARY COLLECTIONS,"NEWSPAPERS, PERIODICALS AND PUBLICATIONS",15/07/2019,000006499557236,47.62,GUARDIAN NEWS & MEDIA
OXFORDSHIRE CC,CORPORATE CORE,LIBRARY COLLECTIONS,"NEWSPAPERS, PERIODICALS AND PUBLICATIONS",15/07/2019,000006499557238,47.62,GUARDIAN NEWS & MEDIA
OXFORDSHIRE CC,CORPORATE CORE,LIBRARY COLLECTIONS,"NEWSPAPERS, PERIODICALS AND PUBLICATIONS",15/07/2019,000006499557242,47.62,GUARDIAN NEWS & MEDIA
OXFORDSHIRE CC,CORPORATE CORE,LIBRARY COLLECTIONS,"NEWSPAPERS, PERIODICALS AND PUBLICATIONS",15/07/2019,000006499557244,47.62,GUARDIAN NEWS & MEDIA
OXFORDSHIRE CC,CORPORATE CORE,LIBRARY COLLECTIONS,"NEWSPAPERS, PERIODICALS AND PUBLICATIONS",15/07/2019,000006499557246,47.62,GUARDIAN NEWS & MEDIA
OXFORDSHIRE CC,"CHILDRENS, YOUNG PEOPLE AND FAMILIES","	MUSIC UNALLOCABLE",OTHER TRANSPORT ARRANGEMENTS,15/07/2019,000006499558042,7.00,WESTGATE OXFORD CAR PA
OXFORDSHIRE CC,"CHILDRENS, YOUNG PEOPLE AND FAMILIES","	LEAVING CARE CITY 2",RESIDENTIAL ACTIVITIES,15/07/2019,000006499558052,25.76,FRANKIE & BENNYS 5389
OXFORDSHIRE CC,"CHILDRENS, YOUNG PEOPLE AND FAMILIES","	LEAVING CARE CITY 2",OTHER TRANSPORT ARRANGEMENTS,15/07/2019,000006499558056,6.80,BANBURY STATION T/O
OXFORDSHIRE CC,"CHILDRENS, YOUNG PEOPLE AND FAMILIES","	LEAVING CARE SOUTH",PAYMENTS TO TRANSPORT OPERATORS,15/07/2019,000006499558058,13.00,GWR OXFORD TO
OXFORDSHIRE CC,"CHILDRENS, YOUNG PEOPLE AND FAMILIES","	LEAVING CARE CITY 2",RESIDENTIAL ACTIVITIES,15/07/2019,000006499558064,23.07,HOLLYWOOD BOWL
OXFORDSHIRE CC,CORPORATE CORE,ICT OPERATIONS & MAI,PAYMENTS TO TRANSPORT OPERATORS,15/07/2019,000006499558070,81.70,WWW.GWR.COM
OXFORDSHIRE CC,CORPORATE CORE,ICT OPERATIONS & MAI,PURCHASE OF IT EQUIPMENT,15/07/2019,000006499558072,20.56,GITHUB.COM
OXFORDSHIRE CC,"CHILDRENS, YOUNG PEOPLE AND FAMILIES",THAME E&A HOME,CATERING PROVISIONS,15/07/2019,000006499558076,93.93,SAINSBURYS TO YOU 0600
OXFORDSHIRE CC,"CHILDRENS, YOUNG PEOPLE AND FAMILIES",EYNSHAM,CATERING PROVISIONS,15/07/2019,000006499558082,130.08,TESCO STORES 2008
OXFORDSHIRE CC,CORPORATE CORE,LIBRARY COLLECTIONS,"NEWSPAPERS, PERIODICALS AND PUBLICATIONS",15/07/2019,000006499557250,47.62,GUARDIAN NEWS & MEDIA
OXFORDSHIRE CC,CORPORATE CORE,LIBRARY COLLECTIONS,"NEWSPAPERS, PERIODICALS AND PUBLICATIONS",15/07/2019,000006499557252,47.62,GUARDIAN NEWS & MEDIA
OXFORDSHIRE CC,CORPORATE CORE,LIBRARY COLLECTIONS,"NEWSPAPERS, PERIODICALS AND PUBLICATIONS",15/07/2019,000006499557254,47.62,GUARDIAN NEWS & MEDIA
OXFORDSHIRE CC,ENVIRONMENT AND ECONOMY,THE RIDGEWAY,CATERING,15/07/2019,000006499557260,25.50,THE RED LION AT NORTHM
OXFORDSHIRE CC,"CHILDRENS, YOUNG PEOPLE AND FAMILIES","	40 THE MOORS",OTHER TRANSPORT ARRANGEMENTS,15/07/2019,000006499557266,4.00,WESTGATE OXFORD CAR PA
OXFORDSHIRE CC,"CHILDRENS, YOUNG PEOPLE AND FAMILIES","	40 THE MOORS",CLOTHING AND UNIFORMS,15/07/2019,000006499557270,133.00,PRIMARK 440
OXFORDSHIRE CC,"CHILDRENS, YOUNG PEOPLE AND FAMILIES",NTH EARLY HELP-BCSTR,PAYMENTS TO TRANSPORT OPERATORS,15/07/2019,000006499557292,84.30,WWW.GWR.COM
OXFORDSHIRE CC,"CHILDRENS, YOUNG PEOPLE AND FAMILIES",ATV ADOPTION OXFORD,CATERING PROVISIONS,15/07/2019,000006499557298,6.85,TESCO STORES 6292
OXFORDSHIRE CC,ENTERPRISEVC,,CAR LEASING - PRIVATE RENTALS,15/07/2019,000006499558128,565.75,ENTERPRISE RENT-A-CAR
OXFORDSHIRE CC,ENTERPRISEVC,,CAR LEASING - PRIVATE RENTALS,15/07/2019,000006499558132,565.75,ENTERPRISE RENT-A-CAR
OXFORDSHIRE CC,"CHILDRENS, YOUNG PEOPLE AND FAMILIES",HOUSE PROJECT,VEHICLE FUEL,15/07/2019,000006499558092,8.61,TESCO PFS 2488
OXFORDSHIRE CC,"CHILDRENS, YOUNG PEOPLE AND FAMILIES",THAME E&A HOME,MATERIALS,15/07/2019,000006499558096,12.99,A B GOLF
OXFORDSHIRE CC,"CHILDRENS, YOUNG PEOPLE AND FAMILIES",THAME E&A HOME,MATERIALS,15/07/2019,000006499558098,20.00,SUMUP   ACB GOLF RANGE
OXFORDSHIRE CC,"CHILDRENS, YOUNG PEOPLE AND FAMILIES",THAME E&A HOME,VEHICLE FUEL,15/07/2019,000006499558102,6.60,ESSO THAME SERVICE ARE
OXFORDSHIRE CC,"CHILDRENS, YOUNG PEOPLE AND FAMILIES",THAME E&A HOME,SUBSCRIPTIONS,15/07/2019,000006499558116,4.90,AQUA VALE SWIMMING
OXFORDSHIRE CC,"CHILDRENS, YOUNG PEOPLE AND FAMILIES",FAMILY SUPPORT 2,MATERIALS,15/07/2019,000006499558122,176.95,WWW.ARGOS.CO.UK
OXFORDSHIRE CC,"CHILDRENS, YOUNG PEOPLE AND FAMILIES",FAMILY SUPPORT 2,MATERIALS,15/07/2019,000006499558124,406.94,WWW.ARGOS.CO.UK
OXFORDSHIRE CC,"CHILDRENS, YOUNG PEOPLE AND FAMILIES",CUDDESDON CORNER FSS,CATERING PROVISIONS,15/07/2019,000006499558142,6.54,LIDL GB OXFORD
OXFORDSHIRE CC,SOCIAL AND COMMUNITY SERVICES,CSS - BANBURY,MATERIALS,15/07/2019,000006499557860,48.92,AMZNMKTPLACE AMAZON.CO
OXFORDSHIRE CC,ENVIRONMENT AND ECONOMY,WOODSTOCK LIBRARY,EQUIPMENT,15/07/2019,000006499557870,38.95,COLOP UK LTD
OXFORDSHIRE CC,"CHILDRENS, YOUNG PEOPLE AND FAMILIES",EYNSHAM,CATERING PROVISIONS,15/07/2019,000006499557878,21.75,TESCO STORE 2994
OXFORDSHIRE CC,"CHILDRENS, YOUNG PEOPLE AND FAMILIES",EYNSHAM,MATERIALS,15/07/2019,000006499557884,4.00,SPORTSDIRECT 218
OXFORDSHIRE CC,"CHILDRENS, YOUNG PEOPLE AND FAMILIES",EYNSHAM,CATERING PROVISIONS,15/07/2019,000006499557888,1.10,CO-OPERATIVE FOOD
OXFORDSHIRE CC,"CHILDRENS, YOUNG PEOPLE AND FAMILIES",EYNSHAM,CATERING,15/07/2019,000006499557892,36.78,DOMINOS PIZZA UK & IRE
OXFORDSHIRE CC,"CHILDRENS, YOUNG PEOPLE AND FAMILIES",EYNSHAM,CATERING PROVISIONS,15/07/2019,000006499557894,6.78,CO-OPERATIVE FOOD
OXFORDSHIRE CC,"CHILDRENS, YOUNG PEOPLE AND FAMILIES",WITNEY,CATERING PROVISIONS,15/07/2019,000006499557110,49.95,SAINSBURYS 0632
OXFORDSHIRE CC,"CHILDRENS, YOUNG PEOPLE AND FAMILIES","	FAM SUPP SOUTH",MOTOR IF OWN DAMAGE,15/07/2019,000006499557118,150.08,TRAINLINE.COM
OXFORDSHIRE CC,ENTERPRISEVC,CICC,OTHER TRANSPORT ARRANGEMENTS,15/07/2019,000006499557122,38.95,STAGECOACH SERVICE
OXFORDSHIRE CC,ENTERPRISEVC,CICC,CATERING PROVISIONS,15/07/2019,000006499557126,79.45,SAINSBURYS TO YOU 0600
OXFORDSHIRE CC,CORPORATE CORE,"	CHAIRMANS ALLOWANCE",CATERING PROVISIONS,15/07/2019,000006499557162,16.50,SAINSBURYS SACAT 0631
OXFORDSHIRE CC,"CHILDRENS, YOUNG PEOPLE AND FAMILIES",DIDCOT MOVE-ON HOME,CATERING PROVISIONS,15/07/2019,000006499557948,16.95,SAINSBURYS SACAT 2067
OXFORDSHIRE CC,"CHILDRENS, YOUNG PEOPLE AND FAMILIES",DIDCOT MOVE-ON HOME,CATERING PROVISIONS,15/07/2019,000006499557954,10.10,SAINSBURYS SACAT 2067
OXFORDSHIRE CC,"CHILDRENS, YOUNG PEOPLE AND FAMILIES",DIDCOT MOVE-ON HOME,CATERING PROVISIONS,15/07/2019,000006499557956,3.00,SAINSBURYS SACAT 2067
OXFORDSHIRE CC,"CHILDRENS, YOUNG PEOPLE AND FAMILIES",DIDCOT MOVE-ON HOME,CATERING PROVISIONS,15/07/2019,000006499557960,16.12,SAINSBURYS SACAT 2067
OXFORDSHIRE CC,"CHILDRENS, YOUNG PEOPLE AND FAMILIES",0-5 STDS & PROGRESS,"NEWSPAPERS, PERIODICALS AND PUBLICATIONS",15/07/2019,000006499557972,299.40,THENATIONALCURRICULUM.
OXFORDSHIRE CC,CORPORATE CORE,"	CHAIRMANS ALLOWANCE",PHOTOCOPYING,15/07/2019,000006499557168,5.00,OXFORD PRINT CENTRE
OXFORDSHIRE CC,"CHILDRENS, YOUNG PEOPLE AND FAMILIES",THAME E&A HOME,MATERIALS,15/07/2019,000006499557172,10.00,HELL-FIRE CAVES
OXFORDSHIRE CC,"CHILDRENS, YOUNG PEOPLE AND FAMILIES",THAME E&A HOME,OTHER TRANSPORT ARRANGEMENTS,15/07/2019,000006499557174,2.00,PARKJOCKEY LONDON
OXFORDSHIRE CC,"CHILDRENS, YOUNG PEOPLE AND FAMILIES",NORTH FSS- BANBURY,OTHER TRANSPORT ARRANGEMENTS,15/07/2019,000006499557178,5.00,DART-CHARGE
OXFORDSHIRE CC,"CHILDRENS, YOUNG PEOPLE AND FAMILIES",THAME E&A HOME,CATERING PROVISIONS,15/07/2019,000006499557190,8.10,TESCO STORES 4377
OXFORDSHIRE CC,"CHILDRENS, YOUNG PEOPLE AND FAMILIES",THAME E&A HOME,CATERING,15/07/2019,000006499557194,9.39,STARBUCKS
OXFORDSHIRE CC,"CHILDRENS, YOUNG PEOPLE AND FAMILIES",THAME E&A HOME,OTHER TRANSPORT ARRANGEMENTS,15/07/2019,000006499557196,2.00,HEADINGTON CAR PARK
OXFORDSHIRE CC,CORPORATE CORE,RESOURCING,"PUBLICITY, PROMOTIONS AND ADVERTISEMENT",15/07/2019,000006499557198,235.16,FACEBK TDCQRKSH72
OXFORDSHIRE CC,"CHILDRENS, YOUNG PEOPLE AND FAMILIES",DIDCOT MOVE-ON HOME,CATERING PROVISIONS,15/07/2019,000006499557202,15.70,SAINSBURYS SACAT 2067
OXFORDSHIRE CC,"CHILDRENS, YOUNG PEOPLE AND FAMILIES",DIDCOT MOVE-ON HOME,ENTERTAINMENT EXPENSES,15/07/2019,000006499557206,14.60,CINEWORLD DID CP
OXFORDSHIRE CC,"CHILDRENS, YOUNG PEOPLE AND FAMILIES",0-5 STDS & PROGRESS,EDUCATIONAL AND VOCATIONAL TRAINING ,15/07/2019,000006499557976,127.98,WWW.FORUMBUSINESSTRAIN
OXFORDSHIRE CC,SOCIAL AND COMMUNITY SERVICES,SCHOOLS FM,HIRE OF ACCOMMODATION AND FACILITIES,15/07/2019,000006499557210,18.00,BIRMINGHAM METROPOLE
OXFORDSHIRE CC,SOCIAL AND COMMUNITY SERVICES,SCHOOLS FM,HIRE OF ACCOMMODATION AND FACILITIES,15/07/2019,000006499557212,18.00,BIRMINGHAM METROPOLE
OXFORDSHIRE CC,SOCIAL AND COMMUNITY SERVICES,CSS - OXFORD,MATERIALS,15/07/2019,000006499556968,7.99,AMAZON PRIME M61NO1YB4
OXFORDSHIRE CC,ENVIRONMENT AND ECONOMY,"	FM RECHARGES",MATERIALS,15/07/2019,000006499556976,7.99,AMAZON PRIME M62EF9YU4
OXFORDSHIRE CC,ENVIRONMENT AND ECONOMY,HARD FM,HARDWARE AND CROCKERY,15/07/2019,000006499556984,45.68,B & Q 1156
OXFORDSHIRE CC,ENVIRONMENT AND ECONOMY,HARD FM,HARDWARE AND CROCKERY,15/07/2019,000006499556992,21.23,B & Q 1156
OXFORDSHIRE CC,ENVIRONMENT AND ECONOMY,HARD FM,FURNITURE,15/07/2019,000006499556994,4.24,REYNOLDS BLINDS
OXFORDSHIRE CC,ENVIRONMENT AND ECONOMY,HARD FM,MATERIALS,15/07/2019,000006499557002,6.60,AMAZON.CO.UK MH64M4CI4
OXFORDSHIRE CC,"CHILDRENS, YOUNG PEOPLE AND FAMILIES",THAME E&A HOME,SUBSCRIPTIONS,15/07/2019,000006499557008,6.20,AQUA VALE SWIMMING
OXFORDSHIRE CC,"CHILDRENS, YOUNG PEOPLE AND FAMILIES",MEMBERS ALLOWANCES,MATERIALS,15/07/2019,000006499557748,25.93,AMZNMKTPLACE AMAZON.CO
OXFORDSHIRE CC,ENVIRONMENT AND ECONOMY,COUNTY LIBRARY,GENERAL MAINTENANCE,15/07/2019,000006499557018,22.92,WOLSELEY UK
OXFORDSHIRE CC,ENVIRONMENT AND ECONOMY,COUNTY LIBRARY,GENERAL MAINTENANCE,15/07/2019,000006499557024,31.92,WOLSELEY UK
OXFORDSHIRE CC,ENVIRONMENT AND ECONOMY,COUNTY LIBRARY,GENERAL MAINTENANCE,15/07/2019,000006499557030,30.12,WOLSELEY UK
OXFORDSHIRE CC,ENVIRONMENT AND ECONOMY,"	COUNTY PRINT FINSHRS",HARDWARE AND CROCKERY,15/07/2019,000006499557046,11.96,SCREWFIX OXFORD BOTLEY
OXFORDSHIRE CC,"CHILDRENS, YOUNG PEOPLE AND FAMILIES",EYNSHAM,DAY ACTIVITIES,15/07/2019,000006499557052,4.00,CO-OPERATIVE FOOD
OXFORDSHIRE CC,"CHILDRENS, YOUNG PEOPLE AND FAMILIES",EYNSHAM,CATERING,15/07/2019,000006499557056,4.19,CO-OPERATIVE FOOD
OXFORDSHIRE CC,"CHILDRENS, YOUNG PEOPLE AND FAMILIES",EYNSHAM,DAY ACTIVITIES,15/07/2019,000006499557058,5.50,THE SHAKE SHOP LTD CAR
OXFORDSHIRE CC,"CHILDRENS, YOUNG PEOPLE AND FAMILIES","	FAMILY SUPPORT CITY3",OTHER EXPENSES,15/07/2019,000006499557814,37.95,THE GARDEN
OXFORDSHIRE CC,"CHILDRENS, YOUNG PEOPLE AND FAMILIES","	40 THE MOORS",CATERING,15/07/2019,000006499557838,96.54,BOOKER LIMITED OXFORD
OXFORDSHIRE CC,"CHILDRENS, YOUNG PEOPLE AND FAMILIES","	40 THE MOORS",MATERIALS,15/07/2019,000006499557840,7.99,AMAZON PRIME MH7MG7C84
OXFORDSHIRE CC,"CHILDRENS, YOUNG PEOPLE AND FAMILIES",THAME E&A HOME,ENTERTAINMENT EXPENSES,15/07/2019,000006499557068,30.50,RUSH - HIGH WYCOMBE
OXFORDSHIRE CC,"CHILDRENS, YOUNG PEOPLE AND FAMILIES","	LEAVING CARE CITY 1",OTHER EXPENSES,15/07/2019,000006499557072,53.00,ADRIAN FLUX INSURANCE
OXFORDSHIRE CC,"CHILDRENS, YOUNG PEOPLE AND FAMILIES","	LEAVING CARE CITY 1",OTHER EXPENSES,15/07/2019,000006499557078,22.50,DVLA VEHICLE TAX
OXFORDSHIRE CC,CORPORATE CORE,SCHOOLS FM,HIRE OF ACCOMMODATION AND FACILITIES,15/07/2019,000006499557100,18.00,BIRMINGHAM METROPOLE
OXFORDSHIRE CC,CORPORATE CORE,SCHOOLS FM,HIRE OF ACCOMMODATION AND FACILITIES,15/07/2019,000006499557102,18.00,BIRMINGHAM METROPOLE
OXFORDSHIRE CC,"CHILDRENS, YOUNG PEOPLE AND FAMILIES",WITNEY,CATERING PROVISIONS,15/07/2019,000006499557108,5.57,SAINSBURYS SACAT 0632
OXFORDSHIRE CC,"CHILDRENS, YOUNG PEOPLE AND FAMILIES",THAME E&A HOME,MATERIALS,15/07/2019,000006499556800,6.99,AMZNMKTPLACE AMAZON.CO
OXFORDSHIRE CC,"CHILDRENS, YOUNG PEOPLE AND FAMILIES",ADMINISTRATION,PAYMENTS TO TRANSPORT OPERATORS,15/07/2019,000006499556810,19.89,TRAINLINE.COM
OXFORDSHIRE CC,"CHILDRENS, YOUNG PEOPLE AND FAMILIES","	RESIDENTIAL STRATEGY",HIRE OF ACCOMMODATION AND FACILITIES,15/07/2019,000006499557590,500.00,BUCKINGHAM HOTELS
OXFORDSHIRE CC,"CHILDRENS, YOUNG PEOPLE AND FAMILIES","	RESIDENTIAL STRATEGY",HIRE OF ACCOMMODATION AND FACILITIES,15/07/2019,000006499557592,550.00,BUCKINGHAM HOTELS
OXFORDSHIRE CC,"CHILDRENS, YOUNG PEOPLE AND FAMILIES","	ADOPTION",CATERING PROVISIONS,15/07/2019,000006499557604,17.45,SAINSBURYS 0632
OXFORDSHIRE CC,SOCIAL AND COMMUNITY SERVICES,"	MUSEUMS COLLECTIONS",OTHER SERVICES,15/07/2019,000006499557620,5.98,AMZNMKTPLACE AMAZON.CO
OXFORDSHIRE CC,SOCIAL AND COMMUNITY SERVICES,"	MUSEUMS COLLECTIONS",OTHER SERVICES,15/07/2019,000006499557624,198.18,WWW.PRESERVATIONEQUIPM
OXFORDSHIRE CC,SOCIAL AND COMMUNITY SERVICES,"	MUSEUMS COLLECTIONS",OTHER SERVICES,15/07/2019,000006499557628,80.04,AMZNMKTPLACE
OXFORDSHIRE CC,SOCIAL AND COMMUNITY SERVICES,"	MUSEUMS COLLECTIONS",OTHER SERVICES,15/07/2019,000006499557630,25.44,AMZNMKTPLACE AMAZON.CO
OXFORDSHIRE CC,"CHILDRENS, YOUNG PEOPLE AND FAMILIES","	FAMILY SUPPORT CITY3",OTHER TRANSPORT ARRANGEMENTS,15/07/2019,000006499556832,3.50,3C_ ECP EAST OXFORD HE
OXFORDSHIRE CC,"CHILDRENS, YOUNG PEOPLE AND FAMILIES","	RESIDENTIAL STRATEGY",CATERING,15/07/2019,000006499556858,6.65,COSTA COFFEE 43039930
OXFORDSHIRE CC,"CHILDRENS, YOUNG PEOPLE AND FAMILIES","	RESIDENTIAL STRATEGY",HARDWARE AND CROCKERY,15/07/2019,000006499556860,25.75,BICESTER GARDEN CENTRE
OXFORDSHIRE CC,"CHILDRENS, YOUNG PEOPLE AND FAMILIES",EYNSHAM,OTHER EXPENSES,15/07/2019,000006499556864,24.50,PRIMARK 693
OXFORDSHIRE CC,ENVIRONMENT AND ECONOMY,"	ROW MAINT",MATERIALS,15/07/2019,000006499556898,5.25,EVENLODE DIY
OXFORDSHIRE CC,"CHILDRENS, YOUNG PEOPLE AND FAMILIES",KINGFISHER,OTHER TRANSPORT ARRANGEMENTS,15/07/2019,000006499557664,6.70,M6 TOLL
OXFORDSHIRE CC,"CHILDRENS, YOUNG PEOPLE AND FAMILIES",KINGFISHER,MATERIALS,15/07/2019,000006499557666,22.00,THEWORKS.CO.UK
OXFORDSHIRE CC,"CHILDRENS, YOUNG PEOPLE AND FAMILIES","	40 THE MOORS",DRUGS AND MEDICAL SUPPLIES,15/07/2019,000006499557674,4.59,LLOYDS PHARMACY
OXFORDSHIRE CC,"CHILDRENS, YOUNG PEOPLE AND FAMILIES","	40 THE MOORS",OTHER TRANSPORT ARRANGEMENTS,15/07/2019,000006499557678,40.00,IZ  001 TAXI
OXFORDSHIRE CC,"CHILDRENS, YOUNG PEOPLE AND FAMILIES","	40 THE MOORS",OTHER TRANSPORT ARRANGEMENTS,15/07/2019,000006499557682,45.00,IZ  TAXI OXFORD
OXFORDSHIRE CC,"CHILDRENS, YOUNG PEOPLE AND FAMILIES","	40 THE MOORS",OTHER TRANSPORT ARRANGEMENTS,15/07/2019,000006499557686,27.50,SUMUP   TAXI 001
OXFORDSHIRE CC,ENVIRONMENT AND ECONOMY,"	NAT TRAILS GENERAL",PAYMENT TO GOVERNMENT DEPARTMENTS,15/07/2019,000006499556918,262.50,DVLA VEHICLE TAX
OXFORDSHIRE CC,"CHILDRENS, YOUNG PEOPLE AND FAMILIES",CSS WALLINGFORD,CATERING PROVISIONS,15/07/2019,000006499556922,11.90,WAITROSE 675
OXFORDSHIRE CC,"CHILDRENS, YOUNG PEOPLE AND FAMILIES","	LOOKED AFTER SOUTH",VEHICLE FUEL,15/07/2019,000006499556932,48.88,BP THE BUCK F/STN
OXFORDSHIRE CC,"CHILDRENS, YOUNG PEOPLE AND FAMILIES",THAME E&A HOME,ENTERTAINMENT EXPENSES,15/07/2019,000006499556936,47.90,EMPIRE CINEMAS
OXFORDSHIRE CC,"CHILDRENS, YOUNG PEOPLE AND FAMILIES","	NCS",MATERIALS,15/07/2019,000006499556940,40.27,MAILCHIMP    MONTHLY
OXFORDSHIRE CC,SOCIAL AND COMMUNITY SERVICES,CSS - OXFORD,VEHICLE EQUIPMENT AND EXPENSES - OTHER,12/07/2019,000006492279926,82.06,LSW
OXFORDSHIRE CC,ENVIRONMENT AND ECONOMY,MEMBERS' BAR,CATERING PROVISIONS,12/07/2019,000006492279928,23.96,ALDI 77 775
OXFORDSHIRE CC,CORPORATE CORE,,"SUPPLIES, STATIONERY AND MATERIALS",12/07/2019,000006492280142,58.22,LYRECO UK LTD
OXFORDSHIRE CC,CORPORATE CORE,,"SUPPLIES, STATIONERY AND MATERIALS",12/07/2019,000006492280144,33.00,LYRECO UK LTD
OXFORDSHIRE CC,CORPORATE CORE,,"SUPPLIES, STATIONERY AND MATERIALS",12/07/2019,000006492280146,10.22,LYRECO UK LTD
OXFORDSHIRE CC,CORPORATE CORE,,"SUPPLIES, STATIONERY AND MATERIALS",12/07/2019,000006492280148,8.52,LYRECO UK LTD
OXFORDSHIRE CC,"CHILDRENS, YOUNG PEOPLE AND FAMILIES","	LOOKED AFTER NORTH",FURNITURE,12/07/2019,000006492280150,4.60,DUNELM LTD
OXFORDSHIRE CC,"CHILDRENS, YOUNG PEOPLE AND FAMILIES",FAMILY SUPPORT 2,MATERIALS,12/07/2019,000006492280152,92.46,AMZNMKTPLACE
OXFORDSHIRE CC,"CHILDRENS, YOUNG PEOPLE AND FAMILIES",FAMILY SUPPORT 2,PAYMENTS TO TRANSPORT OPERATORS,12/07/2019,000006492280154,10.15,WWW.GWR.COM
OXFORDSHIRE CC,"CHILDRENS, YOUNG PEOPLE AND FAMILIES","	LEAVING CARE NORTH",OTHER EXPENSES,12/07/2019,000006492280156,319.00,WWW.IKEA.COM
OXFORDSHIRE CC,"CHILDRENS, YOUNG PEOPLE AND FAMILIES",NTH EARLY HELP-BCSTR,PAYMENTS TO VOLUNTARY BODIES,12/07/2019,000006492279930,63.30,WWW.CORAM.ORG.UK
OXFORDSHIRE CC,"CHILDRENS, YOUNG PEOPLE AND FAMILIES","	LEAVING CARE CITY 2",VEHICLE FUEL,12/07/2019,000006492279942,32.90,ILFRACOMBE S/STN
OXFORDSHIRE CC,"CHILDRENS, YOUNG PEOPLE AND FAMILIES","	LEAVING CARE CITY 2",VEHICLE FUEL,12/07/2019,000006492279944,24.95,TESCO PAYAT PUMP 3700
OXFORDSHIRE CC,"CHILDRENS, YOUNG PEOPLE AND FAMILIES","	LOOKED AFTER CITY 2",POSTAGE AND DELIVERY,12/07/2019,000006492279946,6.60,POST OFFICE COUNTER
OXFORDSHIRE CC,"CHILDRENS, YOUNG PEOPLE AND FAMILIES",EYNSHAM,CATERING,12/07/2019,000006492279950,6.30,SAINSBURYS SACAT 0631
OXFORDSHIRE CC,"CHILDRENS, YOUNG PEOPLE AND FAMILIES","	FOSTER CARE RECRUIT","PUBLICITY, PROMOTIONS AND ADVERTISEMENT",12/07/2019,000006492279952,480.00,ROUND & ABOUT PUBLICAT
OXFORDSHIRE CC,ENVIRONMENT AND ECONOMY,VOLUNTEER COORDINATI,MATERIALS,12/07/2019,000006492279728,370.88,AMZNMKTPLACE
OXFORDSHIRE CC,ENVIRONMENT AND ECONOMY,ELEC NPR ST LTG,MATERIALS,12/07/2019,000006492279722,65.95,AMZNMKTPLACE AMAZON.CO
OXFORDSHIRE CC,"CHILDRENS, YOUNG PEOPLE AND FAMILIES","	FAMILY SUPPORT S'TH2",FURNITURE,12/07/2019,000006492279724,39.99,ARGOS RETAIL GROUP
OXFORDSHIRE CC,"CHILDRENS, YOUNG PEOPLE AND FAMILIES",CNTL EARLY HELP-RHIL,CATERING PROVISIONS,12/07/2019,000006492279958,8.00,ASDA STORE 4442
OXFORDSHIRE CC,"CHILDRENS, YOUNG PEOPLE AND FAMILIES","	RIVERSIDE CENTRE",CATERING PROVISIONS,12/07/2019,000006492279960,5.65,TESCO STORES 4377
OXFORDSHIRE CC,"CHILDRENS, YOUNG PEOPLE AND FAMILIES",THAME E&A HOME,CATERING PROVISIONS,12/07/2019,000006492279962,3.25,SPAR SUPER STORE
OXFORDSHIRE CC,SOCIAL AND COMMUNITY SERVICES,LEAVING CARE NORTH,CATERING PROVISIONS,12/07/2019,000006492279964,3.45,CO-OP GROUP FOOD
OXFORDSHIRE CC,SOCIAL AND COMMUNITY SERVICES,LOOKED AFTER NORTH,OTHER TRANSPORT ARRANGEMENTS,12/07/2019,000006492279742,7.20,LEEDS TAXI OWNERS LTD
OXFORDSHIRE CC,SOCIAL AND COMMUNITY SERVICES,LOOKED AFTER NORTH,PAYMENTS TO TRANSPORT OPERATORS,12/07/2019,000006492279744,203.30,BANBURY STATION T/O
OXFORDSHIRE CC,"CHILDRENS, YOUNG PEOPLE AND FAMILIES",EYNSHAM,DAY ACTIVITIES,12/07/2019,000006492279750,5.30,SAINSBURYS 0642
OXFORDSHIRE CC,"CHILDRENS, YOUNG PEOPLE AND FAMILIES",EYNSHAM,OTHER EXPENSES,12/07/2019,000006492279748,6.50,SAINSBURYS SACAT 0642
OXFORDSHIRE CC,ENVIRONMENT AND ECONOMY,"	NAT TRAILS GENERAL",MATERIALS,12/07/2019,000006492279760,15.00,BRIANTS OF RISBOROUGH
OXFORDSHIRE CC,"CHILDRENS, YOUNG PEOPLE AND FAMILIES",CSS - DIDCOT,CATERING PROVISIONS,12/07/2019,000006492279762,9.48,B & M RETAIL
OXFORDSHIRE CC,"CHILDRENS, YOUNG PEOPLE AND FAMILIES","	LEAVING CARE NORTH",PAYMENTS TO TRANSPORT OPERATORS,12/07/2019,000006492279988,3.60,OXFORD PARKWAY SSTP
OXFORDSHIRE CC,"CHILDRENS, YOUNG PEOPLE AND FAMILIES","	LEAVING CARE NORTH",PAYMENTS TO TRANSPORT OPERATORS,12/07/2019,000006492279990,2.00,OXFORD PARKWAY SSTP
OXFORDSHIRE CC,"CHILDRENS, YOUNG PEOPLE AND FAMILIES","	40 THE MOORS",OTHER TRANSPORT ARRANGEMENTS,12/07/2019,000006492280000,30.00,SUMUP   WITNEY OXFORDS
OXFORDSHIRE CC,"CHILDRENS, YOUNG PEOPLE AND FAMILIES",THAME E&A HOME,CATERING,12/07/2019,000006492279772,6.50,COSTA COFFEE 43043995
OXFORDSHIRE CC,"CHILDRENS, YOUNG PEOPLE AND FAMILIES","	SM QUALITY ASSURANCE",PAYMENTS TO TRANSPORT OPERATORS,12/07/2019,000006492279774,4.35,TRAINLINE
OXFORDSHIRE CC,"CHILDRENS, YOUNG PEOPLE AND FAMILIES","	LOOKED AFTER SOUTH",CATERING,12/07/2019,000006492279776,23.25,COSTA COFFEE
OXFORDSHIRE CC,"CHILDRENS, YOUNG PEOPLE AND FAMILIES","	LOOKED AFTER SOUTH",OTHER TRANSPORT ARRANGEMENTS,12/07/2019,000006492279778,.80,PARKJOCKEY LONDON
OXFORDSHIRE CC,"CHILDRENS, YOUNG PEOPLE AND FAMILIES","	LOOKED AFTER SOUTH",OTHER TRANSPORT ARRANGEMENTS,12/07/2019,000006492279780,.80,PARKJOCKEY LONDON
OXFORDSHIRE CC,"CHILDRENS, YOUNG PEOPLE AND FAMILIES","	NCS",CATERING PROVISIONS,12/07/2019,000006492279782,133.50,TESCO STORES 2008
OXFORDSHIRE CC,"CHILDRENS, YOUNG PEOPLE AND FAMILIES","	NCS",CATERING,12/07/2019,000006492279784,85.80,BOOKER LIMITED OXFORD
OXFORDSHIRE CC,"CHILDRENS, YOUNG PEOPLE AND FAMILIES","	NCS",CATERING PROVISIONS,12/07/2019,000006492279786,16.25,WAITROSE 581
OXFORDSHIRE CC,"CHILDRENS, YOUNG PEOPLE AND FAMILIES","	NCS",MATERIALS,12/07/2019,000006492279788,49.99,DECATHLON UK LTD
OXFORDSHIRE CC,"CHILDRENS, YOUNG PEOPLE AND FAMILIES",C&I COUNTYWIDE,MATERIALS,12/07/2019,000006492280016,20.48,AMAZON.CO.UK M63DQ9WQ4
OXFORDSHIRE CC,"CHILDRENS, YOUNG PEOPLE AND FAMILIES",C&I COUNTYWIDE,MATERIALS,12/07/2019,000006492280018,13.49,PAYPAL  TEENYOGAFOU
OXFORDSHIRE CC,"CHILDRENS, YOUNG PEOPLE AND FAMILIES","	C&I ADVISORY TRADED","SUPPLIES, STATIONERY AND MATERIALS",12/07/2019,000006492280020,12.99,RYMAN 1172
OXFORDSHIRE CC,ENVIRONMENT AND ECONOMY,HARD FM,EQUIPMENT,12/07/2019,000006492279806,4.60,W F SENATE
OXFORDSHIRE CC,ENVIRONMENT AND ECONOMY,HARD FM,HARDWARE AND CROCKERY,12/07/2019,000006492279808,36.61,SCREWFIX DIDCOT
OXFORDSHIRE CC,"CHILDRENS, YOUNG PEOPLE AND FAMILIES",THAME E&A HOME,CATERING,12/07/2019,000006492279810,24.00,THE WORKS
OXFORDSHIRE CC,ENVIRONMENT AND ECONOMY,"	FLEET OPERATIONS","SUPPLIES, STATIONERY AND MATERIALS",12/07/2019,000006492280032,12.99,AMZNMKTPLACE AMAZON.CO
OXFORDSHIRE CC,CORPORATE CORE,REGISTRAR,CATERING,12/07/2019,000006492280046,9.90,CHERWELL DISTRICT COUN
OXFORDSHIRE CC,SOCIAL AND COMMUNITY SERVICES,RESIDENTIAL STRATEGY,CATERING PROVISIONS,12/07/2019,000006492279814,2.20,TESCO STORE 2788
OXFORDSHIRE CC,SOCIAL AND COMMUNITY SERVICES,RESIDENTIAL STRATEGY,CATERING PROVISIONS,12/07/2019,000006492279816,50.00,SAINSBURYS 0631
OXFORDSHIRE CC,SOCIAL AND COMMUNITY SERVICES,CSS BICESTER,CATERING PROVISIONS,12/07/2019,000006492279820,3.89,TESCO STORES 4480
OXFORDSHIRE CC,"CHILDRENS, YOUNG PEOPLE AND FAMILIES",EYNSHAM,DAY ACTIVITIES,12/07/2019,000006492279822,4.45,SAINSBURYS 0631
OXFORDSHIRE CC,SOCIAL AND COMMUNITY SERVICES,ADULT SERVICES IMPROVEMENT BOARD,CATERING PROVISIONS,12/07/2019,000006492279828,13.73,TESCO STORE 2413
OXFORDSHIRE CC,"CHILDRENS, YOUNG PEOPLE AND FAMILIES","	RIVERSIDE CENTRE",CATERING PROVISIONS,12/07/2019,000006492279830,3.90,TESCO STORES 4377
OXFORDSHIRE CC,"CHILDRENS, YOUNG PEOPLE AND FAMILIES",THAME E&A HOME,MATERIALS,12/07/2019,000006492279832,17.06,B&M RETAIL
OXFORDSHIRE CC,"CHILDRENS, YOUNG PEOPLE AND FAMILIES",CNTL EARLY HELP-BRTN,OTHER EXPENSES,12/07/2019,000006492280050,16.20,AMZNMKTPLACE
OXFORDSHIRE CC,"CHILDRENS, YOUNG PEOPLE AND FAMILIES",CNTL EARLY HELP-BRTN,OTHER EXPENSES,12/07/2019,000006492280052,20.95,AMZNMKTPLACE
OXFORDSHIRE CC,"CHILDRENS, YOUNG PEOPLE AND FAMILIES",CNTL EARLY HELP-BRTN,OTHER EXPENSES,12/07/2019,000006492280054,15.66,AMZNMKTPLACE
OXFORDSHIRE CC,"CHILDRENS, YOUNG PEOPLE AND FAMILIES",CNTL EARLY HELP-BRTN,OTHER EXPENSES,12/07/2019,000006492280056,5.97,AMZNMKTPLACE
OXFORDSHIRE CC,"CHILDRENS, YOUNG PEOPLE AND FAMILIES",CNTL EARLY HELP-BRTN,OTHER EXPENSES,12/07/2019,000006492280058,36.44,AMZNMKTPLACE
OXFORDSHIRE CC,"CHILDRENS, YOUNG PEOPLE AND FAMILIES",THAME E&A HOME,VEHICLE FUEL,12/07/2019,000006492279842,6.36,THAME BP SF CONNECT
OXFORDSHIRE CC,"CHILDRENS, YOUNG PEOPLE AND FAMILIES",NORTH FSS- BANBURY,REGISTRATION AND INSPECTION FEES,12/07/2019,000006492279846,1.90,PAYPAL  ROYAL MAIL
OXFORDSHIRE CC,"CHILDRENS, YOUNG PEOPLE AND FAMILIES",THAME E&A HOME,CATERING PROVISIONS,12/07/2019,000006492279848,8.30,SAINSBURYS SACAT 2096
OXFORDSHIRE CC,"CHILDRENS, YOUNG PEOPLE AND FAMILIES",DIDCOT MOVE-ON HOME,CATERING,12/07/2019,000006492279850,52.70,CHOI
OXFORDSHIRE CC,"CHILDRENS, YOUNG PEOPLE AND FAMILIES",DIDCOT MOVE-ON HOME,CATERING PROVISIONS,12/07/2019,000006492279852,62.85,SAINSBURYS 2067
OXFORDSHIRE CC,SOCIAL AND COMMUNITY SERVICES,WITNEY MOVE ON HOME,CATERING PROVISIONS,12/07/2019,000006492279854,6.75,SAINSBURYS SACAT 0632
OXFORDSHIRE CC,"CHILDRENS, YOUNG PEOPLE AND FAMILIES",CNTL ERLY HELP-BBLEY,CATERING PROVISIONS,12/07/2019,000006492279856,4.52,ALDI STORES 775-142
OXFORDSHIRE CC,"CHILDRENS, YOUNG PEOPLE AND FAMILIES","	FAM SUPP SOUTH",RESIDENTIAL ACTIVITIES,12/07/2019,000006492280076,220.95,GET ACTIVE SPORTS
OXFORDSHIRE CC,"CHILDRENS, YOUNG PEOPLE AND FAMILIES",MEMBERS ALLOWANCES,GENERAL MAINTENANCE,12/07/2019,000006492280078,56.28,CENTRAL SOURCE LTD
OXFORDSHIRE CC,"CHILDRENS, YOUNG PEOPLE AND FAMILIES","	LOOKED AFTER SOUTH",HIRE OF ACCOMMODATION AND FACILITIES,12/07/2019,000006492280086,82.50,GREENHILL HOTEL
OXFORDSHIRE CC,"CHILDRENS, YOUNG PEOPLE AND FAMILIES","	LOOKED AFTER SOUTH",OTHER TRANSPORT ARRANGEMENTS,12/07/2019,000006492280088,6.40,M6 TOLL
OXFORDSHIRE CC,"CHILDRENS, YOUNG PEOPLE AND FAMILIES","	LOOKED AFTER SOUTH",VEHICLE FUEL,12/07/2019,000006492280090,74.02,CHARNOCK 60593225
OXFORDSHIRE CC,"CHILDRENS, YOUNG PEOPLE AND FAMILIES","	MUSIC UNALLOCABLE",VEHICLE FUEL,12/07/2019,000006492279864,16.00,TESCO PAYAT PUMP 3700
OXFORDSHIRE CC,"CHILDRENS, YOUNG PEOPLE AND FAMILIES","	LOOKED AFTER NORTH",CATERING,12/07/2019,000006492279868,12.45,STARBUCKS
OXFORDSHIRE CC,"CHILDRENS, YOUNG PEOPLE AND FAMILIES","	40 THE MOORS",CATERING,12/07/2019,000006492279872,4.95,BOOST JUICE BARS
OXFORDSHIRE CC,"CHILDRENS, YOUNG PEOPLE AND FAMILIES","	40 THE MOORS",CATERING PROVISIONS,12/07/2019,000006492279874,20.00,TESCO STORE 2788
OXFORDSHIRE CC,"CHILDRENS, YOUNG PEOPLE AND FAMILIES","	40 THE MOORS",CATERING PROVISIONS,12/07/2019,000006492279876,4.00,TESCO STORE 2788
OXFORDSHIRE CC,"CHILDRENS, YOUNG PEOPLE AND FAMILIES","	40 THE MOORS",CATERING PROVISIONS,12/07/2019,000006492279878,2.80,SAINSBURYS SACAT 0631
OXFORDSHIRE CC,"CHILDRENS, YOUNG PEOPLE AND FAMILIES","	40 THE MOORS",FURNITURE,12/07/2019,000006492279880,269.99,K H DIRECT LTD
OXFORDSHIRE CC,"CHILDRENS, YOUNG PEOPLE AND FAMILIES","	40 THE MOORS",CATERING PROVISIONS,12/07/2019,000006492279882,22.48,HOUSE
OXFORDSHIRE CC,"CHILDRENS, YOUNG PEOPLE AND FAMILIES","	40 THE MOORS",RESIDENTIAL ACTIVITIES,12/07/2019,000006492280104,"2,536.00",WWW.AWAYRESORTS.CO
OXFORDSHIRE CC,"CHILDRENS, YOUNG PEOPLE AND FAMILIES",DIDCOT MOVE-ON HOME,CATERING PROVISIONS,12/07/2019,000006492280112,7.50,SAINSBURYS SACAT 2067
OXFORDSHIRE CC,"CHILDRENS, YOUNG PEOPLE AND FAMILIES","	40 THE MOORS",RESIDENTIAL ACTIVITIES,12/07/2019,000006492279884,20.00,WWW.AWAYRESORTS.CO
OXFORDSHIRE CC,"CHILDRENS, YOUNG PEOPLE AND FAMILIES","	40 THE MOORS",MATERIALS,12/07/2019,000006492279886,39.99,ARGOS KIDLINGTON INSID
OXFORDSHIRE CC,SOCIAL AND COMMUNITY SERVICES,CSS - BANBURY,MATERIALS,12/07/2019,000006492279894,11.33,HOME BARGAINS BANBURY
OXFORDSHIRE CC,"CHILDRENS, YOUNG PEOPLE AND FAMILIES",NTH EARLY HELP-BCSTR,PAYMENTS TO TRANSPORT OPERATORS,12/07/2019,000006492279896,59.10,WWW.GWR.COM
OXFORDSHIRE CC,CORPORATE CORE,"	COMMUNICATIONS","PUBLICITY, PROMOTIONS AND ADVERTISEMENT",12/07/2019,000006492279902,130.00,ISTOCK.COM
OXFORDSHIRE CC,"CHILDRENS, YOUNG PEOPLE AND FAMILIES","	LEAVING CARE SOUTH",MATERIALS,12/07/2019,000006492280132,79.99,JD SPORTS INTERNET
OXFORDSHIRE CC,"CHILDRENS, YOUNG PEOPLE AND FAMILIES","	LOOKED AFTER NORTH",OTHER TRANSPORT ARRANGEMENTS,12/07/2019,000006492280138,2.38,MKC PARKING RINGGO
OXFORDSHIRE CC,"CHILDRENS, YOUNG PEOPLE AND FAMILIES",CNTL EARLY HELP-BRTN,OTHER EXPENSES,11/07/2019,000006486989678,51.98,AMZNMKTPLACE
OXFORDSHIRE CC,"CHILDRENS, YOUNG PEOPLE AND FAMILIES",CNTL EARLY HELP-BRTN,OTHER EXPENSES,11/07/2019,000006486989680,82.86,AMZNMKTPLACE
OXFORDSHIRE CC,"CHILDRENS, YOUNG PEOPLE AND FAMILIES",CNTL EARLY HELP-BRTN,OTHER EXPENSES,11/07/2019,000006486989682,52.20,AMZNMKTPLACE
OXFORDSHIRE CC,"CHILDRENS, YOUNG PEOPLE AND FAMILIES",CNTL EARLY HELP-BRTN,OTHER EXPENSES,11/07/2019,000006486989684,9.99,AMZNMKTPLACE
OXFORDSHIRE CC,"CHILDRENS, YOUNG PEOPLE AND FAMILIES",CNTL EARLY HELP-BRTN,OTHER EXPENSES,11/07/2019,000006486989686,14.60,AMZNMKTPLACE
OXFORDSHIRE CC,"CHILDRENS, YOUNG PEOPLE AND FAMILIES",PANEL COSTS,CATERING PROVISIONS,11/07/2019,000006486989328,4.01,TESCO STORE 2994
OXFORDSHIRE CC,"CHILDRENS, YOUNG PEOPLE AND FAMILIES","	FAMILY SUPPORT CITY3",OTHER TRANSPORT ARRANGEMENTS,11/07/2019,000006486989330,4.00,WESTGATE OXFORD CAR PA
OXFORDSHIRE CC,"CHILDRENS, YOUNG PEOPLE AND FAMILIES","	LEAVING CARE SOUTH",HIRE OF ACCOMMODATION AND FACILITIES,11/07/2019,000006486989334,121.50,PREMIER INN
OXFORDSHIRE CC,"CHILDRENS, YOUNG PEOPLE AND FAMILIES",CNTL EARLY HELP-BRTN,OTHER EXPENSES,11/07/2019,000006486989688,4.99,AMZNMKTPLACE
OXFORDSHIRE CC,"CHILDRENS, YOUNG PEOPLE AND FAMILIES",CNTL EARLY HELP-BRTN,OTHER EXPENSES,11/07/2019,000006486989690,34.80,AMZNMKTPLACE
OXFORDSHIRE CC,"CHILDRENS, YOUNG PEOPLE AND FAMILIES",CNTL EARLY HELP-BRTN,OTHER EXPENSES,11/07/2019,000006486989692,39.60,AMZNMKTPLACE
OXFORDSHIRE CC,"CHILDRENS, YOUNG PEOPLE AND FAMILIES",CNTL EARLY HELP-BRTN,OTHER EXPENSES,11/07/2019,000006486989694,37.80,FAMILY LINKS
OXFORDSHIRE CC,"CHILDRENS, YOUNG PEOPLE AND FAMILIES",CNTL EARLY HELP-BRTN,OTHER EXPENSES,11/07/2019,000006486989696,330.00,THE SKIP COMPANY
OXFORDSHIRE CC,"CHILDRENS, YOUNG PEOPLE AND FAMILIES","	LOOKED AFTER CITY 1",CATERING PROVISIONS,11/07/2019,000006486989702,3.55,SAINSBURYS 0600
OXFORDSHIRE CC,"CHILDRENS, YOUNG PEOPLE AND FAMILIES",CNTL EARLY HELP-RHIL,CLOTHING AND UNIFORMS,11/07/2019,000006486989706,51.97,WWW.NIKESTORE.COM
OXFORDSHIRE CC,"CHILDRENS, YOUNG PEOPLE AND FAMILIES","	40 THE MOORS",MATERIALS,11/07/2019,000006486989708,52.45,AMZNMKTPLACE
OXFORDSHIRE CC,"CHILDRENS, YOUNG PEOPLE AND FAMILIES","	40 THE MOORS",MATERIALS,11/07/2019,000006486989710,17.17,AMZNMKTPLACE
OXFORDSHIRE CC,ENVIRONMENT AND ECONOMY,"	NAT TRAILS GENERAL",VEHICLES REPAIRS AND MAINTENANCE,11/07/2019,000006486989344,8.50,AMZNMKTPLACE
OXFORDSHIRE CC,ENVIRONMENT AND ECONOMY,"	NAT TRAILS GENERAL",VEHICLES REPAIRS AND MAINTENANCE,11/07/2019,000006486989346,55.20,ALL TYRES (OXFORD) LTD
OXFORDSHIRE CC,"CHILDRENS, YOUNG PEOPLE AND FAMILIES",CSS WALLINGFORD,MATERIALS,11/07/2019,000006486989348,9.25,KP STATIONERS
OXFORDSHIRE CC,"CHILDRENS, YOUNG PEOPLE AND FAMILIES",CSS - DIDCOT,CATERING PROVISIONS,11/07/2019,000006486989350,51.03,TESCO STORE 2413
OXFORDSHIRE CC,"CHILDRENS, YOUNG PEOPLE AND FAMILIES",CSS - DIDCOT,CATERING PROVISIONS,11/07/2019,000006486989352,15.40,BROADWAY BUTCHERS
OXFORDSHIRE CC,"CHILDRENS, YOUNG PEOPLE AND FAMILIES",CSS - DIDCOT,MATERIALS,11/07/2019,000006486989354,14.99,HALFORDS 0567
OXFORDSHIRE CC,"CHILDRENS, YOUNG PEOPLE AND FAMILIES","	40 THE MOORS",CATERING PROVISIONS,11/07/2019,000006486989712,201.34,ASDA GROCERIES ONLINE
OXFORDSHIRE CC,"CHILDRENS, YOUNG PEOPLE AND FAMILIES","	40 THE MOORS",TELEPHONE - EQUIPMENT,11/07/2019,000006486989714,5.00,WWW.THREE.CO.UK
OXFORDSHIRE CC,"CHILDRENS, YOUNG PEOPLE AND FAMILIES","	40 THE MOORS",CATERING PROVISIONS,11/07/2019,000006486989716,-1.25,ASDA GROCERIES ONLINE
OXFORDSHIRE CC,"CHILDRENS, YOUNG PEOPLE AND FAMILIES","	LOOKED AFTER SOUTH",OTHER TRANSPORT ARRANGEMENTS,11/07/2019,000006486989722,6.40,M6 TOLL
OXFORDSHIRE CC,"CHILDRENS, YOUNG PEOPLE AND FAMILIES","	40 THE MOORS",DISABILITY AIDS AND EQUIPMENT,11/07/2019,000006486989726,52.00,MORGAN OPTOMETRY
OXFORDSHIRE CC,"CHILDRENS, YOUNG PEOPLE AND FAMILIES","	HEARING IMPAIRMENT",DISABILITY AIDS AND EQUIPMENT,11/07/2019,000006486989556,56.97,AMZNMKTPLACE AMAZON.CO
OXFORDSHIRE CC,"CHILDRENS, YOUNG PEOPLE AND FAMILIES","	MUSIC UNALLOCABLE",CATERING PROVISIONS,11/07/2019,000006486989570,305.40,SAINSBURYS TO YOU 0600
OXFORDSHIRE CC,"CHILDRENS, YOUNG PEOPLE AND FAMILIES","	MUSIC UNALLOCABLE",OTHER EXPENSES,11/07/2019,000006486989576,10.00,BLENHEIM PALACE HERITA
OXFORDSHIRE CC,"CHILDRENS, YOUNG PEOPLE AND FAMILIES","	MUSIC UNALLOCABLE",OTHER EXPENSES,11/07/2019,000006486989578,40.00,BLENHEIM PALACE HERITA
OXFORDSHIRE CC,ENVIRONMENT AND ECONOMY,MEMBERS SERVICES,MATERIALS,11/07/2019,000006486989580,27.58,EBUYER (UK) LTD
OXFORDSHIRE CC,ENVIRONMENT AND ECONOMY,"	BRIDGES GENERAL",HARDWARE AND CROCKERY,11/07/2019,000006486989582,33.50,HOMEBASE LTD
OXFORDSHIRE CC,ENVIRONMENT AND ECONOMY,"	MINERALS & WASTE",PAYMENTS TO TRANSPORT OPERATORS,11/07/2019,000006486989596,18.25,WWW.GWR.COM
OXFORDSHIRE CC,"CHILDRENS, YOUNG PEOPLE AND FAMILIES","	LEAVING CARE CITY 2",OTHER EXPENSES,11/07/2019,000006486989598,50.00,THOMAS CARR @ THE OLIV
OXFORDSHIRE CC,CORPORATE CORE,HISTORY SERVICE,"BOOKS, DVDS AND CDS",11/07/2019,000006486989608,11.35,ABEBOOKS GXM6XC
OXFORDSHIRE CC,CORPORATE CORE,HISTORY SERVICE,"BOOKS, DVDS AND CDS",11/07/2019,000006486989610,7.95,PAYPAL  SOLDIERSOXF
OXFORDSHIRE CC,CORPORATE CORE,"	ORGANISATIONAL DEV'T",MATERIALS,11/07/2019,000006486989612,21.48,AMZNMKTPLACE
OXFORDSHIRE CC,"CHILDRENS, YOUNG PEOPLE AND FAMILIES",CNTL EARLY HELP-RHIL,CATERING PROVISIONS,11/07/2019,000006486989614,13.83,WAITROSE 682
OXFORDSHIRE CC,"CHILDRENS, YOUNG PEOPLE AND FAMILIES","	RIVERSIDE CENTRE",CATERING PROVISIONS,11/07/2019,000006486989618,13.15,TESCO STORES 4377
OXFORDSHIRE CC,"CHILDRENS, YOUNG PEOPLE AND FAMILIES","	40 THE MOORS",DRUGS AND MEDICAL SUPPLIES,11/07/2019,000006486989626,14.25,AMZNMKTPLACE
OXFORDSHIRE CC,"CHILDRENS, YOUNG PEOPLE AND FAMILIES","	40 THE MOORS",DRUGS AND MEDICAL SUPPLIES,11/07/2019,000006486989628,101.94,AMZNMKTPLACE
OXFORDSHIRE CC,"CHILDRENS, YOUNG PEOPLE AND FAMILIES","	40 THE MOORS",DRUGS AND MEDICAL SUPPLIES,11/07/2019,000006486989630,3.45,AMZNMKTPLACE
OXFORDSHIRE CC,SOCIAL AND COMMUNITY SERVICES,"	MTFC",CATERING PROVISIONS,11/07/2019,000006486989634,2.20,SAINSBURYS 2244
OXFORDSHIRE CC,SOCIAL AND COMMUNITY SERVICES,"	MTFC",CATERING,11/07/2019,000006486989636,7.65,BLENHEIM PALACE(SEARCY
OXFORDSHIRE CC,CORPORATE CORE,"	CORPORATE FINANCE",PAYMENTS TO TRANSPORT OPERATORS,11/07/2019,000006486989638,26.40,WWW.GWR.COM
OXFORDSHIRE CC,CORPORATE CORE,"	CORPORATE FINANCE",PAYMENTS TO TRANSPORT OPERATORS,11/07/2019,000006486989640,43.00,WWW.GWR.COM
OXFORDSHIRE CC,"CHILDRENS, YOUNG PEOPLE AND FAMILIES","	LEAVING CARE NORTH",MATERIALS,11/07/2019,000006486989644,160.00,CURRYS ONLINE
OXFORDSHIRE CC,"CHILDRENS, YOUNG PEOPLE AND FAMILIES","	LEAVING CARE NORTH",MATERIALS,11/07/2019,000006486989646,273.93,WWW.ARGOS.CO.UK
OXFORDSHIRE CC,"CHILDRENS, YOUNG PEOPLE AND FAMILIES",NORTH FSS- WITNEY,PAYMENTS TO TRANSPORT OPERATORS,11/07/2019,000006486989314,43.85,WWW.GWR.COM
OXFORDSHIRE CC,"CHILDRENS, YOUNG PEOPLE AND FAMILIES","	FAMILY SUPPORT CITY3",OTHER TRANSPORT ARRANGEMENTS,11/07/2019,000006486989666,27.83,TRAINLINE.COM
OXFORDSHIRE CC,"CHILDRENS, YOUNG PEOPLE AND FAMILIES",CNTL EARLY HELP-BRTN,OTHER EXPENSES,11/07/2019,000006486989668,5.99,AMAZON.CO.UK M60023RF4
OXFORDSHIRE CC,"CHILDRENS, YOUNG PEOPLE AND FAMILIES",CNTL EARLY HELP-BRTN,OTHER EXPENSES,11/07/2019,000006486989670,11.98,AMAZON.CO.UK M65RE5RY4
OXFORDSHIRE CC,"CHILDRENS, YOUNG PEOPLE AND FAMILIES",CNTL EARLY HELP-BRTN,OTHER EXPENSES,11/07/2019,000006486989672,11.98,AMAZON.CO.UK M68NP0RJ4
OXFORDSHIRE CC,"CHILDRENS, YOUNG PEOPLE AND FAMILIES",CNTL EARLY HELP-BRTN,OTHER EXPENSES,11/07/2019,000006486989674,11.80,AMZNMKTPLACE
OXFORDSHIRE CC,"CHILDRENS, YOUNG PEOPLE AND FAMILIES",CNTL EARLY HELP-BRTN,OTHER EXPENSES,11/07/2019,000006486989676,20.99,AMZNMKTPLACE
OXFORDSHIRE CC,"CHILDRENS, YOUNG PEOPLE AND FAMILIES",CNTL EARLY HELP-RHIL,MATERIALS,11/07/2019,000006486989430,89.97,ARGOS RETAIL GROUP
OXFORDSHIRE CC,"CHILDRENS, YOUNG PEOPLE AND FAMILIES",CNTL EARLY HELP-RHIL,MATERIALS,11/07/2019,000006486989432,-149.99,WWW.ARGOS.CO.UK
OXFORDSHIRE CC,CORPORATE CORE,ASSET STRATEGY,PAYMENTS TO TRANSPORT OPERATORS,11/07/2019,000006486989434,76.11,TRAINLINE.COM
OXFORDSHIRE CC,"CHILDRENS, YOUNG PEOPLE AND FAMILIES",DIDCOT MOVE-ON HOME,OTHER TRANSPORT ARRANGEMENTS,11/07/2019,000006486989442,6.60,OXFORD BUS COMPANY
OXFORDSHIRE CC,"CHILDRENS, YOUNG PEOPLE AND FAMILIES",THAME E&A HOME,MATERIALS,11/07/2019,000006486989444,-15.00,WLY COMPLETESAVE.CO.UK
OXFORDSHIRE CC,"CHILDRENS, YOUNG PEOPLE AND FAMILIES",THAME E&A HOME,MATERIALS,11/07/2019,000006486989446,-15.00,WLY COMPLETESAVE.CO.UK
OXFORDSHIRE CC,"CHILDRENS, YOUNG PEOPLE AND FAMILIES",THAME E&A HOME,MATERIALS,11/07/2019,000006486989448,-15.00,WLY COMPLETESAVE.CO.UK
OXFORDSHIRE CC,"CHILDRENS, YOUNG PEOPLE AND FAMILIES",THAME E&A HOME,MATERIALS,11/07/2019,000006486989450,-15.00,WLY COMPLETESAVE.CO.UK
OXFORDSHIRE CC,"CHILDRENS, YOUNG PEOPLE AND FAMILIES",THAME E&A HOME,MATERIALS,11/07/2019,000006486989452,-15.00,WLY COMPLETESAVE.CO.UK
OXFORDSHIRE CC,"CHILDRENS, YOUNG PEOPLE AND FAMILIES",THAME E&A HOME,MATERIALS,11/07/2019,000006486989454,-15.00,WLY COMPLETESAVE.CO.UK
OXFORDSHIRE CC,"CHILDRENS, YOUNG PEOPLE AND FAMILIES",THAME E&A HOME,MATERIALS,11/07/2019,000006486989456,-15.00,WLY COMPLETESAVE.CO.UK
OXFORDSHIRE CC,"CHILDRENS, YOUNG PEOPLE AND FAMILIES",THAME E&A HOME,MATERIALS,11/07/2019,000006486989458,-15.00,WLY COMPLETESAVE.CO.UK
OXFORDSHIRE CC,"CHILDRENS, YOUNG PEOPLE AND FAMILIES",THAME E&A HOME,MATERIALS,11/07/2019,000006486989460,-15.00,WLY COMPLETESAVE.CO.UK
OXFORDSHIRE CC,"CHILDRENS, YOUNG PEOPLE AND FAMILIES",THAME E&A HOME,MATERIALS,11/07/2019,000006486989462,-15.00,WLY COMPLETESAVE.CO.UK
OXFORDSHIRE CC,"CHILDRENS, YOUNG PEOPLE AND FAMILIES",THAME E&A HOME,MATERIALS,11/07/2019,000006486989464,-15.00,WLY COMPLETESAVE.CO.UK
OXFORDSHIRE CC,"CHILDRENS, YOUNG PEOPLE AND FAMILIES",THAME E&A HOME,MATERIALS,11/07/2019,000006486989466,-15.00,WLY COMPLETESAVE.CO.UK
OXFORDSHIRE CC,"CHILDRENS, YOUNG PEOPLE AND FAMILIES",THAME E&A HOME,MATERIALS,11/07/2019,000006486989468,-15.00,WLY COMPLETESAVE.CO.UK
OXFORDSHIRE CC,"CHILDRENS, YOUNG PEOPLE AND FAMILIES",THAME E&A HOME,MATERIALS,11/07/2019,000006486989470,-15.00,WLY COMPLETESAVE.CO.UK
OXFORDSHIRE CC,"CHILDRENS, YOUNG PEOPLE AND FAMILIES",THAME E&A HOME,MATERIALS,11/07/2019,000006486989472,-15.00,WLY COMPLETESAVE.CO.UK
OXFORDSHIRE CC,"CHILDRENS, YOUNG PEOPLE AND FAMILIES",THAME E&A HOME,MATERIALS,11/07/2019,000006486989474,-15.00,WLY COMPLETESAVE.CO.UK
OXFORDSHIRE CC,"CHILDRENS, YOUNG PEOPLE AND FAMILIES",THAME E&A HOME,MATERIALS,11/07/2019,000006486989476,-15.00,WLY COMPLETESAVE.CO.UK
OXFORDSHIRE CC,"CHILDRENS, YOUNG PEOPLE AND FAMILIES",THAME E&A HOME,MATERIALS,11/07/2019,000006486989478,-15.00,WLY COMPLETESAVE.CO.UK
OXFORDSHIRE CC,"CHILDRENS, YOUNG PEOPLE AND FAMILIES",THAME E&A HOME,MATERIALS,11/07/2019,000006486989480,-15.00,WLY COMPLETESAVE.CO.UK
OXFORDSHIRE CC,"CHILDRENS, YOUNG PEOPLE AND FAMILIES",THAME E&A HOME,MATERIALS,11/07/2019,000006486989482,-15.00,WLY COMPLETESAVE.CO.UK
OXFORDSHIRE CC,"CHILDRENS, YOUNG PEOPLE AND FAMILIES",THAME E&A HOME,MATERIALS,11/07/2019,000006486989484,-15.00,WLY COMPLETESAVE.CO.UK
OXFORDSHIRE CC,"CHILDRENS, YOUNG PEOPLE AND FAMILIES",THAME E&A HOME,MATERIALS,11/07/2019,000006486989486,-15.00,WLY COMPLETESAVE.CO.UK
OXFORDSHIRE CC,"CHILDRENS, YOUNG PEOPLE AND FAMILIES",THAME E&A HOME,MATERIALS,11/07/2019,000006486989488,-15.00,WLY COMPLETESAVE.CO.UK
OXFORDSHIRE CC,"CHILDRENS, YOUNG PEOPLE AND FAMILIES",THAME E&A HOME,MATERIALS,11/07/2019,000006486989490,-15.00,WLY COMPLETESAVE.CO.UK
OXFORDSHIRE CC,"CHILDRENS, YOUNG PEOPLE AND FAMILIES",THAME E&A HOME,MATERIALS,11/07/2019,000006486989492,-15.00,WLY COMPLETESAVE.CO.UK
OXFORDSHIRE CC,"CHILDRENS, YOUNG PEOPLE AND FAMILIES",THAME E&A HOME,MATERIALS,11/07/2019,000006486989494,-15.00,WLY COMPLETESAVE.CO.UK
OXFORDSHIRE CC,"CHILDRENS, YOUNG PEOPLE AND FAMILIES",THAME E&A HOME,MATERIALS,11/07/2019,000006486989496,-15.00,WLY COMPLETESAVE.CO.UK
OXFORDSHIRE CC,"CHILDRENS, YOUNG PEOPLE AND FAMILIES",NORTH FSS- BANBURY,REGISTRATION AND INSPECTION FEES,11/07/2019,000006486989498,1.90,PAYPAL  ROYAL MAIL
OXFORDSHIRE CC,"CHILDRENS, YOUNG PEOPLE AND FAMILIES",NORTH FSS- BANBURY,PAYMENTS TO TRANSPORT OPERATORS,11/07/2019,000006486989500,60.25,WWW.GWR.COM
OXFORDSHIRE CC,"CHILDRENS, YOUNG PEOPLE AND FAMILIES",THAME E&A HOME,MATERIALS,11/07/2019,000006486989502,7.99,AMAZON PRIME M67VR3R04
OXFORDSHIRE CC,ENVIRONMENT AND ECONOMY,"	E&I STAFF",OTHER TRANSPORT ARRANGEMENTS,11/07/2019,000006486989504,2.30,STGCOACH/CTYLINK
OXFORDSHIRE CC,"CHILDRENS, YOUNG PEOPLE AND FAMILIES",EYNSHAM,CATERING PROVISIONS,11/07/2019,000006486989506,38.40,SAINSBURYS SACAT 0632
OXFORDSHIRE CC,"CHILDRENS, YOUNG PEOPLE AND FAMILIES","	DISABILITIES TEAM-N",SUBSCRIPTIONS,11/07/2019,000006486989516,55.00,WITNEYTOWN COUNCIL
OXFORDSHIRE CC,"CHILDRENS, YOUNG PEOPLE AND FAMILIES","	FPT CITY",CATERING PROVISIONS,11/07/2019,000006486989518,28.65,MARKS&SPENCER PLC
OXFORDSHIRE CC,ENVIRONMENT AND ECONOMY,S38 INSPECT & OTHER,PAYMENTS TO TRANSPORT OPERATORS,11/07/2019,000006486989520,10.00,LUL TICKET MACHINE
OXFORDSHIRE CC,"CHILDRENS, YOUNG PEOPLE AND FAMILIES",MANAGEMENT RECHARGES,HIRED AND CONTRACTED SERVICES,11/07/2019,000006486989526,6.39,AMZNMKTPLACE AMAZON.CO
OXFORDSHIRE CC,SOCIAL AND COMMUNITY SERVICES,CSS - BANBURY,CATERING PROVISIONS,11/07/2019,000006486989532,3.30,TESCO STORE 2064
OXFORDSHIRE CC,ENVIRONMENT AND ECONOMY,"	ROAD SAFETY STAFF",HOSPITALITY EXPENSES,11/07/2019,000006486989534,203.40,PP OXFORDINNOVATION
OXFORDSHIRE CC,ENVIRONMENT AND ECONOMY,V2GO,CATERING,11/07/2019,000006486989536,4.80,HUB COMMERCIAL
OXFORDSHIRE CC,CORPORATE CORE,"	COMMUNICATIONS","PUBLICITY, PROMOTIONS AND ADVERTISEMENT",11/07/2019,000006486989538,29.00,STK SHUTTERSTOCK
OXFORDSHIRE CC,"CHILDRENS, YOUNG PEOPLE AND FAMILIES","	LEAVING CARE NORTH",OTHER EXPENSES,11/07/2019,000006486989364,89.95,WWW.GAME.CO.UK
OXFORDSHIRE CC,"CHILDRENS, YOUNG PEOPLE AND FAMILIES","	MANAGEMENT & ADMIN",PAYMENTS TO TRANSPORT OPERATORS,11/07/2019,000006486989366,74.80,TRAINLINE
OXFORDSHIRE CC,"CHILDRENS, YOUNG PEOPLE AND FAMILIES",WITNEY,CATERING PROVISIONS,11/07/2019,000006486989368,9.00,ASDA STORES 4920
OXFORDSHIRE CC,"CHILDRENS, YOUNG PEOPLE AND FAMILIES","	NCS",IT SOFTWARE,11/07/2019,000006486989370,18.86,FASTSPRING
OXFORDSHIRE CC,"CHILDRENS, YOUNG PEOPLE AND FAMILIES","	NCS",CATERING PROVISIONS,11/07/2019,000006486989372,338.66,TESCO STORES 2008
OXFORDSHIRE CC,"CHILDRENS, YOUNG PEOPLE AND FAMILIES","	NCS",MATERIALS,11/07/2019,000006486989374,21.98,AMZNMKTPLACE AMAZON.CO
OXFORDSHIRE CC,SOCIAL AND COMMUNITY SERVICES,COMMISSIONING ADMIN,MATERIALS,11/07/2019,000006486989738,14.48,AMZNMKTPLACE
OXFORDSHIRE CC,SOCIAL AND COMMUNITY SERVICES,COMMISSIONING ADMIN,MATERIALS,11/07/2019,000006486989740,18.78,AMZNMKTPLACE
OXFORDSHIRE CC,"CHILDRENS, YOUNG PEOPLE AND FAMILIES",BULLINGDON PRISON,"NEWSPAPERS, PERIODICALS AND PUBLICATIONS",11/07/2019,000006486989746,110.88,MARTIN MCCOLL
OXFORDSHIRE CC,"CHILDRENS, YOUNG PEOPLE AND FAMILIES","	LEAVING CARE SOUTH",MATERIALS,11/07/2019,000006486989750,19.36,AMZNMKTPLACE
OXFORDSHIRE CC,"CHILDRENS, YOUNG PEOPLE AND FAMILIES","	LEAVING CARE SOUTH",MATERIALS,11/07/2019,000006486989752,15.49,AMZNMKTPLACE
OXFORDSHIRE CC,"CHILDRENS, YOUNG PEOPLE AND FAMILIES","	LEAVING CARE SOUTH",MATERIALS,11/07/2019,000006486989754,24.65,AMZNMKTPLACE
OXFORDSHIRE CC,"CHILDRENS, YOUNG PEOPLE AND FAMILIES","	LEAVING CARE SOUTH",CATERING PROVISIONS,11/07/2019,000006486989756,6.99,LIDL GB  BICESTER
OXFORDSHIRE CC,ENVIRONMENT AND ECONOMY,HARD FM,EDUCATIONAL AND VOCATIONAL TRAINING ,11/07/2019,000006486989392,936.00,GAS LOGIC LTD
OXFORDSHIRE CC,ENVIRONMENT AND ECONOMY,HARD FM,EDUCATIONAL AND VOCATIONAL TRAINING ,11/07/2019,000006486989394,612.00,GAS LOGIC LTD
OXFORDSHIRE CC,ENVIRONMENT AND ECONOMY,HARD FM,VEHICLES REPAIRS AND MAINTENANCE,11/07/2019,000006486989396,66.00,ASM AUTO RECYCLING
OXFORDSHIRE CC,ENVIRONMENT AND ECONOMY,HARD FM,HARDWARE AND CROCKERY,11/07/2019,000006486989398,39.23,WICKES OXFORD
OXFORDSHIRE CC,ENVIRONMENT AND ECONOMY,HARD FM,HARDWARE AND CROCKERY,11/07/2019,000006486989400,21.98,SCREWFIX OXFORD
OXFORDSHIRE CC,ENVIRONMENT AND ECONOMY,HARD FM,GENERAL MAINTENANCE,11/07/2019,000006486989402,53.10,WOLSELEY UK
OXFORDSHIRE CC,ENVIRONMENT AND ECONOMY,HARD FM,HARDWARE AND CROCKERY,11/07/2019,000006486989404,19.46,SCREWFIX ABINGDON
OXFORDSHIRE CC,ENVIRONMENT AND ECONOMY,MEMBERS SERVICES,PAYMENTS TO TRANSPORT OPERATORS,11/07/2019,000006486989762,76.11,TRAINLINE.COM
OXFORDSHIRE CC,ENVIRONMENT AND ECONOMY,P&S OPERATIONAL REV,PAYMENTS TO TRANSPORT OPERATORS,11/07/2019,000006486989764,76.11,TRAINLINE.COM
OXFORDSHIRE CC,"CHILDRENS, YOUNG PEOPLE AND FAMILIES","	NCS",TELEPHONE - EQUIPMENT,11/07/2019,000006486989766,6.00,GIFFGAFF
OXFORDSHIRE CC,"CHILDRENS, YOUNG PEOPLE AND FAMILIES","	NCS",TELEPHONE - EQUIPMENT,11/07/2019,000006486989768,6.00,GIFFGAFF
OXFORDSHIRE CC,"CHILDRENS, YOUNG PEOPLE AND FAMILIES","	NCS",TELEPHONE - EQUIPMENT,11/07/2019,000006486989770,6.00,GIFFGAFF
OXFORDSHIRE CC,"CHILDRENS, YOUNG PEOPLE AND FAMILIES","	NCS",TELEPHONE - EQUIPMENT,11/07/2019,000006486989772,6.00,GIFFGAFF
OXFORDSHIRE CC,"CHILDRENS, YOUNG PEOPLE AND FAMILIES","	NCS",TELEPHONE - EQUIPMENT,11/07/2019,000006486989774,6.00,GIFFGAFF
OXFORDSHIRE CC,"CHILDRENS, YOUNG PEOPLE AND FAMILIES","	LOOKED AFTER CITY 1",OTHER TRANSPORT ARRANGEMENTS,11/07/2019,000006486989776,73.30,GWR DIDCOT PKWY TO
OXFORDSHIRE CC,SOCIAL AND COMMUNITY SERVICES,WITNEY LIBRARY,MATERIALS,11/07/2019,000006486989780,15.99,AMZNMKTPLACE
OXFORDSHIRE CC,ENVIRONMENT AND ECONOMY,HARD FM,MATERIALS,11/07/2019,000006486989406,7.99,AMAZON PRIME M66074RT4
OXFORDSHIRE CC,ENVIRONMENT AND ECONOMY,HARD FM,GENERAL MAINTENANCE,11/07/2019,000006486989408,185.39,WOLSELEY UK
OXFORDSHIRE CC,"CHILDRENS, YOUNG PEOPLE AND FAMILIES",THAME E&A HOME,OTHER PREMISES RELATED COSTS,11/07/2019,000006486989410,1.50,FRIARS SQUARE CAR PARK
OXFORDSHIRE CC,ENVIRONMENT AND ECONOMY,HARD FM,HARDWARE AND CROCKERY,11/07/2019,000006486989412,20.17,SCREWFIX OXFORD BOTLEY
OXFORDSHIRE CC,SOCIAL AND COMMUNITY SERVICES,LEAVING CARE NORTH,PAYMENT TO GOVERNMENT DEPARTMENTS,11/07/2019,000006486989416,75.50,HM PASSPORT OFFICE
OXFORDSHIRE CC,"CHILDRENS, YOUNG PEOPLE AND FAMILIES","	RIVERSIDE CENTRE",CATERING PROVISIONS,11/07/2019,000006486989418,10.70,TESCO STORES 4377
OXFORDSHIRE CC,"CHILDRENS, YOUNG PEOPLE AND FAMILIES",EYNSHAM,CATERING PROVISIONS,11/07/2019,000006486989426,1.95,TESCO STORE 2064
OXFORDSHIRE CC,"CHILDRENS, YOUNG PEOPLE AND FAMILIES","	LEAVING CARE NORTH",OTHER TRANSPORT ARRANGEMENTS,11/07/2019,000006486989782,20.00,TESCO PAY AT PUMP 3920
OXFORDSHIRE CC,"CHILDRENS, YOUNG PEOPLE AND FAMILIES",CNTL ERLY HELP-BBLEY,CATERING PROVISIONS,11/07/2019,000006486989784,5.95,TESCO STORE 2990
OXFORDSHIRE CC,CORPORATE CORE,OPERATIONS,MATERIALS,10/07/2019,000006482287092,9.59,AMZNMKTPLACE AMAZON.CO
OXFORDSHIRE CC,CORPORATE CORE,OPERATIONS,MATERIALS,10/07/2019,000006482287096,53.93,AMZNMKTPLACE AMAZON.CO
OXFORDSHIRE CC,CORPORATE CORE,OPERATIONS,MATERIALS,10/07/2019,000006482287098,153.21,AMZNMKTPLACE AMAZON.CO
OXFORDSHIRE CC,CORPORATE CORE,OPERATIONS,MATERIALS,10/07/2019,000006482287100,53.17,AMZNMKTPLACE AMAZON.CO
OXFORDSHIRE CC,SOCIAL AND COMMUNITY SERVICES,CSS - OXFORD,CATERING PROVISIONS,10/07/2019,000006482287108,33.70,TESCO STORE 2994
OXFORDSHIRE CC,"CHILDRENS, YOUNG PEOPLE AND FAMILIES","	LEAVING CARE SOUTH",MATERIALS,10/07/2019,000006482287488,109.95,AMZNMKTPLACE
OXFORDSHIRE CC,"CHILDRENS, YOUNG PEOPLE AND FAMILIES","	LEAVING CARE SOUTH",MATERIALS,10/07/2019,000006482287490,58.49,AMZNMKTPLACE
OXFORDSHIRE CC,"CHILDRENS, YOUNG PEOPLE AND FAMILIES","	LEAVING CARE SOUTH",MATERIALS,10/07/2019,000006482287494,180.49,AMZNMKTPLACE
OXFORDSHIRE CC,SOCIAL AND COMMUNITY SERVICES,EMERGENCY DUTY TEAM,CATERING,10/07/2019,000006482287512,4.67,MCDONALDS
OXFORDSHIRE CC,CORPORATE CORE,,"SUPPLIES, STATIONERY AND MATERIALS",10/07/2019,000006482287530,65.38,LYRECO UK LTD
OXFORDSHIRE CC,"CHILDRENS, YOUNG PEOPLE AND FAMILIES","	RESIDENTIAL STRATEGY",CATERING PROVISIONS,10/07/2019,000006482287116,19.82,MARKS&SPENCER PLC SF
OXFORDSHIRE CC,CORPORATE CORE,,"SUPPLIES, STATIONERY AND MATERIALS",10/07/2019,000006482287538,36.96,LYRECO UK LTD
OXFORDSHIRE CC,"CHILDRENS, YOUNG PEOPLE AND FAMILIES","	NCS",CATERING PROVISIONS,10/07/2019,000006482287544,288.22,TESCO STORES 2008
OXFORDSHIRE CC,"CHILDRENS, YOUNG PEOPLE AND FAMILIES",FAMILY SUPPORT 2,PAYMENTS TO VOLUNTARY BODIES,10/07/2019,000006482287546,30.00,ST JOHN AMBULANCE
OXFORDSHIRE CC,ENTERPRISEVC,,CAR LEASING - PRIVATE RENTALS,10/07/2019,000006482287552,39.73,ENTERPRISE RENT-A-CAR
OXFORDSHIRE CC,ENTERPRISEVC,,CAR LEASING - PRIVATE RENTALS,10/07/2019,000006482287556,61.15,ENTERPRISE RENT-A-CAR
OXFORDSHIRE CC,ENTERPRISEVC,,CAR LEASING - PRIVATE RENTALS,10/07/2019,000006482287560,119.50,ENTERPRISE RENT-A-CAR
OXFORDSHIRE CC,ENTERPRISEVC,,CAR LEASING - PRIVATE RENTALS,10/07/2019,000006482287564,118.87,ENTERPRISE RENT-A-CAR
OXFORDSHIRE CC,ENTERPRISEVC,,CAR LEASING - PRIVATE RENTALS,10/07/2019,000006482287566,52.32,ENTERPRISE RENT-A-CAR
OXFORDSHIRE CC,ENTERPRISEVC,,CAR LEASING - PRIVATE RENTALS,10/07/2019,000006482287570,69.12,ENTERPRISE RENT-A-CAR
OXFORDSHIRE CC,ENTERPRISEVC,,CAR LEASING - PRIVATE RENTALS,10/07/2019,000006482287572,52.72,ENTERPRISE RENT-A-CAR
OXFORDSHIRE CC,ENTERPRISEVC,,CAR LEASING - PRIVATE RENTALS,10/07/2019,000006482287576,25.14,ENTERPRISE RENT-A-CAR
OXFORDSHIRE CC,ENTERPRISEVC,,CAR LEASING - PRIVATE RENTALS,10/07/2019,000006482287578,56.62,ENTERPRISE RENT-A-CAR
OXFORDSHIRE CC,ENTERPRISEVC,,CAR LEASING - PRIVATE RENTALS,10/07/2019,000006482287582,96.42,ENTERPRISE RENT-A-CAR
OXFORDSHIRE CC,ENTERPRISEVC,,CAR LEASING - PRIVATE RENTALS,10/07/2019,000006482287584,66.07,ENTERPRISE RENT-A-CAR
OXFORDSHIRE CC,ENTERPRISEVC,,CAR LEASING - PRIVATE RENTALS,10/07/2019,000006482287586,37.72,ENTERPRISE RENT-A-CAR
OXFORDSHIRE CC,ENTERPRISEVC,,CAR LEASING - PRIVATE RENTALS,10/07/2019,000006482287590,43.18,ENTERPRISE RENT-A-CAR
OXFORDSHIRE CC,ENTERPRISEVC,,CAR LEASING - PRIVATE RENTALS,10/07/2019,000006482287594,46.12,ENTERPRISE RENT-A-CAR
OXFORDSHIRE CC,ENTERPRISEVC,,CAR LEASING - PRIVATE RENTALS,10/07/2019,000006482287596,46.12,ENTERPRISE RENT-A-CAR
OXFORDSHIRE CC,ENTERPRISEVC,,CAR LEASING - PRIVATE RENTALS,10/07/2019,000006482287600,67.03,ENTERPRISE RENT-A-CAR
OXFORDSHIRE CC,SOCIAL AND COMMUNITY SERVICES,WITNEY LIBRARY,MATERIALS,10/07/2019,000006482287606,6.39,AMAZON.CO.UK M66DT1RK4
OXFORDSHIRE CC,SOCIAL AND COMMUNITY SERVICES,WITNEY LIBRARY,MATERIALS,10/07/2019,000006482287610,16.95,AMZNMKTPLACE
OXFORDSHIRE CC,"CHILDRENS, YOUNG PEOPLE AND FAMILIES","	LOOKED AFTER NORTH",CATERING,10/07/2019,000006482286992,5.80,PRET A MANGER
OXFORDSHIRE CC,"CHILDRENS, YOUNG PEOPLE AND FAMILIES","	40 THE MOORS",CATERING,10/07/2019,000006482286998,36.60,MAYFLOWER RESTAURANT
OXFORDSHIRE CC,"CHILDRENS, YOUNG PEOPLE AND FAMILIES",DEPUTY DIRECTOR &MAN,PAYMENTS TO TRANSPORT OPERATORS,10/07/2019,000006482287008,33.42,TRAINLINE.COM
OXFORDSHIRE CC,"CHILDRENS, YOUNG PEOPLE AND FAMILIES",DEPUTY DIRECTOR &MAN,PAYMENTS TO TRANSPORT OPERATORS,10/07/2019,000006482287012,236.77,TRAINLINE
OXFORDSHIRE CC,"CHILDRENS, YOUNG PEOPLE AND FAMILIES",MANAGEMENT RECHARGES,HIRED AND CONTRACTED SERVICES,10/07/2019,000006482287016,15.99,GLITTERBODY
OXFORDSHIRE CC,"CHILDRENS, YOUNG PEOPLE AND FAMILIES",DIDCOT MOVE-ON HOME,CATERING PROVISIONS,10/07/2019,000006482287420,19.40,SAINSBURYS 2067
OXFORDSHIRE CC,"CHILDRENS, YOUNG PEOPLE AND FAMILIES","	FAMILY SUPPORT S'TH2",PAYMENTS TO TRANSPORT OPERATORS,10/07/2019,000006482286664,-109.80,RAILEASY WEB SITE
OXFORDSHIRE CC,"CHILDRENS, YOUNG PEOPLE AND FAMILIES",THAME E&A HOME,MATERIALS,10/07/2019,000006482286670,8.50,CLINTONS-155
OXFORDSHIRE CC,ENVIRONMENT AND ECONOMY,"	ROW MAINT",OTHER TRANSPORT ARRANGEMENTS,10/07/2019,000006482286672,12.00,NCP LIMITED
OXFORDSHIRE CC,"CHILDRENS, YOUNG PEOPLE AND FAMILIES","	FAMILY SUPPORT CITY3",CATERING PROVISIONS,10/07/2019,000006482286678,28.11,TESCO STORES 6167
OXFORDSHIRE CC,"CHILDRENS, YOUNG PEOPLE AND FAMILIES",MANAGEMENT RECHARGES,HIRED AND CONTRACTED SERVICES,10/07/2019,000006482287020,30.94,BAKER ROSS
OXFORDSHIRE CC,"CHILDRENS, YOUNG PEOPLE AND FAMILIES",NTH EARLY HELP-BCSTR,PAYMENT TO GOVERNMENT DEPARTMENTS,10/07/2019,000006482287044,14.00,GEN REGISTER OFFICE
OXFORDSHIRE CC,"CHILDRENS, YOUNG PEOPLE AND FAMILIES",SPECIAL GUARDIANSHIP,PAYMENTS TO TRANSPORT OPERATORS,10/07/2019,000006482287048,161.20,LNER WEB SALES
OXFORDSHIRE CC,ENVIRONMENT AND ECONOMY,"	KNIGHTS COURT",FIXTURES & FITTINGS,10/07/2019,000006482287472,-10.00,TIMPSON LTD
OXFORDSHIRE CC,SOCIAL AND COMMUNITY SERVICES,"	PUBLIC HEALTH GENERA",PAYMENTS TO TRANSPORT OPERATORS,10/07/2019,000006482287476,73.30,WWW.GWR.COM
OXFORDSHIRE CC,"CHILDRENS, YOUNG PEOPLE AND FAMILIES","	LEAVING CARE SOUTH",MATERIALS,10/07/2019,000006482287480,309.90,AMZNMKTPLACE
OXFORDSHIRE CC,"CHILDRENS, YOUNG PEOPLE AND FAMILIES","	LEAVING CARE SOUTH",MATERIALS,10/07/2019,000006482287484,35.49,AMZNMKTPLACE
OXFORDSHIRE CC,"CHILDRENS, YOUNG PEOPLE AND FAMILIES","	LEAVING CARE SOUTH",MATERIALS,10/07/2019,000006482287486,71.47,AMZNMKTPLACE
OXFORDSHIRE CC,SOCIAL AND COMMUNITY SERVICES,LOOKED AFTER NORTH,PAYMENTS TO TRANSPORT OPERATORS,10/07/2019,000006482286684,76.90,BICESTER VIL SSTP
OXFORDSHIRE CC,SOCIAL AND COMMUNITY SERVICES,LOOKED AFTER NORTH,OTHER TRANSPORT ARRANGEMENTS,10/07/2019,000006482286686,1.50,TFL TRAVEL CH
OXFORDSHIRE CC,"CHILDRENS, YOUNG PEOPLE AND FAMILIES","	LOOKED AFTER SOUTH",REGISTRATION AND INSPECTION FEES,10/07/2019,000006482286690,22.00,OXFORDSHIRE CC MOTO1
OXFORDSHIRE CC,"CHILDRENS, YOUNG PEOPLE AND FAMILIES",EYNSHAM,OTHER TRANSPORT ARRANGEMENTS,10/07/2019,000006482286704,27.50,STGCOACH/CTYLINK
OXFORDSHIRE CC,"CHILDRENS, YOUNG PEOPLE AND FAMILIES",EYNSHAM,DAY ACTIVITIES,10/07/2019,000006482286706,8.00,MILLETS FARM SHOP
OXFORDSHIRE CC,"CHILDRENS, YOUNG PEOPLE AND FAMILIES",EYNSHAM,DAY ACTIVITIES,10/07/2019,000006482286708,17.42,MILLETS FARM SHOP
OXFORDSHIRE CC,"CHILDRENS, YOUNG PEOPLE AND FAMILIES","	HEARING IMPAIRMENT",MATERIALS,10/07/2019,000006482287074,88.93,AMZNMKTPLACE AMAZON.CO
OXFORDSHIRE CC,"CHILDRENS, YOUNG PEOPLE AND FAMILIES","	HEARING IMPAIRMENT",MATERIALS,10/07/2019,000006482287074,7.99,AMZNMKTPLACE AMAZON.CO
OXFORDSHIRE CC,"CHILDRENS, YOUNG PEOPLE AND FAMILIES","	HEARING IMPAIRMENT",DISABILITY AIDS AND EQUIPMENT,10/07/2019,000006482287078,10.50,AMZNMKTPLACE AMAZON.CO
OXFORDSHIRE CC,SOCIAL AND COMMUNITY SERVICES,CSS WANTAGE,VEHICLE FUEL,10/07/2019,000006482287266,19.96,SAINSBURYS PFS1244
OXFORDSHIRE CC,"CHILDRENS, YOUNG PEOPLE AND FAMILIES",EYNSHAM,CATERING PROVISIONS,10/07/2019,000006482286870,5.20,ASDA SUPERSTORE
OXFORDSHIRE CC,CORPORATE CORE,SCHOOLS FM,CATERING PROVISIONS,10/07/2019,000006482286876,52.80,TESCO STORE 2653
OXFORDSHIRE CC,CORPORATE CORE,SCHOOLS FM,MATERIALS,10/07/2019,000006482286880,152.34,WWW.NISBETS.COM
OXFORDSHIRE CC,"CHILDRENS, YOUNG PEOPLE AND FAMILIES",WITNEY,CATERING PROVISIONS,10/07/2019,000006482286884,6.45,SAINSBURYS SACAT 0632
OXFORDSHIRE CC,"CHILDRENS, YOUNG PEOPLE AND FAMILIES","	FAM SUPP CITY 1",MATERIALS,10/07/2019,000006482286896,-6.95,WWW.ARGOS.CO.UK
OXFORDSHIRE CC,"CHILDRENS, YOUNG PEOPLE AND FAMILIES",CNTL EARLY HELP-RHIL,PAYMENT TO GOVERNMENT DEPARTMENTS,10/07/2019,000006482286900,-18.00,HMCTS-TV031
OXFORDSHIRE CC,"CHILDRENS, YOUNG PEOPLE AND FAMILIES","	FAM SUPP SOUTH",HIRED AND CONTRACTED SERVICES,10/07/2019,000006482286904,-121.22,BIG YELLOW S S OXFORD
OXFORDSHIRE CC,SOCIAL AND COMMUNITY SERVICES,CSS WALLINGFORD,CATERING PROVISIONS,10/07/2019,000006482286918,11.59,WAITROSE 675
OXFORDSHIRE CC,ENVIRONMENT AND ECONOMY,"	FLEET OPERATIONS",TELEPHONE - EQUIPMENT,10/07/2019,000006482287308,64.76,BT BILL PAYMENT 2
OXFORDSHIRE CC,"CHILDRENS, YOUNG PEOPLE AND FAMILIES","	FAMILY SUPPORT CITY3",OTHER EXPENSES,10/07/2019,000006482287332,119.98,AMZNMKTPLACE
OXFORDSHIRE CC,"CHILDRENS, YOUNG PEOPLE AND FAMILIES","	FAMILY SUPPORT CITY3",OTHER TRANSPORT ARRANGEMENTS,10/07/2019,000006482287336,22.64,TRAINLINE.COM
OXFORDSHIRE CC,"CHILDRENS, YOUNG PEOPLE AND FAMILIES",CNTL EARLY HELP-BRTN,CATERING PROVISIONS,10/07/2019,000006482287338,103.60,MULLER MILK
OXFORDSHIRE CC,"CHILDRENS, YOUNG PEOPLE AND FAMILIES","	FAMILY SUPPORT CITY3",OTHER EXPENSES,10/07/2019,000006482287342,16.99,AMZNMKTPLACE
OXFORDSHIRE CC,"CHILDRENS, YOUNG PEOPLE AND FAMILIES",CNTL EARLY HELP-BRTN,FURNITURE,10/07/2019,000006482287344,99.92,BUYITDIRECT CO UK
OXFORDSHIRE CC,ENTERPRISEVC,OTFC TEAM,CATERING PROVISIONS,10/07/2019,000006482286936,8.84,TESCO STORE 2994
OXFORDSHIRE CC,"CHILDRENS, YOUNG PEOPLE AND FAMILIES",NORTH FSS- BANBURY,PAYMENT TO GOVERNMENT DEPARTMENTS,10/07/2019,000006482286948,-7.50,GEN REGISTER OFFICE
OXFORDSHIRE CC,ENVIRONMENT AND ECONOMY,"	E&I STAFF",PAYMENTS TO TRANSPORT OPERATORS,10/07/2019,000006482286958,33.42,TRAINLINE.COM
OXFORDSHIRE CC,SOCIAL AND COMMUNITY SERVICES,WITNEY MOVE ON HOME,CATERING PROVISIONS,10/07/2019,000006482286962,26.55,SAINSBURYS 0632
OXFORDSHIRE CC,SOCIAL AND COMMUNITY SERVICES,WITNEY MOVE ON HOME,CATERING PROVISIONS,10/07/2019,000006482286964,18.00,SAINSBURYS 0632
OXFORDSHIRE CC,SOCIAL AND COMMUNITY SERVICES,WITNEY MOVE ON HOME,CATERING PROVISIONS,10/07/2019,000006482286966,5.50,SAINSBURYS 0632
OXFORDSHIRE CC,SOCIAL AND COMMUNITY SERVICES,WITNEY MOVE ON HOME,CATERING PROVISIONS,10/07/2019,000006482286970,4.95,SAINSBURYS 0632
OXFORDSHIRE CC,"CHILDRENS, YOUNG PEOPLE AND FAMILIES","	PARENT PARTNERSHIP","SUPPLIES, STATIONERY AND MATERIALS",10/07/2019,000006482287368,8.97,RYMAN 1172
OXFORDSHIRE CC,"CHILDRENS, YOUNG PEOPLE AND FAMILIES","	40 THE MOORS",CATERING PROVISIONS,10/07/2019,000006482287386,41.40,TESCO STORE 2788
OXFORDSHIRE CC,"CHILDRENS, YOUNG PEOPLE AND FAMILIES","	40 THE MOORS",CATERING PROVISIONS,10/07/2019,000006482287390,20.99,TESCO STORE 2788
OXFORDSHIRE CC,"CHILDRENS, YOUNG PEOPLE AND FAMILIES","	40 THE MOORS",OTHER TRANSPORT ARRANGEMENTS,10/07/2019,000006482287394,25.00,PP MAHMOODTARI
OXFORDSHIRE CC,SOCIAL AND COMMUNITY SERVICES,DIDCOT MOVE-ON HOME,CATERING PROVISIONS,10/07/2019,000006482286990,10.76,SAINSBURYS SACAT 2067
OXFORDSHIRE CC,"CHILDRENS, YOUNG PEOPLE AND FAMILIES",CSS WALLINGFORD,MATERIALS,10/07/2019,000006482286728,22.00,HALFORDS 0567
OXFORDSHIRE CC,"CHILDRENS, YOUNG PEOPLE AND FAMILIES","	LOOKED AFTER SOUTH",DRUGS AND MEDICAL SUPPLIES,10/07/2019,000006482286734,5.25,BOOTS 0901
OXFORDSHIRE CC,"CHILDRENS, YOUNG PEOPLE AND FAMILIES",WITNEY,CATERING,10/07/2019,000006482286740,12.83,WILLIAM MORRIS
OXFORDSHIRE CC,"CHILDRENS, YOUNG PEOPLE AND FAMILIES","	NCS",TELEPHONE - EQUIPMENT,10/07/2019,000006482286746,6.00,GIFFGAFF
OXFORDSHIRE CC,"CHILDRENS, YOUNG PEOPLE AND FAMILIES","	NCS",TELEPHONE - EQUIPMENT,10/07/2019,000006482286750,6.00,GIFFGAFF
OXFORDSHIRE CC,"CHILDRENS, YOUNG PEOPLE AND FAMILIES","	NCS",TELEPHONE - EQUIPMENT,10/07/2019,000006482286754,6.00,GIFFGAFF
OXFORDSHIRE CC,"CHILDRENS, YOUNG PEOPLE AND FAMILIES","	NCS",TELEPHONE - EQUIPMENT,10/07/2019,000006482286760,6.00,GIFFGAFF
OXFORDSHIRE CC,"CHILDRENS, YOUNG PEOPLE AND FAMILIES","	NCS",TELEPHONE - EQUIPMENT,10/07/2019,000006482286764,6.00,GIFFGAFF
OXFORDSHIRE CC,ENVIRONMENT AND ECONOMY,HARD FM,CATERING PROVISIONS,10/07/2019,000006482286782,175.20,FLOWMECH PRODUCTS LTD
OXFORDSHIRE CC,"CHILDRENS, YOUNG PEOPLE AND FAMILIES","	FOSTER CARE RECRUIT",MOTOR IF OWN DAMAGE,10/07/2019,000006482287170,29.99,AMZNMKTPLACE
OXFORDSHIRE CC,"CHILDRENS, YOUNG PEOPLE AND FAMILIES","	FOSTER CARE RECRUIT",MATERIALS,10/07/2019,000006482287172,3.90,AMZNMKTPLACE
OXFORDSHIRE CC,"CHILDRENS, YOUNG PEOPLE AND FAMILIES",EYNSHAM,MATERIALS,10/07/2019,000006482287632,15.54,AMZNMKTPLACE
OXFORDSHIRE CC,"CHILDRENS, YOUNG PEOPLE AND FAMILIES",EYNSHAM,CATERING PROVISIONS,10/07/2019,000006482287634,197.41,TESCO STORES 2008
OXFORDSHIRE CC,ENVIRONMENT AND ECONOMY,HARD FM,HARDWARE AND CROCKERY,10/07/2019,000006482286786,22.45,TRAVIS PERKINS
OXFORDSHIRE CC,ENVIRONMENT AND ECONOMY,HARD FM,HARDWARE AND CROCKERY,10/07/2019,000006482286790,24.63,WICKES BICESTER
OXFORDSHIRE CC,"CHILDRENS, YOUNG PEOPLE AND FAMILIES",ICT INFORMATION,IT SOFTWARE,10/07/2019,000006482286796,24.00,AXURE SOFTWARE
OXFORDSHIRE CC,ENVIRONMENT AND ECONOMY,COUNTY LIBRARY,GENERAL MAINTENANCE,10/07/2019,000006482286798,9.53,WOLSELEY UK
OXFORDSHIRE CC,SOCIAL AND COMMUNITY SERVICES,RESIDENTIAL STRATEGY,CATERING PROVISIONS,10/07/2019,000006482286802,8.33,CO-OPERATIVE FOOD
OXFORDSHIRE CC,SOCIAL AND COMMUNITY SERVICES,CSS - OXFORD,CATERING PROVISIONS,10/07/2019,000006482286808,3.16,ALDI STORES 775-142
OXFORDSHIRE CC,SOCIAL AND COMMUNITY SERVICES,CSS - OXFORD,CATERING PROVISIONS,10/07/2019,000006482286810,24.00,ALDI STORES 775-142
OXFORDSHIRE CC,SOCIAL AND COMMUNITY SERVICES,CSS BICESTER,MATERIALS,10/07/2019,000006482286814,3.00,POUNDLAND LTD 1505
OXFORDSHIRE CC,SOCIAL AND COMMUNITY SERVICES,CSS BICESTER,MATERIALS,10/07/2019,000006482286818,7.50,THEWORKS.CO.UK
OXFORDSHIRE CC,"CHILDRENS, YOUNG PEOPLE AND FAMILIES",MEMBERS ALLOWANCES,AFTER SCHOOL ACTIVITIES,10/07/2019,000006482286822,42.80,SAINSBURYS TO YOU 2067
OXFORDSHIRE CC,"CHILDRENS, YOUNG PEOPLE AND FAMILIES","	40 THE MOORS",DRUGS AND MEDICAL SUPPLIES,10/07/2019,000006482287216,20.78,AMZNMKTPLACE
OXFORDSHIRE CC,"CHILDRENS, YOUNG PEOPLE AND FAMILIES","	40 THE MOORS",DRUGS AND MEDICAL SUPPLIES,10/07/2019,000006482287220,14.49,AMZNMKTPLACE
OXFORDSHIRE CC,"CHILDRENS, YOUNG PEOPLE AND FAMILIES",THAME E&A HOME,CATERING,10/07/2019,000006482286836,11.12,SUBWAY
OXFORDSHIRE CC,SOCIAL AND COMMUNITY SERVICES,CSS - OXFORD,CATERING PROVISIONS,10/07/2019,000006482286840,2.30,ALDI STORES 775-142
OXFORDSHIRE CC,SOCIAL AND COMMUNITY SERVICES,CSS - OXFORD,MATERIALS,10/07/2019,000006482286844,15.23,ALDI STORES 775-142
OXFORDSHIRE CC,SOCIAL AND COMMUNITY SERVICES,ADULT SERVICES IMPROVEMENT BOARD,CATERING PROVISIONS,10/07/2019,000006482286852,20.97,TESCO STORES 2008
OXFORDSHIRE CC,"CHILDRENS, YOUNG PEOPLE AND FAMILIES","	RIVERSIDE CENTRE",CATERING PROVISIONS,10/07/2019,000006482286854,12.75,TESCO STORES 4377
OXFORDSHIRE CC,"CHILDRENS, YOUNG PEOPLE AND FAMILIES",CNTL EARLY HELP-RHIL,CATERING PROVISIONS,09/07/2019,000006478371684,47.64,GREEN WAREHOUSE LTD.
OXFORDSHIRE CC,CORPORATE CORE,"	LEGAL SERVICES",STAFF SUBSISTENCE,09/07/2019,000006478371690,34.30,WWW.GWR.COM
OXFORDSHIRE CC,"CHILDRENS, YOUNG PEOPLE AND FAMILIES",THAME E&A HOME,MATERIALS,09/07/2019,000006478371016,14.39,AMZNMKTPLACE AMAZON.CO
OXFORDSHIRE CC,SOCIAL AND COMMUNITY SERVICES,CSS WANTAGE,DAY ACTIVITIES,09/07/2019,000006478371044,150.00,MILLERS ARK
OXFORDSHIRE CC,ENVIRONMENT AND ECONOMY,"	E&I STAFF",MATERIALS,09/07/2019,000006478371050,52.28,AMAZON.CO.UK M64Z86IP4
OXFORDSHIRE CC,"CHILDRENS, YOUNG PEOPLE AND FAMILIES",WITNEY,MATERIALS,09/07/2019,000006478371332,24.16,WH SMITH
OXFORDSHIRE CC,"CHILDRENS, YOUNG PEOPLE AND FAMILIES",CNTL EARLY HELP-RHIL,MATERIALS,09/07/2019,000006478371362,114.24,WWW.ARGOS.CO.UK
OXFORDSHIRE CC,CORPORATE CORE,HOUSING& GROWTH DEAL,CATERING,09/07/2019,000006478371366,230.22,BIC EXHIBITIONS
OXFORDSHIRE CC,ENTERPRISEVC,COMMUNICATIONS,CATERING,09/07/2019,000006478371370,384.80,THE JAM FACTORY OXFORD
OXFORDSHIRE CC,"CHILDRENS, YOUNG PEOPLE AND FAMILIES","	RIVERSIDE CENTRE",CATERING PROVISIONS,09/07/2019,000006478371696,.80,SELECTA UK GBP
OXFORDSHIRE CC,"CHILDRENS, YOUNG PEOPLE AND FAMILIES","	RIVERSIDE CENTRE",CATERING PROVISIONS,09/07/2019,000006478371698,10.91,CO-OPERATIVE FOOD
OXFORDSHIRE CC,"CHILDRENS, YOUNG PEOPLE AND FAMILIES","	RIVERSIDE CENTRE",DAY ACTIVITIES,09/07/2019,000006478371700,13.00,SPORTS CENTRE
OXFORDSHIRE CC,ENVIRONMENT AND ECONOMY,"	MOUNT HOUSE",EQUIPMENT,09/07/2019,000006478371760,13.56,WWW.LOCKANDKEY.CO.UK
OXFORDSHIRE CC,"CHILDRENS, YOUNG PEOPLE AND FAMILIES","	RESIDENTIAL STRATEGY",CATERING,09/07/2019,000006478371718,6.50,GEORGE & DELILA
OXFORDSHIRE CC,"CHILDRENS, YOUNG PEOPLE AND FAMILIES","	RESIDENTIAL STRATEGY",HIRE OF ACCOMMODATION AND FACILITIES,09/07/2019,000006478371722,500.00,BUCKINGHAM HOTELS
OXFORDSHIRE CC,"CHILDRENS, YOUNG PEOPLE AND FAMILIES","	RESIDENTIAL STRATEGY",HIRE OF ACCOMMODATION AND FACILITIES,09/07/2019,000006478371726,550.00,BUCKINGHAM HOTELS
OXFORDSHIRE CC,CORPORATE CORE,"	CORPORATE FINANCE",PAYMENTS TO TRANSPORT OPERATORS,09/07/2019,000006478371740,26.60,WWW.GWR.COM
OXFORDSHIRE CC,CORPORATE CORE,INCOME TEAM,PAYMENTS TO TRANSPORT OPERATORS,09/07/2019,000006478371744,30.20,WWW.GWR.COM
OXFORDSHIRE CC,CORPORATE CORE,"	CORPORATE FINANCE",PAYMENTS TO TRANSPORT OPERATORS,09/07/2019,000006478371746,38.05,WWW.GWR.COM
OXFORDSHIRE CC,CORPORATE CORE,"	CORPORATE FINANCE",PAYMENTS TO TRANSPORT OPERATORS,09/07/2019,000006478371750,38.05,WWW.GWR.COM
OXFORDSHIRE CC,ENVIRONMENT AND ECONOMY,COUNTY LIBRARY,GENERAL MAINTENANCE,09/07/2019,000006478371248,27.60,WOLSELEY UK
OXFORDSHIRE CC,"CHILDRENS, YOUNG PEOPLE AND FAMILIES","	LEAVING CARE SOUTH",MATERIALS,09/07/2019,000006478372064,252.95,WWW.ARGOS.CO.UK
OXFORDSHIRE CC,"CHILDRENS, YOUNG PEOPLE AND FAMILIES","	LEAVING CARE SOUTH",MATERIALS,09/07/2019,000006478372068,-252.95,WWW.ARGOS.CO.UK
OXFORDSHIRE CC,"CHILDRENS, YOUNG PEOPLE AND FAMILIES",THAME E&A HOME,CATERING PROVISIONS,09/07/2019,000006478372074,155.28,SAINSBURYS TO YOU 0600
OXFORDSHIRE CC,"CHILDRENS, YOUNG PEOPLE AND FAMILIES","	LOOKED AFTER NORTH",OTHER TRANSPORT ARRANGEMENTS,09/07/2019,000006478372078,2.00,SEACOURT PARK AND RIDE
OXFORDSHIRE CC,"CHILDRENS, YOUNG PEOPLE AND FAMILIES","	LOOKED AFTER SOUTH",CATERING,09/07/2019,000006478372084,6.47,MCDONALDS
OXFORDSHIRE CC,CORPORATE CORE,,"SUPPLIES, STATIONERY AND MATERIALS",09/07/2019,000006478372098,27.73,LYRECO UK LTD
OXFORDSHIRE CC,"CHILDRENS, YOUNG PEOPLE AND FAMILIES","	NCS",CATERING PROVISIONS,09/07/2019,000006478372104,581.64,TESCO STORES 2008
OXFORDSHIRE CC,"CHILDRENS, YOUNG PEOPLE AND FAMILIES","	NCS",MATERIALS,09/07/2019,000006478372118,27.92,DECATHLON UK LTD
OXFORDSHIRE CC,"CHILDRENS, YOUNG PEOPLE AND FAMILIES","	NCS",MATERIALS,09/07/2019,000006478372110,783.00,WWW.TARDISENVIRONMENTA
OXFORDSHIRE CC,"CHILDRENS, YOUNG PEOPLE AND FAMILIES","	NCS",VEHICLE FUEL,09/07/2019,000006478372114,10.00,TESCO PFS 2488
OXFORDSHIRE CC,"CHILDRENS, YOUNG PEOPLE AND FAMILIES",EYNSHAM,OTHER PREMISES RELATED COSTS,09/07/2019,000006478372192,29.48,AMAZON.CO.UK M63C43I74
OXFORDSHIRE CC,"CHILDRENS, YOUNG PEOPLE AND FAMILIES",EYNSHAM,OTHER PREMISES RELATED COSTS,09/07/2019,000006478372196,11.35,AMZNMKTPLACE
OXFORDSHIRE CC,CORPORATE CORE,OPERATIONS,MATERIALS,09/07/2019,000006478371604,50.59,AMZNMKTPLACE AMAZON.CO
OXFORDSHIRE CC,CORPORATE CORE,OPERATIONS,MATERIALS,09/07/2019,000006478371608,13.98,AMZNMKTPLACE AMAZON.CO
OXFORDSHIRE CC,CORPORATE CORE,OPERATIONS,"BOOKS, DVDS AND CDS",09/07/2019,000006478371610,20.10,AMZN MKTP UK M65JV3974
OXFORDSHIRE CC,"CHILDRENS, YOUNG PEOPLE AND FAMILIES","	MUSIC UNALLOCABLE",ENTERTAINMENT EXPENSES,09/07/2019,000006478371612,20.00,BLENHEIM PALACE HERITA
OXFORDSHIRE CC,ENVIRONMENT AND ECONOMY,"	R & A STAFF & OPS",PAYMENTS TO TRANSPORT OPERATORS,09/07/2019,000006478371620,12.50,CROSS COUNTRY TRAINS
OXFORDSHIRE CC,"CHILDRENS, YOUNG PEOPLE AND FAMILIES","	MALTFIELD HOUSE",CONTRACT CLEANING,09/07/2019,000006478371622,935.82,RENTOKIL PEST CONT
OXFORDSHIRE CC,ENVIRONMENT AND ECONOMY,"	BRIDGES GENERAL",MATERIALS,09/07/2019,000006478371624,129.00,CURRYS ONLINE
OXFORDSHIRE CC,ENVIRONMENT AND ECONOMY,"	BRIDGES GENERAL",HARDWARE AND CROCKERY,09/07/2019,000006478371626,194.85,SCREWFIX DIRECT
OXFORDSHIRE CC,SOCIAL AND COMMUNITY SERVICES,CSS - BANBURY,CATERING PROVISIONS,09/07/2019,000006478371012,106.06,SAINSBURYS TO YOU 0642
OXFORDSHIRE CC,"CHILDRENS, YOUNG PEOPLE AND FAMILIES",THAME E&A HOME,CATERING PROVISIONS,09/07/2019,000006478371300,7.00,COSTA THAME
OXFORDSHIRE CC,"CHILDRENS, YOUNG PEOPLE AND FAMILIES",THAME E&A HOME,MATERIALS,09/07/2019,000006478371304,39.99,DECATHLON UK LTD
OXFORDSHIRE CC,"CHILDRENS, YOUNG PEOPLE AND FAMILIES",THAME E&A HOME,MATERIALS,09/07/2019,000006478371308,6.99,SPORTSDIRECT.COM
OXFORDSHIRE CC,SOCIAL AND COMMUNITY SERVICES,CSS - OXFORD,MOTOR IF OWN DAMAGE,09/07/2019,000006478371312,12.14,ALDI STORES 775-142
OXFORDSHIRE CC,"CHILDRENS, YOUNG PEOPLE AND FAMILIES","	RIVERSIDE CENTRE",CATERING PROVISIONS,09/07/2019,000006478371318,18.10,SAINSBURYS SAC2305SAC
OXFORDSHIRE CC,SOCIAL AND COMMUNITY SERVICES,CSS BICESTER,CATERING PROVISIONS,09/07/2019,000006478371282,71.65,SAINSBURYS (2243)
OXFORDSHIRE CC,ENVIRONMENT AND ECONOMY,"	MINERALS & WASTE",PAYMENTS TO TRANSPORT OPERATORS,09/07/2019,000006478371650,46.20,WWW.GWR.COM
OXFORDSHIRE CC,"CHILDRENS, YOUNG PEOPLE AND FAMILIES","	LOOKED AFTER CITY 2",PAYMENTS TO TRANSPORT OPERATORS,09/07/2019,000006478371658,61.30,GWR DIDCOT PKWY TO
OXFORDSHIRE CC,"CHILDRENS, YOUNG PEOPLE AND FAMILIES","	LOOKED AFTER CITY 2",OTHER TRANSPORT ARRANGEMENTS,09/07/2019,000006478371662,6.40,APCOA CONNECT - FGW
OXFORDSHIRE CC,ENVIRONMENT AND ECONOMY,HARD FM,MATERIALS,09/07/2019,000006478371186,99.00,HALFORDS 0788
OXFORDSHIRE CC,"CHILDRENS, YOUNG PEOPLE AND FAMILIES","	40 THE MOORS",OTHER TRANSPORT ARRANGEMENTS,09/07/2019,000006478371962,38.90,SUMUP   COWLEY CHAUFFE
OXFORDSHIRE CC,ENVIRONMENT AND ECONOMY,COMM LIBRARIES CO-OR,POSTAGE AND DELIVERY,09/07/2019,000006478371968,53.00,POST OFFICE COUNTER
OXFORDSHIRE CC,ENVIRONMENT AND ECONOMY,COMM LIBRARIES CO-OR,CATERING PROVISIONS,09/07/2019,000006478371970,18.10,SAINSBURYS SACAT 0730
OXFORDSHIRE CC,ENVIRONMENT AND ECONOMY,COMM LIBRARIES CO-OR,CATERING PROVISIONS,09/07/2019,000006478371972,13.00,MARKS&SPENCER PLC
OXFORDSHIRE CC,ENVIRONMENT AND ECONOMY,"	LIBRARY PROJECTS",CATERING PROVISIONS,09/07/2019,000006478371974,.80,MARKS&SPENCER PLC
OXFORDSHIRE CC,ENVIRONMENT AND ECONOMY,"	LIBRARY PROJECTS",MATERIALS,09/07/2019,000006478371978,6.00,ARGOS LTD
OXFORDSHIRE CC,SOCIAL AND COMMUNITY SERVICES,CSS - DIDCOT,CATERING PROVISIONS,09/07/2019,000006478371990,369.30,COMPLETE CARE SHOP
OXFORDSHIRE CC,CORPORATE CORE,"	PERSONNEL",PAYMENTS TO TRANSPORT OPERATORS,09/07/2019,000006478371994,40.70,TRAINLINE
OXFORDSHIRE CC,CORPORATE CORE,"	PERSONNEL",PAYMENTS TO TRANSPORT OPERATORS,09/07/2019,000006478371998,47.70,TRAINLINE
OXFORDSHIRE CC,ENVIRONMENT AND ECONOMY,HARD FM,HARDWARE AND CROCKERY,09/07/2019,000006478371190,41.87,SCREWFIX OXFORD
OXFORDSHIRE CC,ENVIRONMENT AND ECONOMY,HARD FM,HARDWARE AND CROCKERY,09/07/2019,000006478371194,24.04,OXON FASTENING SYSTEMS
OXFORDSHIRE CC,ENVIRONMENT AND ECONOMY,HARD FM,HARDWARE AND CROCKERY,09/07/2019,000006478371198,60.36,OXON FASTENING SYSTEMS
OXFORDSHIRE CC,ENVIRONMENT AND ECONOMY,HARD FM,HARDWARE AND CROCKERY,09/07/2019,000006478371200,6.74,OXON FASTENING SYSTEMS
OXFORDSHIRE CC,ENVIRONMENT AND ECONOMY,HARD FM,HARDWARE AND CROCKERY,09/07/2019,000006478371204,70.43,BUILDBASE - OXFORD
OXFORDSHIRE CC,ENVIRONMENT AND ECONOMY,HARD FM,HARDWARE AND CROCKERY,09/07/2019,000006478371210,47.46,SCREWFIX BANBURY
OXFORDSHIRE CC,CORPORATE CORE,"	POLICY & IMPROVEMENT",PRINTING,09/07/2019,000006478371216,"1,497.60",WWW.ROYALIMAGES.CO.UK
OXFORDSHIRE CC,"CHILDRENS, YOUNG PEOPLE AND FAMILIES",THAME E&A HOME,CATERING PROVISIONS,09/07/2019,000006478371220,3.75,SAINSBURYS SACAT 2096
OXFORDSHIRE CC,"CHILDRENS, YOUNG PEOPLE AND FAMILIES",THAME E&A HOME,DISABILITY AIDS AND EQUIPMENT,09/07/2019,000006478371224,84.00,ROBERT STANLEY (OPTICI
OXFORDSHIRE CC,ENVIRONMENT AND ECONOMY,HARD FM,HARDWARE AND CROCKERY,09/07/2019,000006478371228,18.53,BUILDBASE - OXFORD
OXFORDSHIRE CC,"CHILDRENS, YOUNG PEOPLE AND FAMILIES","	HEARING IMPAIRMENT",DISABILITY AIDS AND EQUIPMENT,09/07/2019,000006478371584,11.25,AMZNMKTPLACE AMAZON.CO
OXFORDSHIRE CC,"CHILDRENS, YOUNG PEOPLE AND FAMILIES","	HOME SUPPORT",MATERIALS,09/07/2019,000006478372016,14.90,AMZNMKTPLACE
OXFORDSHIRE CC,CORPORATE CORE,"	PERSONNEL",PAYMENTS TO TRANSPORT OPERATORS,09/07/2019,000006478372000,-29.90,TRAINLINE
OXFORDSHIRE CC,"CHILDRENS, YOUNG PEOPLE AND FAMILIES","	LEAVING CARE SOUTH",MATERIALS,09/07/2019,000006478372052,135.90,AMZNMKTPLACE
OXFORDSHIRE CC,"CHILDRENS, YOUNG PEOPLE AND FAMILIES","	LEAVING CARE SOUTH",FURNITURE,09/07/2019,000006478372054,333.00,DREAMS LTD
